Workbook

Sheet Disclaimer
B4: Oklahoma Department of Transportation
B5: US 281 Bridgeport Bridge over South Canadian River
B6: 2019-07-15
B13: Disclaimer
B14: ="The Model is provided to "&Client.Name&" on the basis that it is strictly private and confidential. The Recipients agree to not disclose that information to any person or entity except with the prior consent of HDR Inc. (HDR) or as required by law." -> The Model is provided to Oklahoma Department of Transportation on the basis that it is strictly private and confidential. The Recipients agree to not disclose that information to any person or entity except with the prior consent of HDR Inc. (HDR) or as required by law.
B17: ="HDR retains all intellectual property with respect to this Model. The Recipients agree to use this Model only for the purpose of performing analysis in support of the "&Project.Name&" project. The Model must not be used for any other purpose. " -> HDR retains all intellectual property with respect to this Model. The Recipients agree to use this Model only for the purpose of performing analysis in support of the US 281 Bridgeport Bridge over South Canadian River project. The Model must not be used for any other purpose.
B20: By retaining and using this Model, the Recipients represent to HDR that they are capable of making their own independent assessment as to the validity of the assumptions, data and results contained in this Model.
B22: The Model may be a development version and may not be complete or, in the event that development of the Model has concluded, material events may have occurred since completion which are not reflected in the Model. In consultation with the client, HDR used what was deemed the best available data at the time of analysis and makes no warranties as to the accuracy of this information or completeness of the Model.

Sheet Results
B2: Cost-Benefit Analysis
B4: All values are in 2017$ millions
B5: Benefit Category | C5: Impact # | D5: Over Years 2019-2042
D6: Undiscounted | E6: 0.07 | F6: 0.03
B7: Travel Time Savings | C7: 1 | D7: =(SUM(D28:AB28))/10^6 -> 57.92391763 | E7: =(SUM(D41:AB41))/10^6 -> 21.71099259 | F7: =(SUM(D54:AB54))/10^6 -> 37.09079918
B8: Vehicle Operating Cost Savings | C8: 2 | D8: =(SUM(D29:AB29))/10^6 -> 55.40811593 | E8: =(SUM(D42:AB42))/10^6 -> 20.99785516 | F8: =(SUM(D55:AB55))/10^6 -> 35.63090551
B9: Reduction in Accident Costs | C9: 3 | D9: =(SUM(D30:AB30))/10^6 -> 29.6338131 | E9: 11.23024136 | F9: 19.05640675
B10: Environmental Cost Savings | C10: 4 | D10: =(SUM(D31:AB31))/10^6 -> 0.422090301 | E10: 0.1882769463 | F10: 0.2933805172
B11: O&M Costs | C11: 5 | D11: =(SUM(D32:AB32))/10^6 -> -2.733447532 | E11: -0.898663756 | F11: -1.686174408
B12: Capital Costs | C12: C1 | D12: =((SUM(D33:AB33))/10^6) -> -21.54162339 | E12: =((SUM(D46:AB46))/10^6) -> -16.34045691 | F12: -19.08851672
B13: NPV | D13: =SUM(D7:D12) -> 119.112866 | E13: =SUM(E7:E12) -> 36.88824538 | F13: =SUM(F7:F12) -> 71.29680083
B15: All values are in 2017$ millions | D15: Over Years 2019-2042
B16: Financial Metrics | D16: Undiscounted | E16: 0.07 | F16: 0.03
B17: Total Benefits | D17: =(SUM(D34:AB34))/10^6 -> 143.387937 | E17: =(SUM(D47:AB47))/10^6 -> 54.12736605 | F17: =(SUM(D60:AB60))/10^6 -> 92.07149196
B18: Total O&M Costs | D18: =-(SUM(D32:AB32)/10^6) -> 2.733447532 | E18: =-(SUM(D45:AB45)/10^6) -> 0.898663756 | F18: =-(SUM(D58:AB58)/10^6) -> 1.686174408
B19: Total Costs | D19: =((-SUM(D33:AB33))/10^6) -> 21.54162339 | E19: =((-SUM(D46:AB46))/10^6) -> 16.34045691 | F19: =(-SUM(D59:AB59))/10^6 -> 19.08851672
B20: NPV | D20: =D13 -> 119.112866 | E20: =E13 -> 36.88824538 | F20: =F13 -> 71.29680083
B21: ROI | D21: =IFERROR(D20/D19,"-") -> 5.529428486 | E21: =IFERROR(E20/E19,"-") -> 2.257479432 | F21: 3.735062387
B22: BCR | D22: =IFERROR((D17-D18)/D19,"-") -> 6.529428486 | E22: =IFERROR((E17-E18)/E19,"-") -> 3.257479432 | F22: =IFERROR((F17-F18)/F19,"-") -> 4.735062387
B23: Payback Period | D23: =IFERROR((L27-H27+1)+(-L37/M36),"-") -> 5.092483299
B24: IRR | D24: =IFERROR(IRR(D36:AB36),"-") -> 0.2633990051
B26: Results - Undiscounted 2017$
B27: Impact Category | C27: Total | D27: =Base.Year -> 2018 | E27: =D27+1 -> 2019 | F27: =E27+1 -> 2020 | G27: 2021 | H27: 2022 | I27: 2023 | J27: 2024 | K27: 2025 | L27: 2026 | M27: 2027 | N27: 2028 | O27: 2029 | P27: 2030 | Q27: 2031 | R27: 2032 | S27: 2033 | T27: 2034 | U27: 2035 | V27: 2036 | W27: 2037 | X27: 2038 | Y27: 2039 | Z27: 2040 | AA27: 2041 | AB27: 2042
B28: Travel Time Savings | C28: =SUM(D28:AB28)/10^6 -> 57.92391763 | D28: ='Calc-1'!D36 -> 0 | E28: ='Calc-1'!E36 -> 0 | F28: ='Calc-1'!F36 -> 0 | G28: ='Calc-1'!G36 -> 0 | H28: ='Calc-1'!H36 -> 0 | I28: ='Calc-1'!I36 -> 313236.9369 | J28: ='Calc-1'!J36 -> 2527203.089 | K28: ='Calc-1'!K36 -> 2577224.901 | L28: ='Calc-1'!L36 -> 2628236.811 | M28: ='Calc-1'!M36 -> 2680258.419 | N28: ='Calc-1'!N36 -> 2733309.708 | O28: ='Calc-1'!O36 -> 2787411.06 | P28: ='Calc-1'!P36 -> 2842583.259 | Q28: ='Calc-1'!Q36 -> 2898847.5 | R28: ='Calc-1'!R36 -> 2956225.399 | S28: ='Calc-1'!S36 -> 3014738.999 | T28: ='Calc-1'!T36 -> 3074410.779 | U28: ='Calc-1'!U36 -> 3135263.663 | V28: ='Calc-1'!V36 -> 3197321.03 | W28: ='Calc-1'!W36 -> 3260606.72 | X28: ='Calc-1'!X36 -> 3325145.045 | Y28: ='Calc-1'!Y36 -> 3390960.8 | Z28: ='Calc-1'!Z36 -> 3458079.269 | AA28: ='Calc-1'!AA36 -> 3526526.238 | AB28: ='Calc-1'!AB36 -> 3596328.001
B29: Vehicle Operating Cost Savings | C29: =SUM(D29:AB29)/10^6 -> 55.40811593 | D29: ='Calc-2'!D34 -> 0 | E29: ='Calc-2'!E34 -> 0 | F29: ='Calc-2'!F34 -> 0 | G29: ='Calc-2'!G34 -> 0 | H29: ='Calc-2'!H34 -> 0 | I29: ='Calc-2'!I34 -> 975600.744 | J29: ='Calc-2'!J34 -> 2387786.759 | K29: ='Calc-2'!K34 -> 2435049.055 | L29: ='Calc-2'!L34 -> 2483246.829 | M29: ='Calc-2'!M34 -> 2532398.6 | N29: ='Calc-2'!N34 -> 2582523.248 | O29: ='Calc-2'!O34 -> 2633640.031 | P29: ='Calc-2'!P34 -> 2685768.586 | Q29: ='Calc-2'!Q34 -> 2738928.94 | R29: ='Calc-2'!R34 -> 2793141.515 | S29: ='Calc-2'!S34 -> 2848427.139 | T29: ='Calc-2'!T34 -> 2904807.05 | U29: ='Calc-2'!U34 -> 2962302.909 | V29: ='Calc-2'!V34 -> 3020936.803 | W29: ='Calc-2'!W34 -> 3080731.258 | X29: ='Calc-2'!X34 -> 3141709.246 | Y29: ='Calc-2'!Y34 -> 3203894.192 | Z29: ='Calc-2'!Z34 -> 3267309.987 | AA29: ='Calc-2'!AA34 -> 3331980.992 | AB29: ='Calc-2'!AB34 -> 3397932.053
B30: Reduction in Accident Costs | C30: 29.6338131 | D30: ='Calc-3'!D42 -> 0 | E30: ='Calc-3'!E42 -> 0 | F30: ='Calc-3'!F42 -> 0 | G30: ='Calc-3'!G42 -> 0 | H30: ='Calc-3'!H42 -> 0 | I30: ='Calc-3'!I42 -> 521778.617 | J30: ='Calc-3'!J42 -> 1277055.271 | K30: ='Calc-3'!K42 -> 1302332.472 | L30: ='Calc-3'!L42 -> 1328109.992 | M30: ='Calc-3'!M42 -> 1354397.736 | N30: ='Calc-3'!N42 -> 1381205.803 | O30: ='Calc-3'!O42 -> 1408544.491 | P30: ='Calc-3'!P42 -> 1436424.303 | Q30: ='Calc-3'!Q42 -> 1464855.95 | R30: ='Calc-3'!R42 -> 1493850.354 | S30: ='Calc-3'!S42 -> 1523418.655 | T30: ='Calc-3'!T42 -> 1553572.212 | U30: ='Calc-3'!U42 -> 1584322.608 | V30: ='Calc-3'!V42 -> 1615681.658 | W30: ='Calc-3'!W42 -> 1647661.408 | X30: ='Calc-3'!X42 -> 1680274.144 | Y30: ='Calc-3'!Y42 -> 1713532.396 | Z30: ='Calc-3'!Z42 -> 1747448.94 | AA30: ='Calc-3'!AA42 -> 1782036.806 | AB30: ='Calc-3'!AB42 -> 1817309.282
B31: Environmental Cost Savings | C31: 0.422090301 | D31: ='Cal-4'!D34 -> 0 | E31: ='Cal-4'!E34 -> 0 | F31: ='Cal-4'!F34 -> 0 | G31: ='Cal-4'!G34 -> 0 | H31: ='Cal-4'!H34 -> 0 | I31: ='Cal-4'!I34 -> 11084.25047 | J31: ='Cal-4'!J34 -> 27128.74776 | K31: ='Cal-4'!K34 -> 27665.71652 | L31: ='Cal-4'!L34 -> 28213.31369 | M31: ='Cal-4'!M34 -> 28771.74964 | N31: ='Cal-4'!N34 -> 29341.23891 | O31: ='Cal-4'!O34 -> 29922.00028 | P31: ='Cal-4'!P34 -> 30514.25686 | Q31: ='Cal-4'!Q34 -> 31118.23619 | R31: ='Cal-4'!R34 -> 31734.17028 | S31: ='Cal-4'!S34 -> 32362.29578 | T31: ='Cal-4'!T34 -> 33002.85398 | U31: ='Cal-4'!U34 -> 33656.09097 | V31: ='Cal-4'!V34 -> 6403.450753 | W31: ='Cal-4'!W34 -> 6530.196486 | X31: ='Cal-4'!X34 -> 6659.450941 | Y31: ='Cal-4'!Y34 -> 6791.263775 | Z31: ='Cal-4'!Z34 -> 6925.685627 | AA31: ='Cal-4'!AA34 -> 7062.768136 | AB31: ='Cal-4'!AB34 -> 7202.563968
B32: O&M Costs | C32: -2.733447532 | D32: =-('Project Data'!F18-'Project Data'!F22) -> 0 | E32: =-('Project Data'!G18-'Project Data'!G22) -> 45174.94859 | F32: =-('Project Data'!H18-'Project Data'!H22) -> 45174.94859 | G32: =-('Project Data'!I18-'Project Data'!I22) -> 0 | H32: =-('Project Data'!J18-'Project Data'!J22) -> 0 | I32: =-('Project Data'!K18-'Project Data'!K22) -> 0 | J32: =-('Project Data'!L18-'Project Data'!L22) -> -4841.902314 | K32: =-('Project Data'!M18-'Project Data'!M22) -> 0 | L32: =-('Project Data'!N18-'Project Data'!N22) -> -4841.902314 | M32: =-('Project Data'!O18-'Project Data'!O22) -> 0 | N32: =-('Project Data'!P18-'Project Data'!P22) -> -4841.902314 | O32: =-('Project Data'!Q18-'Project Data'!Q22) -> 0 | P32: =-('Project Data'!R18-'Project Data'!R22) -> -4841.902314 | Q32: =-('Project Data'!S18-'Project Data'!S22) -> 0 | R32: =-('Project Data'!T18-'Project Data'!T22) -> -1747926.735 | S32: =-('Project Data'!U18-'Project Data'!U22) -> 0 | T32: =-('Project Data'!V18-'Project Data'!V22) -> -4841.902314 | U32: =-('Project Data'!W18-'Project Data'!W22) -> 0 | V32: =-('Project Data'!X18-'Project Data'!X22) -> -4841.902314 | W32: =-('Project Data'!Y18-'Project Data'!Y22) -> -1032293.573 | X32: =-('Project Data'!Z18-'Project Data'!Z22) -> -4841.902314 | Y32: =-('Project Data'!AA18-'Project Data'!AA22) -> 0 | Z32: =-('Project Data'!AB18-'Project Data'!AB22) -> -4841.902314 | AA32: =-('Project Data'!AC18-'Project Data'!AC22) -> 0 | AB32: =-('Project Data'!AD18-'Project Data'!AD22) -> -4841.902314
B33: Capital Costs | C33: -21.54162339 | D33: =-'Project Data'!F14 -> 0 | E33: =-'Project Data'!G14 -> -174933.2449 | F33: =-'Project Data'!H14 -> -299885.5627 | G33: =-'Project Data'!I14 -> -299885.5627 | H33: =-'Project Data'!J14 -> -17305765.85 | I33: =-'Project Data'!K14 -> -3461153.171 | J33: =-'Project Data'!L14 -> 0 | K33: =-'Project Data'!M14 -> 0 | L33: =-'Project Data'!N14 -> 0 | M33: =-'Project Data'!O14 -> 0 | N33: =-'Project Data'!P14 -> 0 | O33: =-'Project Data'!Q14 -> 0 | P33: =-'Project Data'!R14 -> 0 | Q33: =-'Project Data'!S14 -> 0 | R33: =-'Project Data'!T14 -> 0 | S33: =-'Project Data'!U14 -> 0 | T33: =-'Project Data'!V14 -> 0 | U33: =-'Project Data'!W14 -> 0 | V33: =-'Project Data'!X14 -> 0 | W33: =-'Project Data'!Y14 -> 0 | X33: =-'Project Data'!Z14 -> 0 | Y33: =-'Project Data'!AA14 -> 0 | Z33: =-'Project Data'!AB14 -> 0 | AA33: =-'Project Data'!AC14 -> 0 | AB33: =-'Project Data'!AD14 -> 0
B34: Total Benefits | C34: =SUM(D34:AB34)/10^6 -> 143.387937 | D34: =SUM(D28:D31) -> 0 | E34: =SUM(E28:E31) -> 0 | F34: =SUM(F28:F31) -> 0 | G34: =SUM(G28:G31) -> 0 | H34: 0 | I34: 1821700.548 | J34: 6219173.867 | K34: 6342272.143 | L34: 6467806.947 | M34: 6595826.504 | N34: 6726379.998 | O34: 6859517.582 | P34: 6995290.404 | Q34: 7133750.626 | R34: 7274951.439 | S34: 7418947.089 | T34: 7565792.895 | U34: 7715545.271 | V34: 7840342.941 | W34: 7995529.582 | X34: 8153787.886 | Y34: 8315178.652 | Z34: 8479763.882 | AA34: 8647606.804 | AB34: =SUM(AB28:AB31) -> 8818771.9
B35: Total Costs | C35: =SUM(D35:AB35)/10^6 -> -24.27507093 | D35: =SUM(D32:D33) -> 0 | E35: =SUM(E32:E33) -> -129758.2963 | F35: -254710.6141 | G35: -299885.5627 | H35: -17305765.85 | I35: -3461153.171 | J35: -4841.902314 | K35: 0 | L35: -4841.902314 | M35: 0 | N35: -4841.902314 | O35: 0 | P35: -4841.902314 | Q35: 0 | R35: -1747926.735 | S35: 0 | T35: -4841.902314 | U35: 0 | V35: -4841.902314 | W35: -1032293.573 | X35: -4841.902314 | Y35: 0 | Z35: -4841.902314 | AA35: 0 | AB35: -4841.902314
B36: Net Impacts | C36: =SUM(D36:AB36)/10^6 -> 119.112866 | D36: =SUM(D28:D33) -> 0 | E36: =SUM(E28:E33) -> -129758.2963 | F36: =SUM(F28:F33) -> -254710.6141 | G36: -299885.5627 | H36: -17305765.85 | I36: -1639452.622 | J36: 6214331.965 | K36: 6342272.143 | L36: 6462965.044 | M36: 6595826.504 | N36: 6721538.095 | O36: 6859517.582 | P36: 6990448.502 | Q36: 7133750.626 | R36: 5527024.704 | S36: 7418947.089 | T36: 7560950.992 | U36: 7715545.271 | V36: 7835501.039 | W36: 6963236.009 | X36: 8148945.984 | Y36: 8315178.652 | Z36: 8474921.979 | AA36: 8647606.804 | AB36: =SUM(AB28:AB33) -> 8813929.998
B37: Cumulative Net Impacts | D37: =D36 -> 0 | E37: =D37+E36 -> -129758.2963 | F37: =E37+F36 -> -384468.9104 | G37: =F37+G36 -> -684354.473 | H37: =G37+H36 -> -17990120.33 | I37: -19629572.95 | J37: -13415240.98 | K37: -7072968.84 | L37: -610003.7951 | M37: 5985822.709 | N37: 12707360.8 | O37: 19566878.39 | P37: 26557326.89 | Q37: 33691077.51 | R37: 39218102.22 | S37: 46637049.31 | T37: 54198000.3 | U37: 61913545.57 | V37: 69749046.61 | W37: 76712282.62 | X37: 84861228.6 | Y37: 93176407.25 | Z37: 101651329.2 | AA37: 110298936 | AB37: 119112866
B39: Results - 7% Discount Rate, in 2017$
B40: Impact Category | C40: Total | D40: =Base.Year -> 2018 | E40: =D40+1 -> 2019 | F40: =E40+1 -> 2020 | G40: =F40+1 -> 2021 | H40: =G40+1 -> 2022 | I40: =H40+1 -> 2023 | J40: =I40+1 -> 2024 | K40: =J40+1 -> 2025 | L40: =K40+1 -> 2026 | M40: =L40+1 -> 2027 | N40: =M40+1 -> 2028 | O40: =N40+1 -> 2029 | P40: =O40+1 -> 2030 | Q40: =P40+1 -> 2031 | R40: =Q40+1 -> 2032 | S40: =R40+1 -> 2033 | T40: =S40+1 -> 2034 | U40: =T40+1 -> 2035 | V40: =U40+1 -> 2036 | W40: =V40+1 -> 2037 | X40: =W40+1 -> 2038 | Y40: =X40+1 -> 2039 | Z40: =Y40+1 -> 2040 | AA40: =Z40+1 -> 2041 | AB40: 2042
B41: Travel Time Savings | C41: =SUM(D41:AB41)/10^6 -> 21.71099259 | D41: ='Calc-1'!D37 -> 0 | E41: ='Calc-1'!E37 -> 0 | F41: ='Calc-1'!F37 -> 0 | G41: ='Calc-1'!G37 -> 0 | H41: ='Calc-1'!H37 -> 0 | I41: ='Calc-1'!I37 -> 223333.6069 | J41: ='Calc-1'!J37 -> 1683982.126 | K41: ='Calc-1'!K37 -> 1604966.142 | L41: ='Calc-1'!L37 -> 1529657.753 | M41: ='Calc-1'!M37 -> 1457882.993 | N41: ='Calc-1'!N37 -> 1389476.055 | O41: ='Calc-1'!O37 -> 1324278.915 | P41: ='Calc-1'!P37 -> 1262140.962 | Q41: ='Calc-1'!Q37 -> 1202918.652 | R41: ='Calc-1'!R37 -> 1146475.178 | S41: ='Calc-1'!S37 -> 1092680.15 | T41: ='Calc-1'!T37 -> 1041409.299 | U41: ='Calc-1'!U37 -> 992544.1831 | V41: ='Calc-1'!V37 -> 945971.9216 | W41: ='Calc-1'!W37 -> 901584.9286 | X41: ='Calc-1'!X37 -> 859280.6667 | Y41: ='Calc-1'!Y37 -> 818961.4098 | Z41: ='Calc-1'!Z37 -> 780534.0173 | AA41: ='Calc-1'!AA37 -> 743909.7189 | AB41: ='Calc-1'!AB37 -> 709003.9096
B42: Vehicle Operating Cost Savings | C42: =SUM(D42:AB42)/10^6 -> 20.99785516 | D42: ='Calc-2'!D35 -> 0 | E42: ='Calc-2'!E35 -> 0 | F42: ='Calc-2'!F35 -> 0 | G42: ='Calc-2'!G35 -> 0 | H42: ='Calc-2'!H35 -> 0 | I42: ='Calc-2'!I35 -> 695589.8471 | J42: ='Calc-2'!J35 -> 1591083.139 | K42: ='Calc-2'!K35 -> 1516426.17 | L42: ='Calc-2'!L35 -> 1445272.264 | M42: ='Calc-2'!M35 -> 1377457.048 | N42: ='Calc-2'!N35 -> 1312823.865 | O42: ='Calc-2'!O35 -> 1251223.407 | P42: ='Calc-2'!P35 -> 1192513.372 | Q42: ='Calc-2'!Q35 -> 1136558.135 | R42: ='Calc-2'!R35 -> 1083228.436 | S42: ='Calc-2'!S35 -> 1032401.079 | T42: ='Calc-2'!T35 -> 983958.6478 | U42: ='Calc-2'!U35 -> 937789.2377 | V42: ='Calc-2'!V35 -> 893786.1934 | W42: ='Calc-2'!W35 -> 851847.8646 | X42: ='Calc-2'!X35 -> 811877.3704 | Y42: ='Calc-2'!Y35 -> 773782.3759 | Z42: ='Calc-2'!Z35 -> 737474.8787 | AA42: ='Calc-2'!AA35 -> 702871.0056 | AB42: ='Calc-2'!AB35 -> 669890.8191
B43: Reduction in Accident Costs | C43: 11.23024136 | D43: ='Calc-3'!D43 -> 0 | E43: ='Calc-3'!E43 -> 0 | F43: ='Calc-3'!F43 -> 0 | G43: ='Calc-3'!G43 -> 0 | H43: ='Calc-3'!H43 -> 0 | I43: ='Calc-3'!I43 -> 372020.9427 | J43: ='Calc-3'!J43 -> 850955.8495 | K43: ='Calc-3'!K43 -> 811027.2105 | L43: ='Calc-3'!L43 -> 772972.1073 | M43: ='Calc-3'!M43 -> 736702.6296 | N43: ='Calc-3'!N43 -> 702134.9921 | O43: ='Calc-3'!O43 -> 669189.3409 | P43: ='Calc-3'!P43 -> 637789.569 | Q43: ='Calc-3'!Q43 -> 607863.1404 | R43: ='Calc-3'!R43 -> 579340.9229 | S43: ='Calc-3'!S43 -> 552157.0278 | T43: ='Calc-3'!T43 -> 526248.6582 | U43: ='Calc-3'!U43 -> 501555.9639 | V43: ='Calc-3'!V43 -> 478021.9027 | W43: ='Calc-3'!W43 -> 455592.1092 | X43: ='Calc-3'!X43 -> 434214.7689 | Y43: ='Calc-3'!Y43 -> 413840.4983 | Z43: ='Calc-3'!Z43 -> 394422.2313 | AA43: ='Calc-3'!AA43 -> 375915.1103 | AB43: ='Calc-3'!AB43 -> 358276.3824
B44: Environmental Cost Savings | C44: 0.1882769463 | D44: ='Cal-4'!D35 -> 0 | E44: ='Cal-4'!E35 -> 0 | F44: ='Cal-4'!F35 -> 0 | G44: ='Cal-4'!G35 -> 0 | H44: ='Cal-4'!H35 -> 0 | I44: ='Cal-4'!I35 -> 7902.917392 | J44: ='Cal-4'!J35 -> 18077.03011 | K44: ='Cal-4'!K35 -> 17228.81782 | L44: ='Cal-4'!L35 -> 16420.40544 | M44: ='Cal-4'!M35 -> 15649.92546 | N44: ='Cal-4'!N35 -> 14915.59803 | O44: ='Cal-4'!O35 -> 14215.72679 | P44: ='Cal-4'!P35 -> 13548.69498 | Q44: ='Cal-4'!Q35 -> 12912.9617 | R44: ='Cal-4'!R35 -> 12307.05837 | S44: ='Cal-4'!S35 -> 11729.58529 | T44: ='Cal-4'!T35 -> 11179.20847 | U44: ='Cal-4'!U35 -> 10654.65649 | V44: ='Cal-4'!V35 -> 1894.550018 | W44: ='Cal-4'!W35 -> 1805.653745 | X44: ='Cal-4'!X35 -> 1720.928672 | Y44: ='Cal-4'!Y35 -> 1640.179077 | Z44: ='Cal-4'!Z35 -> 1563.218424 | AA44: ='Cal-4'!AA35 -> 1489.868926 | AB44: ='Cal-4'!AB35 -> 1419.961141
B45: O&M Costs | C45: -0.898663756 | D45: =-('Project Data'!F$18-'Project Data'!F22)*'Project Data'!F$6 -> 0 | E45: =-('Project Data'!G$18-'Project Data'!G22)*'Project Data'!G$6 -> 42219.57812 | F45: =-('Project Data'!H$18-'Project Data'!H22)*'Project Data'!H$6 -> 39457.54964 | G45: =-('Project Data'!I$18-'Project Data'!I22)*'Project Data'!I$6 -> 0 | H45: =-('Project Data'!J$18-'Project Data'!J22)*'Project Data'!J$6 -> 0 | I45: =-('Project Data'!K$18-'Project Data'!K22)*'Project Data'!K$6 -> 0 | J45: =-('Project Data'!L$18-'Project Data'!L22)*'Project Data'!L$6 -> -3226.363955 | K45: =-('Project Data'!M$18-'Project Data'!M22)*'Project Data'!M$6 -> 0 | L45: =-('Project Data'!N$18-'Project Data'!N22)*'Project Data'!N$6 -> -2818.03123 | M45: =-('Project Data'!O$18-'Project Data'!O22)*'Project Data'!O$6 -> 0 | N45: =-('Project Data'!P$18-'Project Data'!P22)*'Project Data'!P$6 -> -2461.377614 | O45: =-('Project Data'!Q$18-'Project Data'!Q22)*'Project Data'!Q$6 -> 0 | P45: =-('Project Data'!R$18-'Project Data'!R22)*'Project Data'!R$6 -> -2149.862533 | Q45: =-('Project Data'!S$18-'Project Data'!S22)*'Project Data'!S$6 -> 0 | R45: =-('Project Data'!T$18-'Project Data'!T22)*'Project Data'!T$6 -> -677876.124 | S45: =-('Project Data'!U$18-'Project Data'!U22)*'Project Data'!U$6 -> 0 | T45: =-('Project Data'!V$18-'Project Data'!V22)*'Project Data'!V$6 -> -1640.119833 | U45: =-('Project Data'!W$18-'Project Data'!W22)*'Project Data'!W$6 -> 0 | V45: =-('Project Data'!X$18-'Project Data'!X22)*'Project Data'!X$6 -> -1432.544181 | W45: =-('Project Data'!Y$18-'Project Data'!Y22)*'Project Data'!Y$6 -> -285437.7751 | X45: =-('Project Data'!Z$18-'Project Data'!Z22)*'Project Data'!Z$6 -> -1251.239568 | Y45: =-('Project Data'!AA$18-'Project Data'!AA22)*'Project Data'!AA$6 -> 0 | Z45: =-('Project Data'!AB$18-'Project Data'!AB22)*'Project Data'!AB$6 -> -1092.881097 | AA45: =-('Project Data'!AC$18-'Project Data'!AC22)*'Project Data'!AC$6 -> 0 | AB45: =-('Project Data'!AD$18-'Project Data'!AD22)*'Project Data'!AD$6 -> -954.5646753
B46: =B33 -> Capital Costs | C46: -16.34045691 | D46: =-(('Project Data'!F$14)*'Project Data'!F$6) -> 0 | E46: =-(('Project Data'!G$14)*'Project Data'!G$6) -> -163489.0139 | F46: =-(('Project Data'!H$14)*'Project Data'!H$6) -> -261931.6645 | G46: =-(('Project Data'!I$14)*'Project Data'!I$6) -> -244795.9481 | H46: =-(('Project Data'!J$14)*'Project Data'!J$6) -> -13202485.91 | I46: =-(('Project Data'!K$14)*'Project Data'!K$6) -> -2467754.376 | J46: =-(('Project Data'!L$14)*'Project Data'!L$6) -> 0 | K46: =-(('Project Data'!M$14)*'Project Data'!M$6) -> 0 | L46: =-(('Project Data'!N$14)*'Project Data'!N$6) -> 0 | M46: =-(('Project Data'!O$14)*'Project Data'!O$6) -> 0 | N46: =-(('Project Data'!P$14)*'Project Data'!P$6) -> 0 | O46: =-(('Project Data'!Q$14)*'Project Data'!Q$6) -> 0 | P46: =-(('Project Data'!R$14)*'Project Data'!R$6) -> 0 | Q46: =-(('Project Data'!S$14)*'Project Data'!S$6) -> 0 | R46: =-(('Project Data'!T$14)*'Project Data'!T$6) -> 0 | S46: =-(('Project Data'!U$14)*'Project Data'!U$6) -> 0 | T46: =-(('Project Data'!V$14)*'Project Data'!V$6) -> 0 | U46: =-(('Project Data'!W$14)*'Project Data'!W$6) -> 0 | V46: =-(('Project Data'!X$14)*'Project Data'!X$6) -> 0 | W46: =-(('Project Data'!Y$14)*'Project Data'!Y$6) -> 0 | X46: =-(('Project Data'!Z$14)*'Project Data'!Z$6) -> 0 | Y46: =-(('Project Data'!AA$14)*'Project Data'!AA$6) -> 0 | Z46: =-(('Project Data'!AB$14)*'Project Data'!AB$6) -> 0 | AA46: =-(('Project Data'!AC$14)*'Project Data'!AC$6) -> 0 | AB46: =-(('Project Data'!AD$14)*'Project Data'!AD$6) -> 0
B47: Total Benefits | C47: =SUM(D47:AB47)/10^6 -> 54.12736605 | D47: =SUM(D41:D44) -> 0 | E47: =SUM(E41:E44) -> 0 | F47: 0 | G47: 0 | H47: 0 | I47: 1298847.314 | J47: 4144098.145 | K47: 3949648.34 | L47: 3764322.53 | M47: 3587692.596 | N47: 3419350.51 | O47: 3258907.39 | P47: 3105992.598 | Q47: 2960252.89 | R47: 2821351.596 | S47: 2688967.842 | T47: 2562795.813 | U47: 2442544.041 | V47: 2319674.568 | W47: 2210830.556 | X47: 2107093.735 | Y47: 2008224.463 | Z47: 1913994.346 | AA47: 1824185.704 | AB47: =SUM(AB41:AB44) -> 1738591.072
B48: Total Costs | C48: =SUM(D48:AB48)/10^6 -> -17.23912067 | D48: =SUM(D45:D46) -> 0 | E48: =SUM(E45:E46) -> -121269.4358 | F48: =SUM(F45:F46) -> -222474.1148 | G48: =SUM(G45:G46) -> -244795.9481 | H48: -13202485.91 | I48: -2467754.376 | J48: -3226.363955 | K48: 0 | L48: -2818.03123 | M48: 0 | N48: -2461.377614 | O48: 0 | P48: -2149.862533 | Q48: 0 | R48: -677876.124 | S48: 0 | T48: -1640.119833 | U48: 0 | V48: -1432.544181 | W48: -285437.7751 | X48: -1251.239568 | Y48: 0 | Z48: -1092.881097 | AA48: 0 | AB48: =SUM(AB45:AB46) -> -954.5646753
B49: Net Impacts | C49: =SUM(D49:AB49)/10^6 -> 36.88824538 | D49: =SUM(D41:D46) -> 0 | E49: =SUM(E41:E46) -> -121269.4358 | F49: -222474.1148 | G49: -244795.9481 | H49: -13202485.91 | I49: -1168907.062 | J49: 4140871.781 | K49: 3949648.34 | L49: 3761504.498 | M49: 3587692.596 | N49: 3416889.133 | O49: 3258907.39 | P49: 3103842.735 | Q49: 2960252.89 | R49: 2143475.472 | S49: 2688967.842 | T49: 2561155.693 | U49: 2442544.041 | V49: 2318242.024 | W49: 1925392.781 | X49: 2105842.495 | Y49: 2008224.463 | Z49: 1912901.465 | AA49: 1824185.704 | AB49: =SUM(AB41:AB46) -> 1737636.508
B50: Cumulative Net Impacts | D50: =D49 -> 0 | E50: =D50+E49 -> -121269.4358 | F50: =E50+F49 -> -343743.5506 | G50: -588539.4987 | H50: -13791025.41 | I50: -14959932.47 | J50: -10819060.69 | K50: -6869412.349 | L50: =K50+L49 -> -3107907.85 | M50: =L50+M49 -> 479784.7455 | N50: =M50+N49 -> 3896673.878 | O50: =N50+O49 -> 7155581.268 | P50: =O50+P49 -> 10259424 | Q50: 13219676.89 | R50: =Q50+R49 -> 15363152.36 | S50: =R50+S49 -> 18052120.21 | T50: =S50+T49 -> 20613275.9 | U50: =T50+U49 -> 23055819.94 | V50: =U50+V49 -> 25374061.97 | W50: 27299454.75 | X50: =W50+X49 -> 29405297.24 | Y50: =X50+Y49 -> 31413521.7 | Z50: =Y50+Z49 -> 33326423.17 | AA50: =Z50+AA49 -> 35150608.87 | AB50: 36888245.38
B52: Results - 3% Discount Rate, in 2017$
B53: Impact Category | C53: Total | D53: =Base.Year -> 2018 | E53: =D53+1 -> 2019 | F53: =E53+1 -> 2020 | G53: =F53+1 -> 2021 | H53: =G53+1 -> 2022 | I53: =H53+1 -> 2023 | J53: =I53+1 -> 2024 | K53: =J53+1 -> 2025 | L53: =K53+1 -> 2026 | M53: =L53+1 -> 2027 | N53: =M53+1 -> 2028 | O53: =N53+1 -> 2029 | P53: =O53+1 -> 2030 | Q53: =P53+1 -> 2031 | R53: =Q53+1 -> 2032 | S53: =R53+1 -> 2033 | T53: =S53+1 -> 2034 | U53: =T53+1 -> 2035 | V53: =U53+1 -> 2036 | W53: =V53+1 -> 2037 | X53: =W53+1 -> 2038 | Y53: =X53+1 -> 2039 | Z53: =Y53+1 -> 2040 | AA53: =Z53+1 -> 2041 | AB53: 2042
B54: Travel Time Savings | C54: =SUM(D54:AA54)/10^6 -> 35.32164411 | D54: ='Calc-1'!D38 -> 0 | E54: ='Calc-1'!E38 -> 0 | F54: ='Calc-1'!F38 -> 0 | G54: ='Calc-1'!G38 -> 0 | H54: ='Calc-1'!H38 -> 0 | I54: ='Calc-1'!I38 -> 270200.9333 | J54: ='Calc-1'!J38 -> 2116492.8 | K54: ='Calc-1'!K38 -> 2095519.69 | L54: ='Calc-1'!L38 -> 2074754.409 | M54: ='Calc-1'!M38 -> 2054194.899 | N54: ='Calc-1'!N38 -> 2033839.121 | O54: ='Calc-1'!O38 -> 2013685.056 | P54: ='Calc-1'!P38 -> 1993730.705 | Q54: ='Calc-1'!Q38 -> 1973974.09 | R54: ='Calc-1'!R38 -> 1954413.249 | S54: ='Calc-1'!S38 -> 1935046.245 | T54: ='Calc-1'!T38 -> 1915871.155 | U54: ='Calc-1'!U38 -> 1896886.078 | V54: ='Calc-1'!V38 -> 1878089.132 | W54: ='Calc-1'!W38 -> 1859478.451 | X54: ='Calc-1'!X38 -> 1841052.191 | Y54: ='Calc-1'!Y38 -> 1822808.523 | Z54: ='Calc-1'!Z38 -> 1804745.638 | AA54: ='Calc-1'!AA38 -> 1786861.745 | AB54: ='Calc-1'!AB38 -> 1769155.071
B55: Vehicle Operating Cost Savings | C55: 33.9593481 | D55: ='Calc-2'!D36 -> 0 | E55: ='Calc-2'!E36 -> 0 | F55: ='Calc-2'!F36 -> 0 | G55: ='Calc-2'!G36 -> 0 | H55: ='Calc-2'!H36 -> 0 | I55: ='Calc-2'!I36 -> 841561.7718 | J55: ='Calc-2'!J36 -> 1999733.819 | K55: ='Calc-2'!K36 -> 1979917.716 | L55: ='Calc-2'!L36 -> 1960297.978 | M55: ='Calc-2'!M36 -> 1940872.66 | N55: ='Calc-2'!N36 -> 1921639.834 | O55: ='Calc-2'!O36 -> 1902597.593 | P55: ='Calc-2'!P36 -> 1883744.049 | Q55: ='Calc-2'!Q36 -> 1865077.332 | R55: ='Calc-2'!R36 -> 1846595.59 | S55: ='Calc-2'!S36 -> 1828296.99 | T55: ='Calc-2'!T36 -> 1810179.718 | U55: ='Calc-2'!U36 -> 1792241.977 | V55: ='Calc-2'!V36 -> 1774481.988 | W55: ='Calc-2'!W36 -> 1756897.989 | X55: ='Calc-2'!X36 -> 1739488.236 | Y55: ='Calc-2'!Y36 -> 1722251.003 | Z55: ='Calc-2'!Z36 -> 1705184.58 | AA55: ='Calc-2'!AA36 -> 1688287.275 | AB55: ='Calc-2'!AB36 -> 1671557.411
B56: Reduction in Accident Costs | C56: 18.162411 | D56: ='Calc-3'!D44 -> 0 | E56: ='Calc-3'!E44 -> 0 | F56: ='Calc-3'!F44 -> 0 | G56: ='Calc-3'!G44 -> 0 | H56: ='Calc-3'!H44 -> 0 | I56: ='Calc-3'!I44 -> 450090.8186 | J56: ='Calc-3'!J44 -> 1069513.685 | K56: ='Calc-3'!K44 -> 1058915.478 | L56: ='Calc-3'!L44 -> 1048422.292 | M56: ='Calc-3'!M44 -> 1038033.087 | N56: ='Calc-3'!N44 -> 1027746.833 | O56: ='Calc-3'!O44 -> 1017562.509 | P56: ='Calc-3'!P44 -> 1007479.105 | Q56: ='Calc-3'!Q44 -> 997495.6219 | R56: ='Calc-3'!R44 -> 987611.0684 | S56: ='Calc-3'!S44 -> 977824.4646 | T56: ='Calc-3'!T44 -> 968134.8399 | U56: ='Calc-3'!U44 -> 958541.2333 | V56: ='Calc-3'!V44 -> 949042.6933 | W56: ='Calc-3'!W44 -> 939638.2778 | X56: ='Calc-3'!X44 -> 930327.0541 | Y56: ='Calc-3'!Y44 -> 921108.0989 | Z56: ='Calc-3'!Z44 -> 911980.4976 | AA56: ='Calc-3'!AA44 -> 902943.3452 | AB56: ='Calc-3'!AB44 -> 893995.7452
B57: Environmental Cost Savings | C57: 0.289837333 | D57: ='Cal-4'!D36 -> 0 | E57: ='Cal-4'!E36 -> 0 | F57: ='Cal-4'!F36 -> 0 | G57: ='Cal-4'!G36 -> 0 | H57: ='Cal-4'!H36 -> 0 | I57: ='Cal-4'!I36 -> 9561.37182 | J57: ='Cal-4'!J36 -> 22719.89915 | K57: ='Cal-4'!K36 -> 22494.75926 | L57: ='Cal-4'!L36 -> 22271.85036 | M57: ='Cal-4'!M36 -> 22051.15034 | N57: ='Cal-4'!N36 -> 21832.63733 | O57: ='Cal-4'!O36 -> 21616.28964 | P57: ='Cal-4'!P36 -> 21402.08582 | Q57: ='Cal-4'!Q36 -> 21190.00463 | R57: ='Cal-4'!R36 -> 20980.02503 | S57: ='Cal-4'!S36 -> 20772.12619 | T57: ='Cal-4'!T36 -> 20566.2875 | U57: ='Cal-4'!U36 -> 20362.48854 | V57: ='Cal-4'!V36 -> 3761.352442 | W57: ='Cal-4'!W36 -> 3724.079808 | X57: ='Cal-4'!X36 -> 3687.176522 | Y57: ='Cal-4'!Y36 -> 3650.638925 | Z57: ='Cal-4'!Z36 -> 3614.463392 | AA57: ='Cal-4'!AA36 -> 3578.646336 | AB57: ='Cal-4'!AB36 -> 3543.184204
B58: O&M Costs | C58: -1.683792513 | D58: =-(('Project Data'!F$18-'Project Data'!F22)*'Project Data'!F$7) -> 0 | E58: =-(('Project Data'!G$18-'Project Data'!G22)*'Project Data'!G$7) -> 43859.17338 | F58: =-(('Project Data'!H$18-'Project Data'!H22)*'Project Data'!H$7) -> 42581.72173 | G58: =-(('Project Data'!I$18-'Project Data'!I22)*'Project Data'!I$7) -> 0 | H58: =-(('Project Data'!J$18-'Project Data'!J22)*'Project Data'!J$7) -> 0 | I58: =-(('Project Data'!K$18-'Project Data'!K22)*'Project Data'!K$7) -> 0 | J58: =-(('Project Data'!L$18-'Project Data'!L22)*'Project Data'!L$7) -> -4055.01696 | K58: =-(('Project Data'!M$18-'Project Data'!M22)*'Project Data'!M$7) -> 0 | L58: =-(('Project Data'!N$18-'Project Data'!N22)*'Project Data'!N$7) -> -3822.242398 | M58: =-(('Project Data'!O$18-'Project Data'!O22)*'Project Data'!O$7) -> 0 | N58: =-(('Project Data'!P$18-'Project Data'!P22)*'Project Data'!P$7) -> -3602.830048 | O58: =-(('Project Data'!Q$18-'Project Data'!Q22)*'Project Data'!Q$7) -> 0 | P58: =-(('Project Data'!R$18-'Project Data'!R22)*'Project Data'!R$7) -> -3396.012865 | Q58: =-(('Project Data'!S$18-'Project Data'!S22)*'Project Data'!S$7) -> 0 | R58: =-(('Project Data'!T$18-'Project Data'!T22)*'Project Data'!T$7) -> -1155585.488 | S58: =-(('Project Data'!U$18-'Project Data'!U22)*'Project Data'!U$7) -> 0 | T58: =-(('Project Data'!V$18-'Project Data'!V22)*'Project Data'!V$7) -> -3017.313445 | U58: =-(('Project Data'!W$18-'Project Data'!W22)*'Project Data'!W$7) -> 0 | V58: =-(('Project Data'!X$18-'Project Data'!X22)*'Project Data'!X$7) -> -2844.10731 | W58: =-(('Project Data'!Y$18-'Project Data'!Y22)*'Project Data'!Y$7) -> -588702.6004 | X58: =-(('Project Data'!Z$18-'Project Data'!Z22)*'Project Data'!Z$7) -> -2680.843915 | Y58: =-(('Project Data'!AA$18-'Project Data'!AA22)*'Project Data'!AA$7) -> 0 | Z58: =-(('Project Data'!AB$18-'Project Data'!AB22)*'Project Data'!AB$7) -> -2526.952507 | AA58: =-(('Project Data'!AC$18-'Project Data'!AC22)*'Project Data'!AC$7) -> 0 | AB58: =-(('Project Data'!AD$18-'Project Data'!AD22)*'Project Data'!AD$7) -> -2381.895096
B59: =B46 -> Capital Costs | C59: -19.08851672 | D59: =-(('Project Data'!F$14)*'Project Data'!F$7) -> 0 | E59: =-(('Project Data'!G$14)*'Project Data'!G$7) -> -169838.1018 | F59: =-(('Project Data'!H$14)*'Project Data'!H$7) -> -282670.9046 | G59: =-(('Project Data'!I$14)*'Project Data'!I$7) -> -274437.7714 | H59: =-(('Project Data'!J$14)*'Project Data'!J$7) -> -15375948.81 | I59: =-(('Project Data'!K$14)*'Project Data'!K$7) -> -2985621.129 | J59: =-(('Project Data'!L$14)*'Project Data'!L$7) -> 0 | K59: =-(('Project Data'!M$14)*'Project Data'!M$7) -> 0 | L59: =-(('Project Data'!N$14)*'Project Data'!N$7) -> 0 | M59: =-(('Project Data'!O$14)*'Project Data'!O$7) -> 0 | N59: =-(('Project Data'!P$14)*'Project Data'!P$7) -> 0 | O59: =-(('Project Data'!Q$14)*'Project Data'!Q$7) -> 0 | P59: =-(('Project Data'!R$14)*'Project Data'!R$7) -> 0 | Q59: =-(('Project Data'!S$14)*'Project Data'!S$7) -> 0 | R59: =-(('Project Data'!T$14)*'Project Data'!T$7) -> 0 | S59: =-(('Project Data'!U$14)*'Project Data'!U$7) -> 0 | T59: =-(('Project Data'!V$14)*'Project Data'!V$7) -> 0 | U59: =-(('Project Data'!W$14)*'Project Data'!W$7) -> 0 | V59: =-(('Project Data'!X$14)*'Project Data'!X$7) -> 0 | W59: =-(('Project Data'!Y$14)*'Project Data'!Y$7) -> 0 | X59: =-(('Project Data'!Z$14)*'Project Data'!Z$7) -> 0 | Y59: =-(('Project Data'!AA$14)*'Project Data'!AA$7) -> 0 | Z59: =-(('Project Data'!AB$14)*'Project Data'!AB$7) -> 0 | AA59: =-(('Project Data'!AC$14)*'Project Data'!AC$7) -> 0 | AB59: =-(('Project Data'!AD$14)*'Project Data'!AD$7) -> 0
B60: Total Benefits | C60: 87.73324055 | D60: =SUM(D54:D57) -> 0 | E60: =SUM(E54:E57) -> 0 | F60: 0 | G60: 0 | H60: 0 | I60: 1571414.896 | J60: 5208460.203 | K60: 5156847.642 | L60: 5105746.53 | M60: 5055151.797 | N60: 5005058.426 | O60: 4955461.448 | P60: 4906355.946 | Q60: 4857737.048 | R60: 4809599.933 | S60: 4761939.826 | T60: 4714752.001 | U60: 4668031.777 | V60: 4605375.165 | W60: 4559738.797 | X60: 4514554.657 | Y60: 4469818.263 | Z60: 4425525.179 | AA60: 4381671.011 | AB60: =SUM(AB54:AB57) -> 4338251.411
B61: Total Costs | C61: -20.77230923 | D61: =SUM(D58:D59) -> 0 | E61: =SUM(E58:E59) -> -125978.9284 | F61: =SUM(F58:F59) -> -240089.1828 | G61: -274437.7714 | H61: -15375948.81 | I61: -2985621.129 | J61: -4055.01696 | K61: 0 | L61: -3822.242398 | M61: 0 | N61: -3602.830048 | O61: 0 | P61: -3396.012865 | Q61: 0 | R61: -1155585.488 | S61: 0 | T61: -3017.313445 | U61: 0 | V61: -2844.10731 | W61: -588702.6004 | X61: -2680.843915 | Y61: 0 | Z61: -2526.952507 | AA61: 0 | AB61: -2381.895096
B62: Net Impacts | C62: 66.96093131 | D62: =SUM(D54:D59) -> 0 | E62: =SUM(E54:E59) -> -125978.9284 | F62: -240089.1828 | G62: -274437.7714 | H62: -15375948.81 | I62: -1414206.233 | J62: 5204405.186 | K62: 5156847.642 | L62: 5101924.287 | M62: 5055151.797 | N62: 5001455.595 | O62: 4955461.448 | P62: 4902959.933 | Q62: 4857737.048 | R62: 3654014.445 | S62: 4761939.826 | T62: 4711734.687 | U62: 4668031.777 | V62: 4602531.058 | W62: 3971036.197 | X62: 4511873.813 | Y62: 4469818.263 | Z62: 4422998.227 | AA62: 4381671.011 | AB62: =SUM(AB54:AB59) -> 4335869.516
B63: Cumulative Net Impacts | D63: =D62 -> 0 | E63: =D63+E62 -> -125978.9284 | F63: =E63+F62 -> -366068.1113 | G63: -640505.8827 | H63: -16016454.7 | I63: -17430660.93 | J63: -12226255.74 | K63: -7069408.102 | L63: -1967483.815 | M63: 3087667.982 | N63: 8089123.577 | O63: 13044585.03 | P63: 17947544.96 | Q63: 22805282.01 | R63: 26459296.45 | S63: 31221236.28 | T63: 35932970.96 | U63: 40601002.74 | V63: 45203533.8 | W63: 49174570 | X63: 53686443.81 | Y63: 58156262.07 | Z63: 62579260.3 | AA63: 66960931.31 | AB63: 71296800.83

Sheet Report Tables
A2: Table ES-1
A3: Current Status or Baseline & Problems to be Addressed | B3: Changes to Baseline / Alternatives | C3: Type of Impacts | D3: Population Affected by Impacts | E3: Economic Benefit/Impact | F3: Summary of Results
A4: Bridgeport Bride over the South Canadian River is one of the historically significant bridges in Oklahoma and a key feature of the Oklahoma Route 66 National Scenic Byway. Currently Bridgeport bridge is a 2-lane undivided bridge assessed as being in poor conditions. If no action is taken, the bridge will be closed to all traffic in 2021. All travelers will be forced to take a lengthy detour. | B4: Full bridge replacement, a new structure along the same alignment, the same 24 feet width, and trusses on the outside of the structure for aesthetics. | C4: Safety: reduction in number of crashes due to avoidance of traffic detours | D4: Auto Users, Truck Operators, Tourist driving down Route 66 | E4: Reductions in fatalities, injuries, and property losses, reduction in accident costs on highway segment. | F4: $11.2 million in accident cost savings to auto users and truck operators.
C5: Economic Competitiveness: impact on travel times due to avoidance of traffic detours | D5: Auto Users, Truck Operators, Tourist driving down Route 66 | E5: Travel time savings to highway users. | F5: $21.7 million in travel time savings to auto users.
C6: Economic Competitiveness: impacts on vehicle operating costs due to avoidance of detours. | D6: Auto Users, Truck Operators, , Tourist driving down Route 66 | E6: Vehicle operating cost impacts to highway users. | F6: $21.0 million in vehicle operating costs
C7: Environmental Sustainability: impacts on vehicle emissions due to avoidance of traffic detours | D7: Citizens of Canadian and Caddo Counties | E7: Vehicle emissions cost savings. | F7: $0.2 million in vehicle emission
A10: Table ES-2
A11: Project Evaluation Metric | B11: Undiscounted | C11: Present Value at 7% Discount Rate | D11: Present Value at 3% Discount Rate
A12: Total Benefits | B12: =Results!D17 -> 143.387937 | C12: =Results!E17 -> 54.12736605 | D12: =Results!F17 -> 92.07149196
A13: Total O&M Costs | B13: =Results!D18 -> 2.733447532 | C13: =Results!E18 -> 0.898663756 | D13: =Results!F18 -> 1.686174408
A14: Total Costs | B14: =Results!D19 -> 21.54162339 | C14: =Results!E19 -> 16.34045691 | D14: =Results!F19 -> 19.08851672
A15: Net Present Value | B15: =Results!D20 -> 119.112866 | C15: =Results!E20 -> 36.88824538 | D15: =Results!F20 -> 71.29680083
A16: Benefit / Cost Ratio | B16: =Results!D22 -> 6.529428486 | C16: =Results!E22 -> 3.257479432 | D16: =Results!F22 -> 4.735062387
A17: Internal Rate of Return (%) | B17: =Results!D24 -> 0.2633990051
A20: Table 1
B21: Over the Project Lifecycle
B22: In Constant Dollars | C22: Discounted at 7 Percent | D22: Discounted at 3 Percent
A23: Construction & Development Costs | B23: =Results!D19 -> 21.54162339 | C23: =Results!E19 -> 16.34045691 | D23: =Results!F19 -> 19.08851672
A24: Operations and Maintenance | B24: =Results!D18 -> 2.733447532 | C24: =Results!E18 -> 0.898663756 | D24: =Results!F18 -> 1.686174408
A25: Total | B25: =SUM(B23:B24) -> 24.27507093 | C25: =SUM(C23:C24) -> 17.23912067 | D25: =SUM(D23:D24) -> 20.77469113
A27: Table 2
A28: Selection Criteria | B28: Benefit or Impact | C28: Description | D28: Monetized | E28: Quantified | F28: Qualitative
B29: Categories
A30: Travel Time Saving | B30: Reduction in travel times due to avoidance of detours/out-of-direction travel | C30: Travel time savings for roadway users due to avoided detours/out-of-direction travel; this applies to trucks for load-posted bridge and all vehicles for closed bridge. | D30: Yes
A31: Safety | B31: Reduction in number of traffic crashes, fatalities and injuries | C31: Reduction in property losses, injuries, and deaths due to reduction in detours/out-of-direction miles traveled | D31: Yes
A32: Economic Competitiveness | B32: Impacts on vehicle operating costs due avoidance of detours/out-of-direction travel | C32: Reduction in monetary costs to drivers due to avoided detours/out-of-direction miles traveled | D32: Yes
B33: Contribution to local economic development and growth | C33: The bridge is part of the scenic Bridgeport Hill-Hydro Route 66 Segment Historic District. The new bridge will continue serving tourists and area businesses. | F33: Yes
A34: Quality of Life | B34: Enjoyment of bridge as a tourist attraction | C34: The project will rehabilitate the bridge in its original design preserving its historical status as a tourist attraction. | F34: Yes
A35: Environmental Protection | B35: Impacts on vehicle emissions | C35: Reduction in air pollutants due to reduction in detours/out-of-direction travel | D35: Yes
A37: Table 3
A38: Data Item | B38: Unit | C38: Value | D38: Source
A39: Current Traffic Crossing Bridge | B39: ADT | C39: =Traffic!D6 -> 1800 | D39: Oklahoma Department Of Transportation's Collision Analysis and Safety Branch
A40: Future Traffic | B40: ADT | C40: 4100 | D40: Oklahoma Department Of Transportation's Collision Analysis and Safety Branch
A41: Average Annual Rate of Growth | B41: Percent | C41: =(C40/C39)^(1/(2060-2018))-1 -> 0.01979334859 | D41: Calculated from above.
A42: Truck Share | B42: Percent | C42: =Inputs!D20 -> 0.21 | D42: Oklahoma Department Of Transportation's Collision Analysis and Safety Branch
A44: Table 4
A45: Year | B45: Total ADT
A46: 2018 | B46: =Traffic!D6 -> 1800
A47: 2019 | B47: =Traffic!E6 -> 1835.628027
A48: 2020 (Construction Start) | B48: =Traffic!F6 -> 1871.961253
A49: 2023 (Project Completion, First Year of Benefits) | B49: =Traffic!I6 -> 1985.333086
A50: 2025 | B50: =Traffic!K6 -> 2064.703673
A51: …. | B51: ….
A52: 2041 | B52: =Traffic!AA6 -> 2825.221685
A53: 2042 | B53: =Traffic!AB6 -> 2881.142282
A56: Table 5
A57: Variable Name | B57: Unit | C57: Value | D57: Source
A58: Fatality | B58: $/Victim | C58: =AccidentCost_Fatality -> 9600000 | D58: =Inputs!E46 -> US DOT, Benefit-Cost Analysis Guidance for Discretionary Grants Program, December 2018.
A59: Injury | B59: $/Victim | C59: =AccidentCost_Injury -> 174000 | D59: =Inputs!E47 -> US DOT, Benefit-Cost Analysis Guidance for Discretionary Grants Program, December 2018.
A60: No Injury/ PDO | B60: $/PDO Crash | C60: =AccidentCost_PDO -> 4300 | D60: =Inputs!E48 -> US DOT, Benefit-Cost Analysis Guidance for Discretionary Grants Program, December 2018.
A61: Accident rate, current | B61: rate, number per million VMT | C61: =CrashRate_Bridge -> 122.49 | D61: =Inputs!E27 -> ODOT - Collision Analysis and Safety Branch. Crash rate for the bridge over period 2013-2018.
A62: Fatality | B62: =Inputs!C28 -> Number per 100m VMT | C62: =PercentFatal_Bridge -> 0 | D62: =Inputs!E28 -> Calculated from ODOT collision data for the bridge over period 2013-2018.
A63: Injury Accidents | B63: =Inputs!C29 -> Number per 100m VMT | C63: =PercentInjury_Bridge -> 17.5 | D63: =Inputs!E29 -> Calculated from ODOT collision data for the bridge over period 2013-2018.
A64: No injury/ PDO | B64: =Inputs!C30 -> Number per 100m VMT | C64: =PercentPDO_Bridge -> 104.99 | D64: =Inputs!E30 -> Calculated from ODOT collision data for the bridge over period 2013-2018.
A65: Accident rate, detour route | B65: rate, number per million VMT | C65: =CrashRate_Detour -> 66.37 | D65: =Inputs!E31 -> ODOT - Collision Analysis and Safety Branch. Crash rate for the detour route over period 2013-2018.
A66: Fatality | B66: =Inputs!C32 -> Number per 100m VMT | C66: =PercentFatal_Detour -> 1.19 | D66: =Inputs!E32 -> Calculated from ODOT collision data for the detour route over period 2013-2018.
A67: Injury Accidents | B67: =Inputs!C33 -> Number per 100m VMT | C67: =PercentInjury_Detour -> 20.242 | D67: =Inputs!E33 -> Calculated from ODOT collision data for the detour route over period 2013-2018.
A68: No injury/ PDO | B68: =Inputs!C34 -> Number per 100m VMT | C68: =PercentPDO_Detour -> 44.938 | D68: =Inputs!E34 -> Calculated from ODOT collision data for the detour route over period 2013-2018.
A69: =Inputs!B35 -> Number of injured per injury crash on bridge | B69: Number per Crash | C69: =Inputs!D35 -> 1 | D69: =Inputs!E35 -> Calculated from bridge crash statistics 2013 to 2018 provided By ODOT - Collision Analysis and Safety Branch.
A70: =Inputs!B36 -> Number of injured per injury crash on detour | B70: Number per Crash | C70: =Inputs!D36 -> 1.4 | D70: =Inputs!E36 -> Calculated from detour crash statistics 2013 to 2018 provided By ODOT - Collision Analysis and Safety Branch.
A71: Damaged vehicles per PDO crash | B71: Number per Crash | C71: =DamagedVeh_PDOcrash -> 1.31 | D71: =Inputs!E37 -> ODOT - Collision Analysis and Safety Branch. Number of damafed vehicles per PDO crash over period 2013-2018.
A73: Table 6
B74: In Constant Dollars | C74: Discounted at 7 Percent | D74: Discounted at 3 Percent
A76: Monetary Value of Safety Benefits | B76: =Results!D9 -> 29.6338131 | C76: =Results!E9 -> 11.23024136 | D76: =Results!F9 -> 19.05640675
A78: Table 7
A79: Data Item | B79: Unit | C79: Value | D79: Source and Comments
A80: Typical route
A81: Route length | B81: Miles | C81: =Inputs!D21 -> 5 | D81: =Inputs!E22 -> Calculated based on Google maps.
A82: Travel time | B82: Minutes | C82: =Inputs!D22 -> 5 | D82: =Inputs!E23 -> Calculated based on Google maps.
A83: Detour
A84: Full detour route length | B84: Miles | C84: =Inputs!D23 -> 11.5 | D84: =Inputs!E23 -> Calculated based on Google maps.
A85: Full detour travel time | B85: Minutes | C85: =Inputs!D24 -> 13 | D85: =Inputs!E24 -> Calculation based on posted speed and detour length.
A86: Auto Traffic that would take detour | B86: % | C86: =Inputs!D25 -> 1 | D86: =Inputs!E25 -> Assumption.
A87: =Inputs!B26 -> Truck Traffic that would be detoured | B87: =Inputs!C26 -> % | C87: =Inputs!D26 -> 1 | D87: =Inputs!E26 -> Assumption.
A88: Timing/date when bridge would be closed to traffic under no-build | B88: - | C88: =Inputs!D10 -> 2021-01-01 | D88: Engineering assessment.
A89: =Inputs!B49 -> Vehicle Operating Costs
A90: Passenger Vehicles | B90: $ per mile | C90: =OperatingCost_Passenger -> 0.39 | D90: =Inputs!E50 -> US DOT, Benefit-Cost Analysis Guidance for Discretionary Grants Program, December 2018.
A91: Trucks | B91: $ per mile | C91: =OperatingCost_Trucks -> 0.9 | D91: =Inputs!E51 -> US DOT, Benefit-Cost Analysis Guidance for Discretionary Grants Program, December 2018.
A94: Table 8
B95: In Constant Dollars | C95: Discounted at 7 Percent | D95: Discounted at 3 Percent
A97: Monetary Value of Travel Time Saving | B97: =Results!D7 -> 57.92391763 | C97: =Results!E7 -> 21.71099259 | D97: =Results!F7 -> 37.09079918
A98: Monetary Value of Vehicle Operating Cost Savings | B98: =Results!D8 -> 55.40811593 | C98: =Results!E8 -> 20.99785516 | D98: =Results!F8 -> 35.63090551
A99: Total | B99: =SUM(B97:B98) -> 113.3320336 | C99: =SUM(C97:C98) -> 42.70884774 | D99: 72.72170469
A102: Table 9
A103: Variable Name | B103: Unit | C103: Value | D103: Source
A104: Nitrogen Oxides (NOx) | B104: $ per metric ton | C104: =Inputs!D55 -> 8300 | D104: US DOT, Benefit-Cost Analysis Guidance for Discretionary Grants Program, December 2018.
A105: Fine Particulate Matter (PM2.5) | B105: $ per metric ton | C105: =Inputs!D56 -> 377800 | D105: US DOT, Benefit-Cost Analysis Guidance for Discretionary Grants Program, December 2018.
A106: Sulfur Dioxide (SO2) | B106: $ per metric ton | C106: =Inputs!D57 -> 48900 | D106: US DOT, Benefit-Cost Analysis Guidance for Discretionary Grants Program, December 2018.
A107: Volatile Organic Compounds (VOC) | B107: $ per metric ton | C107: =Inputs!D58 -> 2000 | D107: US DOT, Benefit-Cost Analysis Guidance for Discretionary Grants Program, December 2018.
A108: Calculated Aggregate Emission Costs, 2019-2035
A109: Auto | B109: $/mile | C109: =EmissionCost_Auto1 -> 0.00223296 | D109: Calculated by HDR for assumed average speed of 65mph.
A110: Truck | B110: $/mile | C110: =EmissionCost_Truck1 -> 0.01849402 | D110: Calculated by HDR for assumed average speed of 65mph.
A111: Calculated Aggregate Emission Costs, 2036-2041
A112: Auto | B112: $/mile | C112: =EmissionCost_Auto2 -> 0.00073332 | D112: Calculated by HDR for assumed average speed of 65mph.
A113: Truck | B113: $/mile | C113: =EmissionCost_Truck2 -> 0.00225893 | D113: Calculated by HDR for assumed average speed of 65mph.
A115: Table 10
B116: In Constant Dollars | C116: Discounted at 7 Percent | D116: Discounted at 3 Percent
A118: Monetary Value of Environmental Benefits | B118: =Results!D10 -> 0.422090301 | C118: =Results!E10 -> 0.1882769463 | D118: =Results!F10 -> 0.2933805172
A120: Table 11
A121: Project Evaluation Metric | B121: Undiscounted | C121: Present Value at 7% Discount Rate | D121: Present Value at 3% Discount Rate
A122: Total Discounted Benefits | B122: =Results!D17 -> 143.387937 | C122: =Results!E17 -> 54.12736605 | D122: =Results!F17 -> 92.07149196
A123: Total O&M Costs | B123: =Results!D18 -> 2.733447532 | C123: =Results!E18 -> 0.898663756 | D123: =Results!F18 -> 1.686174408
A124: Total Discounted Costs | B124: =Results!D19 -> 21.54162339 | C124: =Results!E19 -> 16.34045691 | D124: =Results!F19 -> 19.08851672
A125: Net Present Value | B125: =Results!D20 -> 119.112866 | C125: =Results!E20 -> 36.88824538 | D125: =Results!F20 -> 71.29680083
A126: Benefit / Cost Ratio | B126: =Results!D22 -> 6.529428486 | C126: =Results!E22 -> 3.257479432 | D126: =Results!F22 -> 4.735062387
A127: Internal Rate of Return (%) | B127: =Results!D24 -> 0.2633990051
A129: Table 12
A130: Benefit Categories | B130: Over Project Lifecycle
B131: Undiscounted | C131: Present Value at 7% Discount Rate | D131: Present Value at 3% Discount Rate | E131: Distribution
A132: Travel Time Savings | B132: =Results!D7 -> 57.92391763 | C132: =Results!E7 -> 21.71099259 | D132: =Results!F7 -> 37.09079918 | E132: =C132/$C$136 -> 0.4011093496
A133: Vehicle Operating Cost Savings | B133: =Results!D8 -> 55.40811593 | C133: =Results!E8 -> 20.99785516 | D133: =Results!F8 -> 35.63090551 | E133: =C133/$C$136 -> 0.3879341762
A134: Reduction in Accident Costs | B134: =Results!D9 -> 29.6338131 | C134: =Results!E9 -> 11.23024136 | D134: =Results!F9 -> 19.05640675 | E134: =C134/$C$136 -> 0.2074780684
A135: Environmental Cost Savings | B135: =Results!D10 -> 0.422090301 | C135: =Results!E10 -> 0.1882769463 | D135: =Results!F10 -> 0.2933805172 | E135: 0.003478405843
A136: Total Benefits | B136: =SUM(B132:B135) -> 143.387937 | C136: =SUM(C132:C135) -> 54.12736605 | D136: 92.07149196
A138: Table 13
A139: Parameters | B139: Change in Parameter Value
C140: New NPV | D140: % Change in NPV | E140: New B/C Ratio
A141: Value of Travel Time | B141: Lower Bound of Range Recommended by US DOT | C141: 30.8292857 | D141: =(C141-Results!$E$13)/Results!$E$13 -> -0.1642517722 | E141: 2.895936057
B142: Upper Bound of Range Recommended by US DOT | C142: 41.15322536 | D142: =(C142-Results!$E$13)/Results!$E$13 -> 0.115618944 | E142: 3.527738442
A143: Value of Statistical Life | B143: Lower Bound of Range Recommended by US DOT ($5.4 million) | C143: 33.15306218 | D143: =(C143-Results!$E$13)/Results!$E$13 -> -0.1012567327 | E143: 3.035021157
B144: Upper Bound of Range Recommended by US DOT ($13.4 million) | C144: 40.26769685 | D144: =(C144-Results!$E$13)/Results!$E$13 -> 0.09161323438 | E144: 3.476373342
A145: Capital Cost Estimate | B145: 25% Reduction | C145: 40.97335961 | D145: =(C145-Results!$E$13)/Results!$E$13 -> 0.1107429802 | E145: 4.343305909
B146: 25% Increase | C146: 32.80313115 | D146: =(C146-Results!$E$13)/Results!$E$13 -> -0.1107429802 | E146: 2.605983545
A147: Rate of Growth in Traffic | B147: Reduction from 1.98% to 1% Annually | C147: 30.54831489 | D147: =(C147-Results!$E$13)/Results!$E$13 -> -0.1718685837 | E147: 2.869489639

Sheet Inputs
B2: General Inputs
B4: General Inputs | C4: Units | D4: Value | E4: Source/Comment
B5: Real Discount Factor | C5: % | D5: 0.07 | E5: US DOT, Benefit-Cost Analysis Guidance for Discretionary Grants Program, December 2018.
B6: Real Discount Factor - Sensitivity | C6: % | D6: 0.03 | E6: US DOT, Benefit-Cost Analysis Guidance for Discretionary Grants Program, December 2018.
B7: Base Year of Analysis | C7: - | D7: 2018 | E7: US DOT, Benefit-Cost Analysis Guidance for Discretionary Grants Program, December 2018.
B8: First Year of Benefits | C8: - | D8: 2022 | E8: Assumption.
B9: End Year of Analysis | C9: - | D9: =D8+20 -> 2042 | E9: Assuming 20 years of benefits.
B10: First Year of Bridge Closures under No-Build | C10: - | D10: 2021-01-01 | E10: Engineering assessment.
B11: National Bridge Inventory (NBI) Identifier (Bridge #) | C11: Number | D11: 40850000000000 | E11: NBI.
B12: Time/Data start construction | C12: - | D12: 2022-01-01 | E12: Engineering assessment.
B13: Time/Data end construction | C13: - | D13: 2023-07-25 | E13: Engineering assessment. This implies the start of project benefits in August 2023.
B14: GDP Deflator 2017-2019 | C14: Index | D14: 1.032651978 | E14: Office of Management and Budget- Table 10.1 Gross Domestic Product and Deflators used in the historical Tables: 1940-2024.
B16: Traffic Inputs | C16: Units | D16: Value | E16: Source/Comment
B17: Current traffic (2018) | C17: ADT | D17: 1800 | E17: Oklahoma Department of Transportation (ODOT), See tab "Traffic Projection".
B18: Future Traffic (2060) | C18: ADT | D18: 4100 | E18: ODOT, See tab "Traffic Projection".
B19: Traffic Rate of Growth | C19: % | D19: =(D18/D17)^(1/(2060-2018))-1 -> 0.01979334859 | E19: Calculated from above.
B20: Percent of Truck Traffic | C20: % | D20: 0.21 | E20: ODOT's Collision Analysis and Safety Branch.
B21: Typical Route Length | C21: Miles | D21: 5 | E21: Calculated based on Google maps.
B22: Typical Route Travel Time | C22: Minutes | D22: 5 | E22: Calculated based on Google maps.
B23: Detour Route Length | C23: Miles | D23: 11.5 | E23: Calculated based on Google maps.
B24: Detour Route Travel Time | C24: Minutes | D24: 13 | E24: Calculation based on posted speed and detour length.
B25: Auto Traffic that would be detoured | C25: % | D25: 1 | E25: Assumption.
B26: Truck Traffic that would be detoured | C26: % | D26: 1 | E26: Assumption.
B27: Crash Rate on Bridge | C27: Number per 100m VMT | D27: 122.49 | E27: ODOT - Collision Analysis and Safety Branch. Crash rate for the bridge over period 2013-2018.
B28: Fatal Accidents | C28: Number per 100m VMT | D28: 0 | E28: Calculated from ODOT collision data for the bridge over period 2013-2018.
B29: Injury Accidents | C29: Number per 100m VMT | D29: 17.5 | E29: Calculated from ODOT collision data for the bridge over period 2013-2018.
B30: PDO Accidents | C30: Number per 100m VMT | D30: 104.99 | E30: Calculated from ODOT collision data for the bridge over period 2013-2018.
B31: Crash Rate on Detour Route | C31: Number per 100m VMT | D31: 66.37 | E31: ODOT - Collision Analysis and Safety Branch. Crash rate for the detour route over period 2013-2018.
B32: Fatal Accidents | C32: Number per 100m VMT | D32: 1.19 | E32: Calculated from ODOT collision data for the detour route over period 2013-2018.
B33: Injury Accidents | C33: Number per 100m VMT | D33: 20.242 | E33: Calculated from ODOT collision data for the detour route over period 2013-2018.
B34: PDO Accidents | C34: Number per 100m VMT | D34: 44.938 | E34: Calculated from ODOT collision data for the detour route over period 2013-2018.
B35: Number of injured per injury crash on bridge | C35: Number per event | D35: 1 | E35: Calculated from bridge crash statistics 2013 to 2018 provided By ODOT - Collision Analysis and Safety Branch.
B36: Number of injured per injury crash on detour | C36: Number per event | D36: 1.4 | E36: Calculated from detour crash statistics 2013 to 2018 provided By ODOT - Collision Analysis and Safety Branch.
B37: Number of damaged vehicles per PDO crash | C37: Number per event | D37: 1.31 | E37: ODOT - Collision Analysis and Safety Branch. Number of damafed vehicles per PDO crash over period 2013-2018.
B38: Average Vehicle Occupancy | C38: persons per vehicle | D38: 1.68 | E38: US DOT, Benefit-Cost Analysis Guidance for Discretionary Grants Program, December 2018.
B39: Annualization Factor | C39: Number | D39: 365
B41: Valuation Parameters | C41: Units | D41: Value | E41: Source/Comment
B42: Value of Time
B43: Autos | C43: $/h | D43: 14.8 | E43: US DOT, Benefit-Cost Analysis Guidance for Discretionary Grants Program, December 2018.
B44: Trucks | C44: $/h | D44: 28.6 | E44: US DOT, Benefit-Cost Analysis Guidance for Discretionary Grants Program, December 2018.
B45: Accident Costs
B46: Fatality | C46: $/Victim | D46: 9600000 | E46: US DOT, Benefit-Cost Analysis Guidance for Discretionary Grants Program, December 2018.
B47: Injury | C47: $/Victim | D47: 174000 | E47: US DOT, Benefit-Cost Analysis Guidance for Discretionary Grants Program, December 2018.
B48: No Injury/ PDO | C48: $/vehicle | D48: 4300 | E48: US DOT, Benefit-Cost Analysis Guidance for Discretionary Grants Program, December 2018.
B49: Vehicle Operating Costs
B50: Passenger Vehicles | C50: $ per mile | D50: 0.39 | E50: US DOT, Benefit-Cost Analysis Guidance for Discretionary Grants Program, December 2018.
B51: Trucks | C51: $ per mile | D51: 0.9 | E51: US DOT, Benefit-Cost Analysis Guidance for Discretionary Grants Program, December 2018.
B53: Emissions Inputs | C53: Units | D53: Value | E53: Source/Comment
B54: Emission Cost
B55: NOX | C55: $/metric tonne | D55: 8300 | E55: US DOT, Benefit-Cost Analysis Guidance for Discretionary Grants Program, December 2018.
B56: PM | C56: $/metric tonne | D56: 377800 | E56: US DOT, Benefit-Cost Analysis Guidance for Discretionary Grants Program, December 2018.
B57: SOX | C57: $/metric tonne | D57: 48900 | E57: US DOT, Benefit-Cost Analysis Guidance for Discretionary Grants Program, December 2018.
B58: VOC | C58: $/metric tonne | D58: 2000 | E58: US DOT, Benefit-Cost Analysis Guidance for Discretionary Grants Program, December 2018.

Sheet Traffic
A2: Traffic Projections
B4: Unit | C4: Value | D4: =Inputs!D7 -> 2018 | E4: =D4+1 -> 2019 | F4: 2020 | G4: 2021 | H4: 2022 | I4: 2023 | J4: 2024 | K4: 2025 | L4: 2026 | M4: 2027 | N4: 2028 | O4: 2029 | P4: 2030 | Q4: 2031 | R4: 2032 | S4: 2033 | T4: 2034 | U4: 2035 | V4: 2036 | W4: 2037 | X4: 2038 | Y4: 2039 | Z4: 2040 | AA4: 2041 | AB4: 2042
A6: Total Traffic | B6: ADT | D6: =Inputs!D17 -> 1800 | E6: =D6*(1+Inputs!$D$19) -> 1835.628027 | F6: =E6*(1+Inputs!$D$19) -> 1871.961253 | G6: =F6*(1+Inputs!$D$19) -> 1909.013635 | H6: =G6*(1+Inputs!$D$19) -> 1946.799407 | I6: =H6*(1+Inputs!$D$19) -> 1985.333086 | J6: =I6*(1+Inputs!$D$19) -> 2024.629476 | K6: =J6*(1+Inputs!$D$19) -> 2064.703673 | L6: =K6*(1+Inputs!$D$19) -> 2105.571073 | M6: =L6*(1+Inputs!$D$19) -> 2147.247375 | N6: =M6*(1+Inputs!$D$19) -> 2189.748591 | O6: =N6*(1+Inputs!$D$19) -> 2233.091048 | P6: =O6*(1+Inputs!$D$19) -> 2277.291397 | Q6: =P6*(1+Inputs!$D$19) -> 2322.36662 | R6: =Q6*(1+Inputs!$D$19) -> 2368.334032 | S6: =R6*(1+Inputs!$D$19) -> 2415.211293 | T6: =S6*(1+Inputs!$D$19) -> 2463.016412 | U6: =T6*(1+Inputs!$D$19) -> 2511.767754 | V6: =U6*(1+Inputs!$D$19) -> 2561.484049 | W6: =V6*(1+Inputs!$D$19) -> 2612.184396 | X6: =W6*(1+Inputs!$D$19) -> 2663.888272 | Y6: =X6*(1+Inputs!$D$19) -> 2716.615541 | Z6: =Y6*(1+Inputs!$D$19) -> 2770.38646 | AA6: =Z6*(1+Inputs!$D$19) -> 2825.221685 | AB6: =AA6*(1+Inputs!$D$19) -> 2881.142282
A7: Share of Traffic - Auto | B7: % | D7: =1-ShareTruck -> 0.79 | E7: 0.79 | F7: 0.79 | G7: 0.79 | H7: 0.79 | I7: 0.79 | J7: 0.79 | K7: 0.79 | L7: 0.79 | M7: 0.79 | N7: 0.79 | O7: 0.79 | P7: 0.79 | Q7: 0.79 | R7: 0.79 | S7: 0.79 | T7: 0.79 | U7: 0.79 | V7: 0.79 | W7: 0.79 | X7: 0.79 | Y7: 0.79 | Z7: 0.79 | AA7: 0.79 | AB7: 0.79
A8: Share of Traffic - Trucks | B8: % | D8: =Inputs!$D$20 -> 0.21 | E8: =Inputs!$D$20 -> 0.21 | F8: =Inputs!$D$20 -> 0.21 | G8: =Inputs!$D$20 -> 0.21 | H8: =Inputs!$D$20 -> 0.21 | I8: =Inputs!$D$20 -> 0.21 | J8: =Inputs!$D$20 -> 0.21 | K8: =Inputs!$D$20 -> 0.21 | L8: =Inputs!$D$20 -> 0.21 | M8: =Inputs!$D$20 -> 0.21 | N8: =Inputs!$D$20 -> 0.21 | O8: =Inputs!$D$20 -> 0.21 | P8: =Inputs!$D$20 -> 0.21 | Q8: =Inputs!$D$20 -> 0.21 | R8: =Inputs!$D$20 -> 0.21 | S8: =Inputs!$D$20 -> 0.21 | T8: =Inputs!$D$20 -> 0.21 | U8: =Inputs!$D$20 -> 0.21 | V8: =Inputs!$D$20 -> 0.21 | W8: =Inputs!$D$20 -> 0.21 | X8: =Inputs!$D$20 -> 0.21 | Y8: =Inputs!$D$20 -> 0.21 | Z8: =Inputs!$D$20 -> 0.21 | AA8: =Inputs!$D$20 -> 0.21 | AB8: =Inputs!$D$20 -> 0.21
A10: Daily VMT with Bridge Detour | B10: Unit | C10: Value | D10: =Inputs!D7 -> 2018 | E10: =D10+1 -> 2019 | F10: 2020 | G10: 2021 | H10: 2022 | I10: 2023 | J10: 2024 | K10: 2025 | L10: 2026 | M10: 2027 | N10: 2028 | O10: 2029 | P10: 2030 | Q10: 2031 | R10: 2032 | S10: 2033 | T10: 2034 | U10: 2035 | V10: 2036 | W10: 2037 | X10: 2038 | Y10: 2039 | Z10: 2040 | AA10: 2041 | AB10: 2042
A11: Total Daily VMT with Bridge Detour | B11: Daily VMT | D11: =D12+D13 -> 20700 | E11: =E12+E13 -> 21109.72232 | F11: 21527.55441 | G11: 21953.6568 | H11: 22388.19318 | I11: 22831.33049 | J11: 23283.23897 | K11: 23744.09224 | L11: 24214.06733 | M11: 24693.34481 | N11: 25182.10879 | O11: 25680.54705 | P11: 26188.85107 | Q11: 26707.21613 | R11: 27235.84137 | S11: 27774.92987 | T11: 28324.68874 | U11: 28885.32918 | V11: 29457.06657 | W11: 30040.12055 | X11: 30634.71513 | Y11: 31241.07873 | Z11: 31859.44429 | AA11: 32490.04938 | AB11: 33133.13625
A12: Auto Daily VMT with Bridge Detour | B12: Daily VMT | D12: =D6*(1-(D8))*DetourLength*AutoDetour -> 16353 | E12: 16676.68063 | F12: 17006.76798 | G12: 17343.38887 | H12: 17686.67261 | I12: 18036.75109 | J12: 18393.75879 | K12: 18757.83287 | L12: 19129.11319 | M12: 19507.7424 | N12: 19893.86595 | O12: 20287.63217 | P12: 20689.19234 | Q12: 21098.70074 | R12: 21516.31468 | S12: 21942.1946 | T12: 22376.5041 | U12: 22819.41005 | V12: 23271.08259 | W12: 23731.69524 | X12: 24201.42495 | Y12: 24680.45219 | Z12: 25168.96099 | AA12: 25667.13901 | AB12: 26175.17764
A13: Trucks Daily VMT with Bridge Detour | B13: Daily VMT | D13: =D6*D8*DetourLength*TruckDetour -> 4347 | E13: 4433.041686 | F13: 4520.786426 | G13: 4610.267927 | H13: 4701.520568 | I13: 4794.579403 | J13: 4889.480185 | K13: 4986.25937 | L13: 5084.95414 | M13: 5185.60241 | N13: 5288.242846 | O13: 5392.91488 | P13: 5499.658725 | Q13: 5608.515387 | R13: 5719.526687 | S13: 5832.735273 | T13: 5948.184635 | U13: 6065.919127 | V13: 6185.983979 | W13: 6308.425316 | X13: 6433.290177 | Y13: 6560.626533 | Z13: 6690.483301 | AA13: 6822.910369 | AB13: 6957.958612
A15: Daily VMT with Bridge Operational | B15: Unit | C15: Value | D15: =Inputs!D7 -> 2018 | E15: =D15+1 -> 2019 | F15: 2020 | G15: 2021 | H15: 2022 | I15: 2023 | J15: 2024 | K15: 2025 | L15: 2026 | M15: 2027 | N15: 2028 | O15: 2029 | P15: 2030 | Q15: 2031 | R15: 2032 | S15: 2033 | T15: 2034 | U15: 2035 | V15: 2036 | W15: 2037 | X15: 2038 | Y15: 2039 | Z15: 2040 | AA15: 2041 | AB15: 2042
A16: Total Daily VMT with Bridge | B16: Daily VMT | D16: =D17+D18 -> 9000 | E16: =E17+E18 -> 9178.140137 | F16: 9359.806265 | G16: 9545.068173 | H16: 9733.997034 | I16: 9926.665431 | J16: 10123.14738 | K16: 10323.51837 | L16: 10527.85536 | M16: 10736.23687 | N16: 10948.74295 | O16: 11165.45524 | P16: 11386.45699 | Q16: 11611.8331 | R16: 11841.67016 | S16: 12076.05646 | T16: 12315.08206 | U16: 12558.83877 | V16: 12807.42025 | W16: 13060.92198 | X16: 13319.44136 | Y16: 13583.07771 | Z16: 13851.9323 | AA16: 14126.10842 | AB16: 14405.71141
A17: Auto Daily VMT with Bridge | B17: Daily VMT | D17: =D6*(1-D8)*BridgeLength -> 7110 | E17: 7250.730709 | F17: 7394.246949 | G17: 7540.603856 | H17: 7689.857657 | I17: 7842.06569 | J17: 7997.28643 | K17: 8155.579508 | L17: 8317.005737 | M17: 8481.62713 | N17: 8649.506933 | O17: 8820.709639 | P17: 8995.30102 | Q17: 9173.348148 | R17: 9354.919426 | S17: 9540.084607 | T17: 9728.914827 | U17: 9921.48263 | V17: 10117.86199 | W17: 10318.12836 | X17: 10522.35868 | Y17: 10730.63139 | Z17: 10943.02652 | AA17: 11159.62565 | AB17: 11380.51202
A18: Trucks Daily VMT with Bridge | B18: Daily VMT | D18: =D6*D8*BridgeLength -> 1890 | E18: 1927.409429 | F18: 1965.559316 | G18: 2004.464316 | H18: 2044.139377 | I18: 2084.59974 | J18: 2125.86095 | K18: 2167.938857 | L18: 2210.849626 | M18: 2254.609744 | N18: 2299.23602 | O18: 2344.7456 | P18: 2391.155967 | Q18: 2438.484951 | R18: 2486.750733 | S18: 2535.971858 | T18: 2586.167233 | U18: 2637.356142 | V18: 2689.558252 | W18: 2742.793616 | X18: 2797.082686 | Y18: 2852.446319 | Z18: 2908.905783 | AA18: 2966.482769 | AB18: 3025.199397
A20: Key Quantified Impacts
A21: Total Daily Auto VMT Avoided with Bridge Operational | B21: Daily VMT | D21: =(SUM(D12:D12)-SUM(D17:D17)) -> 9243 | E21: 9425.949921 | F21: 9612.521034 | G21: 9802.785013 | H21: 9996.814954 | I21: 10194.6854 | J21: 10396.47236 | K21: 10602.25336 | L21: 10812.10746 | M21: 11026.11527 | N21: 11244.35901 | O21: 11466.92253 | P21: 11693.89133 | Q21: 11925.35259 | R21: 12161.39525 | S21: 12402.10999 | T21: 12647.58928 | U21: 12897.92742 | V21: 13153.22059 | W21: 13413.56687 | X21: 13679.06628 | Y21: 13949.82081 | Z21: 14225.93447 | AA21: 14507.51335 | AB21: 14794.66562
A22: Total Daily Trucks VMT Avoided with Bridge Operational | B22: Daily VMT | D22: =D13-D18 -> 2457 | E22: 2505.632257 | F22: 2555.22711 | G22: 2605.803611 | H22: 2657.38119 | I22: 2709.979663 | J22: 2763.619235 | K22: 2818.320514 | L22: 2874.104514 | M22: 2930.992667 | N22: 2989.006826 | O22: 3048.16928 | P22: 3108.502757 | Q22: 3170.030436 | R22: 3232.775954 | S22: 3296.763415 | T22: 3362.017402 | U22: 3428.562985 | V22: 3496.425727 | W22: 3565.6317 | X22: 3636.207492 | Y22: 3708.180214 | Z22: 3781.577518 | AA22: 3856.4276 | AB22: 3932.759216

Sheet Calc-1
A2: Travel Time Saving due to Closure Avoidance
H3: 2022 - First Year of Construction under Build (Bridge Close)
G4: 2021 - First Year of Bridge Closured under No-Build
B5: Unit | C5: Value | D5: =Base.Year -> 2018 | E5: =D5+1 -> 2019 | F5: 2020 | G5: 2021 | H5: 2022 | I5: 2023 | J5: 2024 | K5: 2025 | L5: 2026 | M5: 2027 | N5: 2028 | O5: 2029 | P5: 2030 | Q5: 2031 | R5: 2032 | S5: 2033 | T5: 2034 | U5: 2035 | V5: 2036 | W5: 2037 | X5: 2038 | Y5: 2039 | Z5: 2040 | AA5: 2041 | AB5: 2042
A6: Benefits Index | D6: 0 | E6: 0 | F6: 0 | G6: =F6+1 -> 1 | H6: =G6+1 -> 2 | I6: 3 | J6: 4 | K6: 5 | L6: 6 | M6: 7 | N6: 8 | O6: 9 | P6: 10 | Q6: 11 | R6: 12 | S6: 13 | T6: 14 | U6: 15 | V6: 16 | W6: 17 | X6: 18 | Y6: 19 | Z6: 20 | AA6: 21 | AB6: 22
A7: Discount Factor | B7: % | C7: 0.07 | D7: =1/(1+Inputs!$D$5)^(D5-$D$5) -> 1 | E7: =1/(1+Inputs!$D$5)^(E5-$D$5) -> 0.9345794393 | F7: =1/(1+Inputs!$D$5)^(F5-$D$5) -> 0.8734387283 | G7: =1/(1+Inputs!$D$5)^(G5-$D$5) -> 0.8162978769 | H7: =1/(1+Inputs!$D$5)^(H5-$D$5) -> 0.762895212 | I7: =1/(1+Inputs!$D$5)^(I5-$D$5) -> 0.7129861795 | J7: =1/(1+Inputs!$D$5)^(J5-$D$5) -> 0.6663422238 | K7: =1/(1+Inputs!$D$5)^(K5-$D$5) -> 0.6227497419 | L7: =1/(1+Inputs!$D$5)^(L5-$D$5) -> 0.5820091046 | M7: =1/(1+Inputs!$D$5)^(M5-$D$5) -> 0.5439337426 | N7: =1/(1+Inputs!$D$5)^(N5-$D$5) -> 0.5083492921 | O7: =1/(1+Inputs!$D$5)^(O5-$D$5) -> 0.4750927964 | P7: =1/(1+Inputs!$D$5)^(P5-$D$5) -> 0.4440119592 | Q7: =1/(1+Inputs!$D$5)^(Q5-$D$5) -> 0.4149644479 | R7: =1/(1+Inputs!$D$5)^(R5-$D$5) -> 0.387817241 | S7: =1/(1+Inputs!$D$5)^(S5-$D$5) -> 0.3624460196 | T7: =1/(1+Inputs!$D$5)^(T5-$D$5) -> 0.3387345978 | U7: =1/(1+Inputs!$D$5)^(U5-$D$5) -> 0.3165743905 | V7: =1/(1+Inputs!$D$5)^(V5-$D$5) -> 0.2958639163 | W7: =1/(1+Inputs!$D$5)^(W5-$D$5) -> 0.276508333 | X7: =1/(1+Inputs!$D$5)^(X5-$D$5) -> 0.2584190028 | Y7: =1/(1+Inputs!$D$5)^(Y5-$D$5) -> 0.2415130867 | Z7: =1/(1+Inputs!$D$5)^(Z5-$D$5) -> 0.2257131652 | AA7: =1/(1+Inputs!$D$5)^(AA5-$D$5) -> 0.2109468833 | AB7: =1/(1+Inputs!$D$5)^(AB5-$D$5) -> 0.1971466199
A8: Discount Factor | B8: % | C8: 0.03 | D8: =1/(1+Inputs!$D$6)^(D5-$D$5) -> 1 | E8: =1/(1+Inputs!$D$6)^(E5-$D$5) -> 0.9708737864 | F8: =1/(1+Inputs!$D$6)^(F5-$D$5) -> 0.9425959091 | G8: =1/(1+Inputs!$D$6)^(G5-$D$5) -> 0.9151416594 | H8: =1/(1+Inputs!$D$6)^(H5-$D$5) -> 0.8884870479 | I8: =1/(1+Inputs!$D$6)^(I5-$D$5) -> 0.8626087844 | J8: =1/(1+Inputs!$D$6)^(J5-$D$5) -> 0.8374842567 | K8: =1/(1+Inputs!$D$6)^(K5-$D$5) -> 0.8130915113 | L8: =1/(1+Inputs!$D$6)^(L5-$D$5) -> 0.7894092343 | M8: =1/(1+Inputs!$D$6)^(M5-$D$5) -> 0.7664167323 | N8: =1/(1+Inputs!$D$6)^(N5-$D$5) -> 0.7440939149 | O8: =1/(1+Inputs!$D$6)^(O5-$D$5) -> 0.7224212766 | P8: =1/(1+Inputs!$D$6)^(P5-$D$5) -> 0.7013798802 | Q8: =1/(1+Inputs!$D$6)^(Q5-$D$5) -> 0.68095134 | R8: =1/(1+Inputs!$D$6)^(R5-$D$5) -> 0.6611178058 | S8: =1/(1+Inputs!$D$6)^(S5-$D$5) -> 0.6418619474 | T8: =1/(1+Inputs!$D$6)^(T5-$D$5) -> 0.6231669392 | U8: =1/(1+Inputs!$D$6)^(U5-$D$5) -> 0.6050164458 | V8: =1/(1+Inputs!$D$6)^(V5-$D$5) -> 0.5873946076 | W8: =1/(1+Inputs!$D$6)^(W5-$D$5) -> 0.5702860268 | X8: =1/(1+Inputs!$D$6)^(X5-$D$5) -> 0.5536757542 | Y8: =1/(1+Inputs!$D$6)^(Y5-$D$5) -> 0.5375492759 | Z8: =1/(1+Inputs!$D$6)^(Z5-$D$5) -> 0.5218925009 | AA8: =1/(1+Inputs!$D$6)^(AA5-$D$5) -> 0.5066917484 | AB8: =1/(1+Inputs!$D$6)^(AB5-$D$5) -> 0.4919337363
A10: =Traffic!A6 -> Total Traffic | B10: =Traffic!B6 -> ADT | C10: =Traffic!C6 -> 0 | D10: =Traffic!D6 -> 1800 | E10: =Traffic!E6 -> 1835.628027 | F10: =Traffic!F6 -> 1871.961253 | G10: =Traffic!G6 -> 1909.013635 | H10: =Traffic!H6 -> 1946.799407 | I10: =Traffic!I6 -> 1985.333086 | J10: =Traffic!J6 -> 2024.629476 | K10: =Traffic!K6 -> 2064.703673 | L10: =Traffic!L6 -> 2105.571073 | M10: =Traffic!M6 -> 2147.247375 | N10: =Traffic!N6 -> 2189.748591 | O10: =Traffic!O6 -> 2233.091048 | P10: =Traffic!P6 -> 2277.291397 | Q10: =Traffic!Q6 -> 2322.36662 | R10: =Traffic!R6 -> 2368.334032 | S10: =Traffic!S6 -> 2415.211293 | T10: =Traffic!T6 -> 2463.016412 | U10: =Traffic!U6 -> 2511.767754 | V10: =Traffic!V6 -> 2561.484049 | W10: =Traffic!W6 -> 2612.184396 | X10: =Traffic!X6 -> 2663.888272 | Y10: =Traffic!Y6 -> 2716.615541 | Z10: =Traffic!Z6 -> 2770.38646 | AA10: =Traffic!AA6 -> 2825.221685 | AB10: =Traffic!AB6 -> 2881.142282
A12: Share of Traffic - Auto | B12: % | D12: =1-ShareTruck -> 0.79 | E12: 0.79 | F12: 0.79 | G12: 0.79 | H12: 0.79 | I12: 0.79 | J12: 0.79 | K12: 0.79 | L12: 0.79 | M12: 0.79 | N12: 0.79 | O12: 0.79 | P12: 0.79 | Q12: 0.79 | R12: 0.79 | S12: 0.79 | T12: 0.79 | U12: 0.79 | V12: 0.79 | W12: 0.79 | X12: 0.79 | Y12: 0.79 | Z12: 0.79 | AA12: 0.79 | AB12: 0.79
A13: Share of Traffic - Trucks | B13: % | D13: =ShareTruck -> 0.21 | E13: 0.21 | F13: 0.21 | G13: 0.21 | H13: 0.21 | I13: 0.21 | J13: 0.21 | K13: 0.21 | L13: 0.21 | M13: 0.21 | N13: 0.21 | O13: 0.21 | P13: 0.21 | Q13: 0.21 | R13: 0.21 | S13: 0.21 | T13: 0.21 | U13: 0.21 | V13: 0.21 | W13: 0.21 | X13: 0.21 | Y13: 0.21 | Z13: 0.21 | AA13: 0.21 | AB13: 0.21
A15: No Build Case Alternative | B15: Unit | C15: Value | D15: =Base.Year -> 2018 | E15: =D15+1 -> 2019 | F15: =E15+1 -> 2020 | G15: =F15+1 -> 2021 | H15: =G15+1 -> 2022 | I15: =H15+1 -> 2023 | J15: =I15+1 -> 2024 | K15: =J15+1 -> 2025 | L15: =K15+1 -> 2026 | M15: =L15+1 -> 2027 | N15: =M15+1 -> 2028 | O15: =N15+1 -> 2029 | P15: =O15+1 -> 2030 | Q15: =P15+1 -> 2031 | R15: =Q15+1 -> 2032 | S15: =R15+1 -> 2033 | T15: =S15+1 -> 2034 | U15: =T15+1 -> 2035 | V15: =U15+1 -> 2036 | W15: =V15+1 -> 2037 | X15: =W15+1 -> 2038 | Y15: =X15+1 -> 2039 | Z15: =Y15+1 -> 2040 | AA15: =Z15+1 -> 2041 | AB15: 2042
A17: Auto Travel Time | B17: Hours/Day | D17: =(D10*(1-(+ShareTruck))*(RouteTime/60))*(10/12) -> 98.75 | E17: =(E10*(1-(+ShareTruck))*(RouteTime/60))*(10/12) -> 100.7045932 | F17: =(F10*(1-(+ShareTruck))*(RouteTime/60))*(10/12) -> 102.6978743 | G17: =G10*(1-(ShareTruck))*AutoDetour*(DetourTime/60) -> 326.7595004 | H17: 333.2271651 | I17: 339.8228466 | J17: 346.5490786 | K17: 353.4084454 | L17: 360.4035819 | M17: 367.5371757 | N17: 374.8119671 | O17: 382.230751 | P17: 389.7963775 | Q17: 397.5117531 | R17: 405.3798418 | S17: 413.4036663 | T17: 421.5863092 | U17: 429.930914 | V17: 438.4406864 | W17: 447.1188958 | X17: 455.9688759 | Y17: 464.9940268 | Z17: 474.1978157 | AA17: 483.5837784 | AB17: 493.1555207
A18: Truck Travel Time | B18: Hours/Day | D18: =(D10*(ShareTruck)*(RouteTime/60))/(10/12) -> 37.8 | E18: =(E10*(ShareTruck)*(RouteTime/60))/(10/12) -> 38.54818858 | F18: =(F10*(ShareTruck)*(RouteTime/60))/(10/12) -> 39.31118631 | G18: =G10*ShareTruck*TruckDetour*(DetourTime/60) -> 86.86012037 | H18: 88.57937301 | I18: 90.33265542 | J18: 92.12064116 | K18: 93.94401712 | L18: 95.8034838 | M18: 97.69975555 | N18: 99.63356087 | O18: 101.6056427 | P18: 103.6167586 | Q18: 105.6676812 | R18: 107.7591985 | S18: 109.8921138 | T18: 112.0672467 | U18: 114.2854328 | V18: 116.5475242 | W18: 118.85439 | X18: 121.2069164 | Y18: 123.6060071 | Z18: 126.0525839 | AA18: 128.5475867 | AB18: 131.0919739
A20: Cost of Travel Time for Auto | B20: $/year | D20: =D17*timevalue_auto*Avg_Veh_Occ*Annualization_Factor -> 896191.8 | E20: 913930.4367 | F20: 932020.1804 | G20: 2965460.1 | H20: 3024156.485 | I20: 3084014.669 | J20: 3145057.646 | K20: 3207308.869 | L20: 3270792.251 | M20: 3335532.182 | N20: 3401553.534 | O20: 3468881.669 | P20: 3537542.453 | Q20: 3607562.264 | R20: 3678968.001 | S20: 3751787.097 | T20: 3826047.527 | U20: 3901777.819 | V20: 3979007.068 | W20: 4057764.942 | X20: 4138081.698 | Y20: 4219988.191 | Z20: 4303515.889 | AA20: 4388696.879 | AB20: 4475563.886
A21: Cost of Travel Time for Trucks | B21: $/year | D21: =D18*TimeValue_truck*Annualization_Factor -> 394594.2 | E21: 402404.5406 | F21: 410369.4739 | G21: 906732.7966 | H21: 924680.0749 | I21: 942982.5899 | J21: 961647.3731 | K21: 980681.5947 | L21: 1000092.567 | M21: 1019887.748 | N21: 1040074.742 | O21: 1060661.304 | P21: 1081655.343 | Q21: 1103064.924 | R21: 1124898.273 | S21: 1147163.776 | T21: 1169869.989 | U21: 1193025.633 | V21: 1216639.606 | W21: 1240720.977 | X21: 1265279 | Y21: 1290323.108 | Z21: 1315862.924 | AA21: 1341908.257 | AB21: 1368469.115
A23: Total Travel Time | B23: $/year | D23: =SUM(D20:D21) -> 1290786 | E23: 1316334.977 | F23: 1342389.654 | G23: 3872192.897 | H23: 3948836.56 | I23: 4026997.259 | J23: 4106705.019 | K23: 4187990.463 | L23: 4270884.819 | M23: 4355419.931 | N23: 4441628.276 | O23: 4529542.972 | P23: 4619197.795 | Q23: 4710627.188 | R23: 4803866.274 | S23: 4898950.873 | T23: 4995917.516 | U23: 5094803.453 | V23: 5195646.673 | W23: 5298485.919 | X23: 5403360.698 | Y23: 5510311.3 | Z23: 5619378.812 | AA23: 5730605.136 | AB23: 5844033.001
A25: Build (Alternative Case) | B25: Unit | C25: Value | D25: =Base.Year -> 2018 | E25: =D25+1 -> 2019 | F25: 2020 | G25: 2021 | H25: 2022 | I25: 2023 | J25: 2024 | K25: 2025 | L25: 2026 | M25: 2027 | N25: 2028 | O25: 2029 | P25: 2030 | Q25: 2031 | R25: 2032 | S25: 2033 | T25: 2034 | U25: 2035 | V25: 2036 | W25: 2037 | X25: 2038 | Y25: 2039 | Z25: 2040 | AA25: 2041 | AB25: 2042
A27: Auto Travel Time | B27: Hours | D27: =(D10*(1-(+ShareTruck))*(RouteTime/60))*(10/12) -> 98.75 | E27: =(E10*(1-(+ShareTruck))*(RouteTime/60))*(10/12) -> 100.7045932 | F27: =(F10*(1-(+ShareTruck))*(RouteTime/60))*(10/12) -> 102.6978743 | G27: =G10*(1-(ShareTruck))*AutoDetour*(DetourTime/60) -> 326.7595004 | H27: =H10*(1-(ShareTruck))*AutoDetour*(DetourTime/60) -> 333.2271651 | I27: =(I10*(1-(ShareTruck))*AutoDetour*(DetourTime/60)*(7/12)) + ((I10*(1-(+ShareTruck))*(RouteTime/60))*(5/12)) -> 252.6887834 | J27: =(J10*(1-(+ShareTruck))*(RouteTime/60)) -> 133.2881072 | K27: 135.9263251 | L27: 138.6167623 | M27: 141.3604522 | N27: 144.1584489 | O27: 147.0118273 | P27: 149.9216837 | Q27: 152.8891358 | R27: 155.9153238 | S27: 159.0014101 | T27: 162.1485805 | U27: 165.3580438 | V27: 168.6310332 | W27: 171.9688061 | X27: 175.3726446 | Y27: 178.8438565 | Z27: 182.3837753 | AA27: 185.9937609 | AB27: 189.6752003
A28: Truck Travel Time | B28: Hours | D28: =(D10*(ShareTruck)*(RouteTime/60))/(10/12) -> 37.8 | E28: =(E10*(ShareTruck)*(RouteTime/60))/(10/12) -> 38.54818858 | F28: =(F10*(ShareTruck)*(RouteTime/60))/(10/12) -> 39.31118631 | G28: =G10*ShareTruck*TruckDetour*(DetourTime/60) -> 86.86012037 | H28: =H10*ShareTruck*TruckDetour*(DetourTime/60) -> 88.57937301 | I28: =((I10*ShareTruck*TruckDetour*(DetourTime/60))*(7/12)) + ((I10*(ShareTruck)*(RouteTime/60))/(5/12)) -> 136.0780386 | J28: =J10*(ShareTruck)*(RouteTime/60) -> 35.43101583 | K28: 36.13231428 | L28: 36.84749377 | M28: 37.57682906 | N28: 38.32060034 | O28: 39.07909334 | P28: 39.85259945 | Q28: 40.64141585 | R28: 41.44584556 | S28: 42.26619763 | T28: 43.10278721 | U28: 43.9559357 | V28: 44.82597086 | W28: 45.71322693 | X28: 46.61804476 | Y28: 47.54077198 | Z28: 48.48176305 | AA28: 49.44137948 | AB28: 50.41998994
A30: Cost of Travel Time for Auto | B30: $/year | D30: =D27*timevalue_auto*Avg_Veh_Occ*Annualization_Factor -> 896191.8 | E30: 913930.4367 | F30: 932020.1804 | G30: 2965460.1 | H30: 3024156.485 | I30: 2293241.677 | J30: 1209637.556 | K30: 1233580.334 | L30: 1257997.02 | M30: 1282896.993 | N30: 1308289.821 | O30: 1334185.257 | P30: 1360593.251 | Q30: 1387523.948 | R30: 1414987.693 | S30: 1442995.037 | T30: 1471556.741 | U30: 1500683.777 | V30: 1530387.334 | W30: 1560678.824 | X30: 1591569.884 | Y30: 1623072.381 | Z30: 1655198.419 | AA30: 1687960.338 | AB30: 1721370.725
A31: Cost of Travel Time for Trucks | B31: $/year | D31: =D28*TimeValue_truck*Annualization_Factor -> 394594.2 | E31: 402404.5406 | F31: 410369.4739 | G31: 906732.7966 | H31: 924680.0749 | I31: 1420518.645 | J31: 369864.3743 | K31: 377185.2287 | L31: 384650.9875 | M31: 392264.5185 | N31: 400028.7469 | O31: 407946.6553 | P31: 416021.2857 | Q31: 424255.74 | R31: 432653.1818 | S31: 441216.837 | T31: 449949.9957 | U31: 458856.0128 | V31: 467938.3098 | W31: 477200.3759 | X31: 486645.7693 | Y31: 496278.1186 | Z31: 506101.1245 | AA31: 516118.5604 | AB31: 526334.275
A33: Total Travel Time | B33: $/year | D33: =SUM(D30:D31) -> 1290786 | E33: 1316334.977 | F33: 1342389.654 | G33: 3872192.897 | H33: 3948836.56 | I33: 3713760.322 | J33: 1579501.931 | K33: 1610765.563 | L33: 1642648.007 | M33: 1675161.512 | N33: 1708318.568 | O33: 1742131.912 | P33: 1776614.537 | Q33: 1811779.688 | R33: 1847640.874 | S33: 1884211.874 | T33: 1921506.737 | U33: 1959539.79 | V33: 1998325.644 | W33: 2037879.2 | X33: 2078215.653 | Y33: 2119350.5 | Z33: 2161299.543 | AA33: 2204078.898 | AB33: 2247705
A35: No Build Less Build | B35: Unit | C35: Value | D35: =Base.Year -> 2018 | E35: =D35+1 -> 2019 | F35: =E35+1 -> 2020 | G35: =F35+1 -> 2021 | H35: =G35+1 -> 2022 | I35: =H35+1 -> 2023 | J35: =I35+1 -> 2024 | K35: =J35+1 -> 2025 | L35: =K35+1 -> 2026 | M35: =L35+1 -> 2027 | N35: =M35+1 -> 2028 | O35: =N35+1 -> 2029 | P35: =O35+1 -> 2030 | Q35: =P35+1 -> 2031 | R35: =Q35+1 -> 2032 | S35: =R35+1 -> 2033 | T35: =S35+1 -> 2034 | U35: =T35+1 -> 2035 | V35: =U35+1 -> 2036 | W35: =V35+1 -> 2037 | X35: =W35+1 -> 2038 | Y35: =X35+1 -> 2039 | Z35: =Y35+1 -> 2040 | AA35: =Z35+1 -> 2041 | AB35: 2042
A36: Undiscounted Impacts | B36: $/year | D36: =D23-D33 -> 0 | E36: 0 | F36: 0 | G36: 0 | H36: 0 | I36: 313236.9369 | J36: 2527203.089 | K36: 2577224.901 | L36: 2628236.811 | M36: 2680258.419 | N36: 2733309.708 | O36: 2787411.06 | P36: 2842583.259 | Q36: 2898847.5 | R36: 2956225.399 | S36: 3014738.999 | T36: 3074410.779 | U36: 3135263.663 | V36: 3197321.03 | W36: 3260606.72 | X36: 3325145.045 | Y36: 3390960.8 | Z36: 3458079.269 | AA36: =AA23-AA33 -> 3526526.238 | AB36: 3596328.001
A37: Discounted Impacts, at 7% | B37: $/year | D37: =D36*D7 -> 0 | E37: 0 | F37: 0 | G37: 0 | H37: 0 | I37: 223333.6069 | J37: 1683982.126 | K37: 1604966.142 | L37: 1529657.753 | M37: 1457882.993 | N37: 1389476.055 | O37: 1324278.915 | P37: 1262140.962 | Q37: 1202918.652 | R37: 1146475.178 | S37: 1092680.15 | T37: 1041409.299 | U37: 992544.1831 | V37: 945971.9216 | W37: 901584.9286 | X37: 859280.6667 | Y37: 818961.4098 | Z37: 780534.0173 | AA37: 743909.7189 | AB37: 709003.9096
A38: Discounted Impacts, at 3% | B38: $/year | D38: =D37*D8 -> 0 | E38: =E37*E8 -> 0 | F38: =F36*F8 -> 0 | G38: 0 | H38: 0 | I38: 270200.9333 | J38: 2116492.8 | K38: 2095519.69 | L38: 2074754.409 | M38: 2054194.899 | N38: 2033839.121 | O38: 2013685.056 | P38: 1993730.705 | Q38: 1973974.09 | R38: 1954413.249 | S38: 1935046.245 | T38: 1915871.155 | U38: 1896886.078 | V38: 1878089.132 | W38: 1859478.451 | X38: 1841052.191 | Y38: 1822808.523 | Z38: 1804745.638 | AA38: 1786861.745 | AB38: 1769155.071
A40: Key Quantified Impacts
A41: Total Travel Time Saving | B41: $/year | D41: =D36 -> 0 | E41: =E36 -> 0 | F41: 0 | G41: 0 | H41: 0 | I41: 313236.9369 | J41: 2527203.089 | K41: 2577224.901 | L41: 2628236.811 | M41: 2680258.419 | N41: 2733309.708 | O41: 2787411.06 | P41: 2842583.259 | Q41: 2898847.5 | R41: 2956225.399 | S41: 3014738.999 | T41: 3074410.779 | U41: 3135263.663 | V41: 3197321.03 | W41: 3260606.72 | X41: 3325145.045 | Y41: 3390960.8 | Z41: 3458079.269 | AA41: 3526526.238 | AB41: =AB36 -> 3596328.001

Sheet Calc-2
A2: Vehicle Operating Cost Savings due to Closure Avoidance
H3: 2022 - First Year of Construction under Build (Bridge Close)
G4: 2021 - First Year of Bridge Closured under No-Build
B5: Unit | C5: Value | D5: =Base.Year -> 2018 | E5: =D5+1 -> 2019 | F5: 2020 | G5: 2021 | H5: 2022 | I5: 2023 | J5: 2024 | K5: 2025 | L5: 2026 | M5: 2027 | N5: 2028 | O5: 2029 | P5: 2030 | Q5: 2031 | R5: 2032 | S5: 2033 | T5: 2034 | U5: =T5+1 -> 2035 | V5: 2036 | W5: 2037 | X5: 2038 | Y5: 2039 | Z5: 2040 | AA5: 2041 | AB5: 2042
A6: Benefits Index | B6: Number | D6: 0 | E6: 0 | F6: 0 | G6: =F6+1 -> 1 | H6: =G6+1 -> 2 | I6: 3 | J6: 4 | K6: 5 | L6: 6 | M6: 7 | N6: 8 | O6: 9 | P6: 10 | Q6: 11 | R6: 12 | S6: 13 | T6: 14 | U6: 15 | V6: 16 | W6: 17 | X6: 18 | Y6: 19 | Z6: 20 | AA6: 21 | AB6: 22
A7: Discount Factor | B7: % | C7: 0.07 | D7: =1/(1+Inputs!$D$5)^(D5-$D$5) -> 1 | E7: =1/(1+Inputs!$D$5)^(E5-$D$5) -> 0.9345794393 | F7: =1/(1+Inputs!$D$5)^(F5-$D$5) -> 0.8734387283 | G7: =1/(1+Inputs!$D$5)^(G5-$D$5) -> 0.8162978769 | H7: =1/(1+Inputs!$D$5)^(H5-$D$5) -> 0.762895212 | I7: =1/(1+Inputs!$D$5)^(I5-$D$5) -> 0.7129861795 | J7: =1/(1+Inputs!$D$5)^(J5-$D$5) -> 0.6663422238 | K7: =1/(1+Inputs!$D$5)^(K5-$D$5) -> 0.6227497419 | L7: =1/(1+Inputs!$D$5)^(L5-$D$5) -> 0.5820091046 | M7: =1/(1+Inputs!$D$5)^(M5-$D$5) -> 0.5439337426 | N7: =1/(1+Inputs!$D$5)^(N5-$D$5) -> 0.5083492921 | O7: =1/(1+Inputs!$D$5)^(O5-$D$5) -> 0.4750927964 | P7: =1/(1+Inputs!$D$5)^(P5-$D$5) -> 0.4440119592 | Q7: =1/(1+Inputs!$D$5)^(Q5-$D$5) -> 0.4149644479 | R7: =1/(1+Inputs!$D$5)^(R5-$D$5) -> 0.387817241 | S7: =1/(1+Inputs!$D$5)^(S5-$D$5) -> 0.3624460196 | T7: =1/(1+Inputs!$D$5)^(T5-$D$5) -> 0.3387345978 | U7: =1/(1+Inputs!$D$5)^(U5-$D$5) -> 0.3165743905 | V7: =1/(1+Inputs!$D$5)^(V5-$D$5) -> 0.2958639163 | W7: =1/(1+Inputs!$D$5)^(W5-$D$5) -> 0.276508333 | X7: =1/(1+Inputs!$D$5)^(X5-$D$5) -> 0.2584190028 | Y7: =1/(1+Inputs!$D$5)^(Y5-$D$5) -> 0.2415130867 | Z7: =1/(1+Inputs!$D$5)^(Z5-$D$5) -> 0.2257131652 | AA7: =1/(1+Inputs!$D$5)^(AA5-$D$5) -> 0.2109468833 | AB7: =1/(1+Inputs!$D$5)^(AB5-$D$5) -> 0.1971466199
A8: Discount Factor | B8: % | C8: 0.03 | D8: =1/(1+Inputs!$D$6)^(D5-$D$5) -> 1 | E8: =1/(1+Inputs!$D$6)^(E5-$D$5) -> 0.9708737864 | F8: =1/(1+Inputs!$D$6)^(F5-$D$5) -> 0.9425959091 | G8: =1/(1+Inputs!$D$6)^(G5-$D$5) -> 0.9151416594 | H8: =1/(1+Inputs!$D$6)^(H5-$D$5) -> 0.8884870479 | I8: =1/(1+Inputs!$D$6)^(I5-$D$5) -> 0.8626087844 | J8: =1/(1+Inputs!$D$6)^(J5-$D$5) -> 0.8374842567 | K8: =1/(1+Inputs!$D$6)^(K5-$D$5) -> 0.8130915113 | L8: =1/(1+Inputs!$D$6)^(L5-$D$5) -> 0.7894092343 | M8: =1/(1+Inputs!$D$6)^(M5-$D$5) -> 0.7664167323 | N8: =1/(1+Inputs!$D$6)^(N5-$D$5) -> 0.7440939149 | O8: =1/(1+Inputs!$D$6)^(O5-$D$5) -> 0.7224212766 | P8: =1/(1+Inputs!$D$6)^(P5-$D$5) -> 0.7013798802 | Q8: =1/(1+Inputs!$D$6)^(Q5-$D$5) -> 0.68095134 | R8: =1/(1+Inputs!$D$6)^(R5-$D$5) -> 0.6611178058 | S8: =1/(1+Inputs!$D$6)^(S5-$D$5) -> 0.6418619474 | T8: =1/(1+Inputs!$D$6)^(T5-$D$5) -> 0.6231669392 | U8: =1/(1+Inputs!$D$6)^(U5-$D$5) -> 0.6050164458 | V8: =1/(1+Inputs!$D$6)^(V5-$D$5) -> 0.5873946076 | W8: =1/(1+Inputs!$D$6)^(W5-$D$5) -> 0.5702860268 | X8: =1/(1+Inputs!$D$6)^(X5-$D$5) -> 0.5536757542 | Y8: =1/(1+Inputs!$D$6)^(Y5-$D$5) -> 0.5375492759 | Z8: =1/(1+Inputs!$D$6)^(Z5-$D$5) -> 0.5218925009 | AA8: =1/(1+Inputs!$D$6)^(AA5-$D$5) -> 0.5066917484 | AB8: =1/(1+Inputs!$D$6)^(AB5-$D$5) -> 0.4919337363
A10: Share of Traffic - Auto | B10: % | D10: =1-ShareTruck -> 0.79 | E10: 0.79 | F10: 0.79 | G10: 0.79 | H10: 0.79 | I10: 0.79 | J10: 0.79 | K10: 0.79 | L10: 0.79 | M10: 0.79 | N10: 0.79 | O10: 0.79 | P10: 0.79 | Q10: 0.79 | R10: 0.79 | S10: 0.79 | T10: 0.79 | U10: 0.79 | V10: 0.79 | W10: 0.79 | X10: 0.79 | Y10: 0.79 | Z10: 0.79 | AA10: 0.79 | AB10: 0.79
A11: Share of Traffic - Trucks | B11: % | D11: =Inputs!$D$20 -> 0.21 | E11: =Inputs!$D$20 -> 0.21 | F11: =Inputs!$D$20 -> 0.21 | G11: =Inputs!$D$20 -> 0.21 | H11: =Inputs!$D$20 -> 0.21 | I11: =Inputs!$D$20 -> 0.21 | J11: =Inputs!$D$20 -> 0.21 | K11: =Inputs!$D$20 -> 0.21 | L11: =Inputs!$D$20 -> 0.21 | M11: =Inputs!$D$20 -> 0.21 | N11: =Inputs!$D$20 -> 0.21 | O11: =Inputs!$D$20 -> 0.21 | P11: =Inputs!$D$20 -> 0.21 | Q11: =Inputs!$D$20 -> 0.21 | R11: =Inputs!$D$20 -> 0.21 | S11: =Inputs!$D$20 -> 0.21 | T11: =Inputs!$D$20 -> 0.21 | U11: =Inputs!$D$20 -> 0.21 | V11: =Inputs!$D$20 -> 0.21 | W11: =Inputs!$D$20 -> 0.21 | X11: =Inputs!$D$20 -> 0.21 | Y11: =Inputs!$D$20 -> 0.21 | Z11: =Inputs!$D$20 -> 0.21 | AA11: =Inputs!$D$20 -> 0.21 | AB11: =Inputs!$D$20 -> 0.21
A13: No Build Case Alternative | B13: Unit | C13: Value | D13: =Base.Year -> 2018 | E13: =D13+1 -> 2019 | F13: 2020 | G13: 2021 | H13: 2022 | I13: 2023 | J13: 2024 | K13: 2025 | L13: 2026 | M13: 2027 | N13: 2028 | O13: 2029 | P13: 2030 | Q13: 2031 | R13: 2032 | S13: 2033 | T13: 2034 | U13: 2035 | V13: 2036 | W13: 2037 | X13: 2038 | Y13: 2039 | Z13: 2040 | AA13: 2041 | AB13: 2042
A15: Auto Daily VMT | B15: =Traffic!B12 -> Daily VMT | D15: =Traffic!D17 -> 7110 | E15: =Traffic!E17 -> 7250.730709 | F15: =Traffic!F17 -> 7394.246949 | G15: =Traffic!G12 -> 17343.38887 | H15: =Traffic!H12 -> 17686.67261 | I15: =Traffic!I12 -> 18036.75109 | J15: =Traffic!J12 -> 18393.75879 | K15: =Traffic!K12 -> 18757.83287 | L15: =Traffic!L12 -> 19129.11319 | M15: =Traffic!M12 -> 19507.7424 | N15: =Traffic!N12 -> 19893.86595 | O15: =Traffic!O12 -> 20287.63217 | P15: =Traffic!P12 -> 20689.19234 | Q15: =Traffic!Q12 -> 21098.70074 | R15: =Traffic!R12 -> 21516.31468 | S15: =Traffic!S12 -> 21942.1946 | T15: =Traffic!T12 -> 22376.5041 | U15: =Traffic!U12 -> 22819.41005 | V15: =Traffic!V12 -> 23271.08259 | W15: =Traffic!W12 -> 23731.69524 | X15: =Traffic!X12 -> 24201.42495 | Y15: =Traffic!Y12 -> 24680.45219 | Z15: =Traffic!Z12 -> 25168.96099 | AA15: =Traffic!AA12 -> 25667.13901 | AB15: =Traffic!AB12 -> 26175.17764
A16: Truck Daily VMT | B16: =Traffic!B13 -> Daily VMT | D16: =Traffic!D18 -> 1890 | E16: =Traffic!E18 -> 1927.409429 | F16: =Traffic!F18 -> 1965.559316 | G16: =Traffic!G13 -> 4610.267927 | H16: =Traffic!H13 -> 4701.520568 | I16: =Traffic!I13 -> 4794.579403 | J16: =Traffic!J13 -> 4889.480185 | K16: =Traffic!K13 -> 4986.25937 | L16: =Traffic!L13 -> 5084.95414 | M16: =Traffic!M13 -> 5185.60241 | N16: =Traffic!N13 -> 5288.242846 | O16: =Traffic!O13 -> 5392.91488 | P16: =Traffic!P13 -> 5499.658725 | Q16: =Traffic!Q13 -> 5608.515387 | R16: =Traffic!R13 -> 5719.526687 | S16: =Traffic!S13 -> 5832.735273 | T16: =Traffic!T13 -> 5948.184635 | U16: =Traffic!U13 -> 6065.919127 | V16: =Traffic!V13 -> 6185.983979 | W16: =Traffic!W13 -> 6308.425316 | X16: =Traffic!X13 -> 6433.290177 | Y16: =Traffic!Y13 -> 6560.626533 | Z16: =Traffic!Z13 -> 6690.483301 | AA16: =Traffic!AA13 -> 6822.910369 | AB16: =Traffic!AB13 -> 6957.958612
A18: Operating Cost for Auto | B18: $/year | D18: =D15*Annualization_Factor*OperatingCost_Passenger -> 1012108.5 | E18: 1032141.516 | F18: 1052571.053 | G18: 2468831.406 | H18: 2517697.846 | I18: 2567531.517 | J18: 2618351.564 | K18: 2670177.509 | L18: 2723029.263 | M18: 2776927.131 | N18: 2831891.817 | O18: 2887944.439 | P18: 2945106.53 | Q18: 3003400.05 | R18: 3062847.395 | S18: 3123471.401 | T18: 3185295.359 | U18: 3248343.021 | V18: 3312638.606 | W18: 3378206.817 | X18: 3445072.842 | Y18: 3513262.37 | Z18: 3582801.597 | AA18: 3653717.238 | AB18: 3726036.536
A19: Operating Cost for Trucks | B19: $/year | D19: =D16*Annualization_Factor*OperatingCost_Trucks -> 620865 | E19: =E16*Annualization_Factor*OperatingCost_Trucks -> 633153.9974 | F19: =F16*Annualization_Factor*OperatingCost_Trucks -> 645686.2352 | G19: =G16*Annualization_Factor*OperatingCost_Trucks -> 1514473.014 | H19: =(H16*Annualization_Factor*OperatingCost_Trucks) -> 1544449.506 | I19: 1575019.334 | J19: 1606194.241 | K19: 1637986.203 | L19: 1670407.435 | M19: 1703470.392 | N19: 1737187.775 | O19: 1771572.538 | P19: 1806637.891 | Q19: 1842397.305 | R19: 1878864.517 | S19: 1916053.537 | T19: 1953978.653 | U19: 1992654.433 | V19: 2032095.737 | W19: 2072317.716 | X19: 2113335.823 | Y19: 2155165.816 | Z19: 2197823.764 | AA19: 2241326.056 | AB19: 2285689.404
A21: Total Operating Cost | B21: $/year | D21: =SUM(D18:D19) -> 1632973.5 | E21: 1665295.514 | F21: 1698257.288 | G21: 3983304.42 | H21: 4062147.353 | I21: 4142550.851 | J21: 4224545.804 | K21: 4308163.712 | L21: 4393436.698 | M21: 4480397.522 | N21: 4569079.592 | O21: 4659516.978 | P21: 4751744.421 | Q21: 4845797.355 | R21: 4941711.911 | S21: 5039524.938 | T21: 5139274.012 | U21: 5240997.454 | V21: 5344734.343 | W21: 5450524.533 | X21: 5558408.665 | Y21: 5668428.186 | Z21: 5780625.361 | AA21: 5895043.294 | AB21: 6011725.941
A23: Build (Alternative Case) | B23: Unit | C23: Value | D23: =Base.Year -> 2018 | E23: =D23+1 -> 2019 | F23: 2020 | G23: 2021 | H23: 2022 | I23: 2023 | J23: 2024 | K23: 2025 | L23: 2026 | M23: 2027 | N23: 2028 | O23: 2029 | P23: 2030 | Q23: 2031 | R23: 2032 | S23: 2033 | T23: 2034 | U23: 2035 | V23: 2036 | W23: 2037 | X23: 2038 | Y23: 2039 | Z23: 2040 | AA23: 2041 | AB23: 2042
A25: Auto Daily VMT | B25: =Traffic!B17 -> Daily VMT | D25: =Traffic!D17 -> 7110 | E25: =Traffic!E17 -> 7250.730709 | F25: =Traffic!F17 -> 7394.246949 | G25: =Traffic!G12 -> 17343.38887 | H25: =Traffic!H12 -> 17686.67261 | I25: =((Traffic!I12)*(7/12))+((Traffic!I17)*5/12) -> 13788.96551 | J25: =Traffic!J17 -> 7997.28643 | K25: =Traffic!K17 -> 8155.579508 | L25: =Traffic!L17 -> 8317.005737 | M25: =Traffic!M17 -> 8481.62713 | N25: =Traffic!N17 -> 8649.506933 | O25: =Traffic!O17 -> 8820.709639 | P25: =Traffic!P17 -> 8995.30102 | Q25: =Traffic!Q17 -> 9173.348148 | R25: =Traffic!R17 -> 9354.919426 | S25: =Traffic!S17 -> 9540.084607 | T25: =Traffic!T17 -> 9728.914827 | U25: =Traffic!U17 -> 9921.48263 | V25: =Traffic!V17 -> 10117.86199 | W25: =Traffic!W17 -> 10318.12836 | X25: =Traffic!X17 -> 10522.35868 | Y25: =Traffic!Y17 -> 10730.63139 | Z25: =Traffic!Z17 -> 10943.02652 | AA25: =Traffic!AA17 -> 11159.62565 | AB25: =Traffic!AB17 -> 11380.51202
A26: Truck Daily VMT | B26: =Traffic!B18 -> Daily VMT | D26: =Traffic!D18 -> 1890 | E26: =Traffic!E18 -> 1927.409429 | F26: =Traffic!F18 -> 1965.559316 | G26: =Traffic!G13 -> 4610.267927 | H26: =Traffic!H13 -> 4701.520568 | I26: =((Traffic!I13)*7/12) + ((Traffic!I18)*5/12) -> 3665.42121 | J26: =Traffic!J18 -> 2125.86095 | K26: =Traffic!K18 -> 2167.938857 | L26: =Traffic!L18 -> 2210.849626 | M26: =Traffic!M18 -> 2254.609744 | N26: =Traffic!N18 -> 2299.23602 | O26: =Traffic!O18 -> 2344.7456 | P26: =Traffic!P18 -> 2391.155967 | Q26: =Traffic!Q18 -> 2438.484951 | R26: =Traffic!R18 -> 2486.750733 | S26: =Traffic!S18 -> 2535.971858 | T26: =Traffic!T18 -> 2586.167233 | U26: =Traffic!U18 -> 2637.356142 | V26: =Traffic!V18 -> 2689.558252 | W26: =Traffic!W18 -> 2742.793616 | X26: =Traffic!X18 -> 2797.082686 | Y26: =Traffic!Y18 -> 2852.446319 | Z26: =Traffic!Z18 -> 2908.905783 | AA26: =Traffic!AA18 -> 2966.482769 | AB26: =Traffic!AB18 -> 3025.199397
A28: Operating Cost for Auto | B28: $/year | D28: =(D25*Annualization_Factor*OperatingCost_Passenger) -> 1012108.5 | E28: =(E25*Annualization_Factor*OperatingCost_Passenger) -> 1032141.516 | F28: =(F25*Annualization_Factor*OperatingCost_Passenger) -> 1052571.053 | G28: =(G25*Annualization_Factor*OperatingCost_Passenger) -> 2468831.406 | H28: =(H25*Annualization_Factor*OperatingCost_Passenger) -> 2517697.846 | I28: =I25*Annualization_Factor*OperatingCost_Passenger -> 1962859.24 | J28: 1138413.723 | K28: 1160946.743 | L28: 1183925.767 | M28: 1207359.622 | N28: 1231257.312 | O28: 1255628.017 | P28: 1280481.1 | Q28: 1305826.109 | R28: 1331672.78 | S28: 1358031.044 | T28: 1384911.026 | U28: 1412323.052 | V28: 1440277.655 | W28: 1468785.573 | X28: 1497857.757 | Y28: 1527505.378 | Z28: 1557739.825 | AA28: 1588572.712 | AB28: 1620015.885
A29: Operating Cost for Trucks | B29: $/year | D29: =(D26*Annualization_Factor*OperatingCost_Trucks) -> 620865 | E29: =(E26*Annualization_Factor*OperatingCost_Trucks) -> 633153.9974 | F29: =(F26*Annualization_Factor*OperatingCost_Trucks) -> 645686.2352 | G29: =(G26*Annualization_Factor*OperatingCost_Trucks) -> 1514473.014 | H29: =(H26*Annualization_Factor*OperatingCost_Trucks) -> 1544449.506 | I29: =I26*Annualization_Factor*OperatingCost_Trucks -> 1204090.868 | J29: 698345.322 | K29: 712167.9144 | L29: 726264.1022 | M29: 740639.3008 | N29: 755299.0326 | O29: 770248.9297 | P29: 785494.7352 | Q29: 801042.3063 | R29: 816897.6159 | S29: 833066.7552 | T29: 849555.9359 | U29: 866371.4927 | V29: 883519.8857 | W29: 901007.7028 | X29: 918841.6623 | Y29: 937028.6156 | Z29: 955575.5497 | AA29: 974489.5896 | AB29: 993778.0018
A31: Total Operating Cost | B31: $/year | D31: =SUM(D28:D29) -> 1632973.5 | E31: 1665295.514 | F31: 1698257.288 | G31: 3983304.42 | H31: 4062147.353 | I31: 3166950.107 | J31: 1836759.045 | K31: 1873114.657 | L31: 1910189.869 | M31: 1947998.923 | N31: 1986556.345 | O31: 2025876.947 | P31: 2065975.835 | Q31: 2106868.415 | R31: 2148570.396 | S31: 2191097.799 | T31: 2234466.962 | U31: 2278694.545 | V31: 2323797.541 | W31: 2369793.275 | X31: 2416699.42 | Y31: 2464533.994 | Z31: 2513315.374 | AA31: 2563062.302 | AB31: 2613793.887
A33: No Build Less Build | B33: Unit | C33: Value | D33: =Base.Year -> 2018 | E33: =D33+1 -> 2019 | F33: 2020 | G33: 2021 | H33: 2022 | I33: 2023 | J33: 2024 | K33: 2025 | L33: 2026 | M33: 2027 | N33: 2028 | O33: 2029 | P33: 2030 | Q33: 2031 | R33: 2032 | S33: 2033 | T33: 2034 | U33: 2035 | V33: 2036 | W33: 2037 | X33: 2038 | Y33: 2039 | Z33: 2040 | AA33: 2041 | AB33: 2042
A34: Undiscounted Impacts | B34: $/year | D34: =D21-D31 -> 0 | E34: 0 | F34: 0 | G34: 0 | H34: 0 | I34: 975600.744 | J34: 2387786.759 | K34: 2435049.055 | L34: 2483246.829 | M34: 2532398.6 | N34: 2582523.248 | O34: 2633640.031 | P34: 2685768.586 | Q34: 2738928.94 | R34: 2793141.515 | S34: 2848427.139 | T34: 2904807.05 | U34: 2962302.909 | V34: 3020936.803 | W34: 3080731.258 | X34: 3141709.246 | Y34: 3203894.192 | Z34: 3267309.987 | AA34: 3331980.992 | AB34: 3397932.053
A35: Discounted Impacts, at 7% | B35: $/year | D35: =D34*D7 -> 0 | E35: 0 | F35: 0 | G35: 0 | H35: 0 | I35: 695589.8471 | J35: 1591083.139 | K35: 1516426.17 | L35: 1445272.264 | M35: 1377457.048 | N35: 1312823.865 | O35: 1251223.407 | P35: 1192513.372 | Q35: 1136558.135 | R35: 1083228.436 | S35: 1032401.079 | T35: 983958.6478 | U35: 937789.2377 | V35: 893786.1934 | W35: 851847.8646 | X35: 811877.3704 | Y35: 773782.3759 | Z35: 737474.8787 | AA35: 702871.0056 | AB35: 669890.8191
A36: Discounted Impacts, at 3% | B36: $/year | D36: =D34*D8 -> 0 | E36: 0 | F36: 0 | G36: 0 | H36: 0 | I36: 841561.7718 | J36: 1999733.819 | K36: 1979917.716 | L36: 1960297.978 | M36: 1940872.66 | N36: 1921639.834 | O36: 1902597.593 | P36: 1883744.049 | Q36: 1865077.332 | R36: 1846595.59 | S36: 1828296.99 | T36: 1810179.718 | U36: 1792241.977 | V36: 1774481.988 | W36: 1756897.989 | X36: 1739488.236 | Y36: 1722251.003 | Z36: 1705184.58 | AA36: 1688287.275 | AB36: 1671557.411
A38: Key Quantified Impacts
A39: Total Operating Cost Saving | B39: $/year | D39: =D34 -> 0 | E39: =E34 -> 0 | F39: 0 | G39: 0 | H39: 0 | I39: 975600.744 | J39: 2387786.759 | K39: 2435049.055 | L39: 2483246.829 | M39: 2532398.6 | N39: 2582523.248 | O39: 2633640.031 | P39: 2685768.586 | Q39: 2738928.94 | R39: 2793141.515 | S39: 2848427.139 | T39: 2904807.05 | U39: 2962302.909 | V39: 3020936.803 | W39: 3080731.258 | X39: 3141709.246 | Y39: 3203894.192 | Z39: 3267309.987 | AA39: 3331980.992 | AB39: =AB34 -> 3397932.053

Sheet Calc-3
A2: Reduction in Accident Costs
H3: 2022 - First Year of Construction under Build (Bridge Close)
G4: 2021 - First Year of Bridge Closured under No-Build
B5: Unit | C5: Value | D5: =Base.Year -> 2018 | E5: =D5+1 -> 2019 | F5: 2020 | G5: 2021 | H5: 2022 | I5: 2023 | J5: 2024 | K5: 2025 | L5: 2026 | M5: 2027 | N5: 2028 | O5: 2029 | P5: 2030 | Q5: 2031 | R5: 2032 | S5: 2033 | T5: 2034 | U5: =T5+1 -> 2035 | V5: 2036 | W5: 2037 | X5: 2038 | Y5: 2039 | Z5: 2040 | AA5: 2041 | AB5: 2042
A6: Benefits Index | B6: Number | D6: 0 | E6: 0 | F6: 0 | G6: =F6+1 -> 1 | H6: =G6+1 -> 2 | I6: 3 | J6: 4 | K6: 5 | L6: 6 | M6: 7 | N6: 8 | O6: 9 | P6: 10 | Q6: 11 | R6: 12 | S6: 13 | T6: 14 | U6: 15 | V6: 16 | W6: 17 | X6: 18 | Y6: 19 | Z6: 20 | AA6: 21 | AB6: 22
A7: Discount Factor | B7: % | C7: 0.07 | D7: =1/(1+Inputs!$D$5)^(D5-$D$5) -> 1 | E7: =1/(1+Inputs!$D$5)^(E5-$D$5) -> 0.9345794393 | F7: =1/(1+Inputs!$D$5)^(F5-$D$5) -> 0.8734387283 | G7: =1/(1+Inputs!$D$5)^(G5-$D$5) -> 0.8162978769 | H7: =1/(1+Inputs!$D$5)^(H5-$D$5) -> 0.762895212 | I7: =1/(1+Inputs!$D$5)^(I5-$D$5) -> 0.7129861795 | J7: =1/(1+Inputs!$D$5)^(J5-$D$5) -> 0.6663422238 | K7: =1/(1+Inputs!$D$5)^(K5-$D$5) -> 0.6227497419 | L7: =1/(1+Inputs!$D$5)^(L5-$D$5) -> 0.5820091046 | M7: =1/(1+Inputs!$D$5)^(M5-$D$5) -> 0.5439337426 | N7: =1/(1+Inputs!$D$5)^(N5-$D$5) -> 0.5083492921 | O7: =1/(1+Inputs!$D$5)^(O5-$D$5) -> 0.4750927964 | P7: =1/(1+Inputs!$D$5)^(P5-$D$5) -> 0.4440119592 | Q7: =1/(1+Inputs!$D$5)^(Q5-$D$5) -> 0.4149644479 | R7: =1/(1+Inputs!$D$5)^(R5-$D$5) -> 0.387817241 | S7: =1/(1+Inputs!$D$5)^(S5-$D$5) -> 0.3624460196 | T7: =1/(1+Inputs!$D$5)^(T5-$D$5) -> 0.3387345978 | U7: =1/(1+Inputs!$D$5)^(U5-$D$5) -> 0.3165743905 | V7: =1/(1+Inputs!$D$5)^(V5-$D$5) -> 0.2958639163 | W7: =1/(1+Inputs!$D$5)^(W5-$D$5) -> 0.276508333 | X7: =1/(1+Inputs!$D$5)^(X5-$D$5) -> 0.2584190028 | Y7: =1/(1+Inputs!$D$5)^(Y5-$D$5) -> 0.2415130867 | Z7: =1/(1+Inputs!$D$5)^(Z5-$D$5) -> 0.2257131652 | AA7: =1/(1+Inputs!$D$5)^(AA5-$D$5) -> 0.2109468833 | AB7: =1/(1+Inputs!$D$5)^(AB5-$D$5) -> 0.1971466199
A8: Discount Factor | B8: % | C8: 0.03 | D8: =1/(1+Inputs!$D$6)^(D5-$D$5) -> 1 | E8: =1/(1+Inputs!$D$6)^(E5-$D$5) -> 0.9708737864 | F8: =1/(1+Inputs!$D$6)^(F5-$D$5) -> 0.9425959091 | G8: =1/(1+Inputs!$D$6)^(G5-$D$5) -> 0.9151416594 | H8: =1/(1+Inputs!$D$6)^(H5-$D$5) -> 0.8884870479 | I8: =1/(1+Inputs!$D$6)^(I5-$D$5) -> 0.8626087844 | J8: =1/(1+Inputs!$D$6)^(J5-$D$5) -> 0.8374842567 | K8: =1/(1+Inputs!$D$6)^(K5-$D$5) -> 0.8130915113 | L8: =1/(1+Inputs!$D$6)^(L5-$D$5) -> 0.7894092343 | M8: =1/(1+Inputs!$D$6)^(M5-$D$5) -> 0.7664167323 | N8: =1/(1+Inputs!$D$6)^(N5-$D$5) -> 0.7440939149 | O8: =1/(1+Inputs!$D$6)^(O5-$D$5) -> 0.7224212766 | P8: =1/(1+Inputs!$D$6)^(P5-$D$5) -> 0.7013798802 | Q8: =1/(1+Inputs!$D$6)^(Q5-$D$5) -> 0.68095134 | R8: =1/(1+Inputs!$D$6)^(R5-$D$5) -> 0.6611178058 | S8: =1/(1+Inputs!$D$6)^(S5-$D$5) -> 0.6418619474 | T8: =1/(1+Inputs!$D$6)^(T5-$D$5) -> 0.6231669392 | U8: =1/(1+Inputs!$D$6)^(U5-$D$5) -> 0.6050164458 | V8: =1/(1+Inputs!$D$6)^(V5-$D$5) -> 0.5873946076 | W8: =1/(1+Inputs!$D$6)^(W5-$D$5) -> 0.5702860268 | X8: =1/(1+Inputs!$D$6)^(X5-$D$5) -> 0.5536757542 | Y8: =1/(1+Inputs!$D$6)^(Y5-$D$5) -> 0.5375492759 | Z8: =1/(1+Inputs!$D$6)^(Z5-$D$5) -> 0.5218925009 | AA8: =1/(1+Inputs!$D$6)^(AA5-$D$5) -> 0.5066917484 | AB8: =1/(1+Inputs!$D$6)^(AB5-$D$5) -> 0.4919337363
A10: Share of Traffic - Auto | B10: % | D10: =1-ShareTruck -> 0.79 | E10: 0.79 | F10: 0.79 | G10: 0.79 | H10: 0.79 | I10: 0.79 | J10: 0.79 | K10: 0.79 | L10: 0.79 | M10: 0.79 | N10: 0.79 | O10: 0.79 | P10: 0.79 | Q10: 0.79 | R10: 0.79 | S10: 0.79 | T10: 0.79 | U10: 0.79 | V10: 0.79 | W10: 0.79 | X10: 0.79 | Y10: 0.79 | Z10: 0.79 | AA10: 0.79 | AB10: 0.79
A11: Share of Traffic - Trucks | B11: % | D11: =Inputs!$D$20 -> 0.21 | E11: =Inputs!$D$20 -> 0.21 | F11: =Inputs!$D$20 -> 0.21 | G11: =Inputs!$D$20 -> 0.21 | H11: =Inputs!$D$20 -> 0.21 | I11: =Inputs!$D$20 -> 0.21 | J11: =Inputs!$D$20 -> 0.21 | K11: =Inputs!$D$20 -> 0.21 | L11: =Inputs!$D$20 -> 0.21 | M11: =Inputs!$D$20 -> 0.21 | N11: =Inputs!$D$20 -> 0.21 | O11: =Inputs!$D$20 -> 0.21 | P11: =Inputs!$D$20 -> 0.21 | Q11: =Inputs!$D$20 -> 0.21 | R11: =Inputs!$D$20 -> 0.21 | S11: =Inputs!$D$20 -> 0.21 | T11: =Inputs!$D$20 -> 0.21 | U11: =Inputs!$D$20 -> 0.21 | V11: =Inputs!$D$20 -> 0.21 | W11: =Inputs!$D$20 -> 0.21 | X11: =Inputs!$D$20 -> 0.21 | Y11: =Inputs!$D$20 -> 0.21 | Z11: =Inputs!$D$20 -> 0.21 | AA11: =Inputs!$D$20 -> 0.21 | AB11: =Inputs!$D$20 -> 0.21
A13: No Build Case Alternative | B13: Unit | C13: Value | D13: =Base.Year -> 2018 | E13: =D13+1 -> 2019 | F13: 2020 | G13: 2021 | H13: 2022 | I13: 2023 | J13: 2024 | K13: 2025 | L13: 2026 | M13: 2027 | N13: 2028 | O13: 2029 | P13: 2030 | Q13: 2031 | R13: 2032 | S13: 2033 | T13: 2034 | U13: 2035 | V13: 2036 | W13: 2037 | X13: 2038 | Y13: 2039 | Z13: 2040 | AA13: 2041 | AB13: 2042
A15: Total Daily VMT | B15: =Traffic!B11 -> Daily VMT | D15: =Traffic!D16 -> 9000 | E15: =Traffic!E16 -> 9178.140137 | F15: =Traffic!F16 -> 9359.806265 | G15: =Traffic!G11 -> 21953.6568 | H15: =Traffic!H11 -> 22388.19318 | I15: =Traffic!I11 -> 22831.33049 | J15: =Traffic!J11 -> 23283.23897 | K15: =Traffic!K11 -> 23744.09224 | L15: =Traffic!L11 -> 24214.06733 | M15: =Traffic!M11 -> 24693.34481 | N15: =Traffic!N11 -> 25182.10879 | O15: =Traffic!O11 -> 25680.54705 | P15: =Traffic!P11 -> 26188.85107 | Q15: =Traffic!Q11 -> 26707.21613 | R15: =Traffic!R11 -> 27235.84137 | S15: =Traffic!S11 -> 27774.92987 | T15: =Traffic!T11 -> 28324.68874 | U15: =Traffic!U11 -> 28885.32918 | V15: =Traffic!V11 -> 29457.06657 | W15: =Traffic!W11 -> 30040.12055 | X15: =Traffic!X11 -> 30634.71513 | Y15: =Traffic!Y11 -> 31241.07873 | Z15: =Traffic!Z11 -> 31859.44429 | AA15: =Traffic!AA11 -> 32490.04938 | AB15: =Traffic!AB11 -> 33133.13625
A17: Fatalities | B17: fatalities/year | D17: =(D15/100000000)*Annualization_Factor*PercentFatal_Bridge -> 0 | E17: =(E15/100000000)*Annualization_Factor*CrashRate_Bridge*PercentFatal_Bridge -> 0 | F17: =(F15/100000000)*Annualization_Factor*CrashRate_Bridge*PercentFatal_Bridge -> 0 | G17: =(G15/100000000)*Annualization_Factor*PercentFatal_Detour -> 0.0953557083 | H17: 0.09724311707 | I17: 0.09916788399 | J17: 0.1011307485 | K17: 0.1031324646 | L17: 0.1051738015 | M17: 0.1072555432 | N17: 0.1093784895 | O17: 0.1115434561 | P17: 0.1137512746 | Q17: 0.1160027933 | R17: 0.118298877 | S17: 0.1206404079 | T17: 0.1230282855 | U17: 0.1254634273 | V17: 0.1279467686 | W17: 0.1304792636 | X17: 0.1330618852 | Y17: 0.1356956254 | Z17: 0.1383814963 | AA17: 0.1411205295 | AB17: 0.1439137773
A18: Injuries | B18: injuries/year | D18: =(D15/100000000)*Annualization_Factor*PercentInjury_Bridge*NumberInjuryperCrash_Bridge -> 0.574875 | E18: =(E15/100000000)*Annualization_Factor*PercentInjury_Bridge*NumberInjuryperCrash_Bridge -> 0.5862537013 | F18: =(F15/100000000)*Annualization_Factor*PercentInjury_Bridge*NumberInjuryperCrash_Bridge -> 0.5978576251 | G18: =(G15/100000000)*Annualization_Factor*PercentInjury_Detour*NumberInjuryperCrash_Detour -> 2.270812056 | H18: 2.31575903 | I18: 2.361595656 | J18: 2.408339542 | K18: 2.456008646 | L18: 2.504621282 | M18: 2.554196124 | N18: 2.604752218 | O18: 2.656308987 | P18: 2.708886236 | Q18: 2.762504166 | R18: 2.817183374 | S18: 2.872944866 | T18: 2.929810066 | U18: 2.987800818 | V18: 3.046939401 | W18: 3.107248534 | X18: 3.168751388 | Y18: 3.231471589 | Z18: 3.295433232 | AA18: 3.360660891 | AB18: 3.427179624
A19: PDO | B19: PDO vehicles/year | D19: =(D15/100000000)*Annualization_Factor*PercentPDO_Bridge*DamagedVeh_PDOcrash -> 4.518087165 | E19: =(E15/100000000)*Annualization_Factor*PercentPDO_Bridge*DamagedVeh_PDOcrash -> 4.607515239 | F19: =(F15/100000000)*Annualization_Factor*PercentPDO_Bridge*DamagedVeh_PDOcrash -> 4.698713395 | G19: =(G15/100000000)*Annualization_Factor*PercentPDO_Detour*DamagedVeh_PDOcrash -> 4.717205221 | H19: 4.810574509 | I19: 4.905791887 | J19: 5.002893936 | K19: 5.10191796 | L19: 5.202902 | M19: 5.305884853 | N19: 5.410906082 | O19: 5.518006032 | P19: 5.627225849 | Q19: 5.738607492 | R19: 5.85219375 | S19: 5.968028261 | T19: 6.086155525 | U19: 6.206620923 | V19: 6.329470735 | W19: 6.454752155 | X19: 6.582513315 | Y19: 6.712803295 | Z19: 6.845672151 | AA19: 6.981170926 | AB19: 7.119351676
A21: Cost of Fatalities | B21: $/year | D21: =(D17*AccidentCost_Fatality) -> 0 | E21: 0 | F21: 0 | G21: =(G17*AccidentCost_Fatality) -> 915414.7997 | H21: =(H17*AccidentCost_Fatality) -> 933533.9239 | I21: 952011.6863 | J21: 970855.1855 | K21: 990071.6606 | L21: 1009668.494 | M21: 1029653.215 | N21: 1050033.5 | O21: 1070817.179 | P21: 1092012.236 | Q21: 1113626.815 | R21: 1135669.219 | S21: 1158147.916 | T21: 1181071.541 | U21: 1204448.902 | V21: 1228288.979 | W21: 1252600.931 | X21: 1277394.098 | Y21: 1302678.004 | Z21: 1328462.364 | AA21: 1354757.083 | AB21: =(AB17*AccidentCost_Fatality) -> 1381572.262
A22: Cost Injuries | B22: $/year | D22: =D18*AccidentCost_Injury -> 100028.25 | E22: 102008.144 | F22: 104027.2268 | G22: =G18*AccidentCost_Injury -> 395121.2977 | H22: =H18*AccidentCost_Injury -> 402942.0713 | I22: 410917.6442 | J22: 419051.0803 | K22: 427345.5044 | L22: 435804.103 | M22: 444430.1255 | N22: 453226.8859 | O22: 462197.7637 | P22: 471346.2051 | Q22: 480675.7249 | R22: 490189.907 | S22: 499892.4068 | T22: 509786.9514 | U22: 519877.3423 | V22: 530167.4557 | W22: 540661.245 | X22: 551362.7415 | Y22: 562276.0564 | Z22: 573405.3824 | AA22: 584754.995 | AB22: =AB18*AccidentCost_Injury -> 596329.2545
A23: Cost PDO Accidents | B23: $/year | D23: =D19*AccidentCost_PDO -> 19427.77481 | E23: 19812.31553 | F23: 20204.4676 | G23: =G19*AccidentCost_PDO -> 20283.98245 | H23: =H19*AccidentCost_PDO -> 20685.47039 | I23: 21094.90511 | J23: 21512.44392 | K23: 21938.24723 | L23: 22372.4786 | M23: 22815.30487 | N23: 23266.89615 | O23: 23727.42594 | P23: 24197.07115 | Q23: 24676.01222 | R23: 25164.43313 | S23: 25662.52152 | T23: 26170.46876 | U23: 26688.46997 | V23: 27216.72416 | W23: 27755.43427 | X23: 28304.80725 | Y23: 28865.05417 | Z23: 29436.39025 | AA23: 30019.03498 | AB23: =AB19*AccidentCost_PDO -> 30613.21221
A25: Total Accident Cost | B25: $/year | D25: =SUM(D21:D23) -> 119456.0248 | E25: 121820.4596 | F25: 124231.6944 | G25: =SUM(G21:G23) -> 1330820.08 | H25: =SUM(H21:H23) -> 1357161.466 | I25: =SUM(I21:I23) -> 1384024.236 | J25: 1411418.71 | K25: 1439355.412 | L25: 1467845.076 | M25: 1496898.645 | N25: 1526527.282 | O25: 1556742.368 | P25: 1587555.513 | Q25: 1618978.552 | R25: 1651023.559 | S25: 1683702.844 | T25: 1717028.961 | U25: 1751014.714 | V25: 1785673.159 | W25: 1821017.61 | X25: 1857061.646 | Y25: 1893819.115 | Z25: 1931304.137 | AA25: 1969531.113 | AB25: =SUM(AB21:AB23) -> 2008514.729
A27: Build (Alternative Case) | B27: Unit | C27: Value | D27: =Base.Year -> 2018 | E27: =D27+1 -> 2019 | F27: 2020 | G27: 2021 | H27: 2022 | I27: 2023 | J27: 2024 | K27: 2025 | L27: 2026 | M27: 2027 | N27: 2028 | O27: 2029 | P27: 2030 | Q27: 2031 | R27: 2032 | S27: 2033 | T27: 2034 | U27: 2035 | V27: 2036 | W27: 2037 | X27: 2038 | Y27: 2039 | Z27: 2040 | AA27: 2041 | AB27: 2042
A29: Total Daily VMT | B29: =Traffic!B16 -> Daily VMT | D29: =Traffic!D16 -> 9000 | E29: =Traffic!E16 -> 9178.140137 | F29: =Traffic!F16 -> 9359.806265 | G29: =Traffic!G11 -> 21953.6568 | H29: =Traffic!H11 -> 22388.19318 | I29: =((Traffic!I11)*7/12) + ((Traffic!I16)*5/12) -> 17454.38672 | J29: =Traffic!J16 -> 10123.14738 | K29: =Traffic!K16 -> 10323.51837 | L29: =Traffic!L16 -> 10527.85536 | M29: =Traffic!M16 -> 10736.23687 | N29: =Traffic!N16 -> 10948.74295 | O29: =Traffic!O16 -> 11165.45524 | P29: =Traffic!P16 -> 11386.45699 | Q29: =Traffic!Q16 -> 11611.8331 | R29: =Traffic!R16 -> 11841.67016 | S29: =Traffic!S16 -> 12076.05646 | T29: =Traffic!T16 -> 12315.08206 | U29: =Traffic!U16 -> 12558.83877 | V29: =Traffic!V16 -> 12807.42025 | W29: =Traffic!W16 -> 13060.92198 | X29: =Traffic!X16 -> 13319.44136 | Y29: =Traffic!Y16 -> 13583.07771 | Z29: =Traffic!Z16 -> 13851.9323 | AA29: =Traffic!AA16 -> 14126.10842 | AB29: =Traffic!AB16 -> 14405.71141
A31: Fatalities | B31: fatalities/year | D31: =(D29/100000000)*Annualization_Factor*PercentFatal_Bridge -> 0 | E31: =(E29/100000000)*Annualization_Factor*PercentFatal_Bridge -> 0 | F31: =(F29/100000000)*Annualization_Factor*PercentFatal_Bridge -> 0 | G31: =(G29/100000000)*Annualization_Factor*PercentFatal_Detour -> 0.0953557083 | H31: =(H29/100000000)*Annualization_Factor*PercentFatal_Detour -> 0.09724311707 | I31: =((((Traffic!I11)*7/12)/100000000)*Annualization_Factor*PercentFatal_Detour) + ((((Traffic!I16)*5/12)/100000000)*Annualization_Factor*PercentFatal_Bridge) -> 0.05784793233 | J31: =(J29/100000000)*Annualization_Factor*PercentFatal_Bridge -> 0 | K31: 0 | L31: 0 | M31: 0 | N31: 0 | O31: 0 | P31: 0 | Q31: 0 | R31: 0 | S31: 0 | T31: 0 | U31: 0 | V31: 0 | W31: 0 | X31: 0 | Y31: 0 | Z31: 0 | AA31: 0 | AB31: 0
A32: Injuries | B32: injuries/year | D32: =(D29/100000000)*Annualization_Factor*PercentInjury_Bridge*NumberInjuryperCrash_Bridge -> 0.574875 | E32: =(E29/100000000)*Annualization_Factor*PercentInjury_Bridge*NumberInjuryperCrash_Bridge -> 0.5862537013 | F32: =(F29/100000000)*Annualization_Factor*PercentInjury_Bridge*NumberInjuryperCrash_Bridge -> 0.5978576251 | G32: =(G29/100000000)*Annualization_Factor*PercentInjury_Detour*NumberInjuryperCrash_Detour -> 2.270812056 | H32: =(H29/100000000)*Annualization_Factor*PercentInjury_Detour*NumberInjuryperCrash_Detour -> 2.31575903 | I32: =((((Traffic!I11)*7/12)/100000000)*Annualization_Factor*PercentInjury_Detour*NumberInjuryperCrash_Detour) + (((Traffic!I16)*5/12)/100000000)*Annualization_Factor*PercentInjury_Bridge*NumberInjuryperCrash_Bridge -> 1.64179153 | J32: =(J29/100000000)*Annualization_Factor*PercentInjury_Bridge*NumberInjuryperCrash_Bridge -> 0.6466160389 | K32: 0.6594147356 | L32: 0.6724667613 | M32: 0.6857771303 | N32: 0.6993509561 | O32: 0.7131934534 | P32: 0.72730994 | Q32: 0.7417058392 | R32: 0.7563866814 | S32: 0.7713581067 | T32: 0.7866258666 | U32: 0.8021958266 | V32: 0.8180739682 | W32: 0.8342663914 | X32: 0.850779317 | Y32: 0.8676190885 | Z32: 0.8847921756 | AA32: 0.9023051756 | AB32: 0.9201648165
A33: PDO | B33: PDO vehicles/year | D33: =(D29/100000000)*Annualization_Factor*PercentPDO_Bridge*DamagedVeh_PDOcrash -> 4.518087165 | E33: =(E29/100000000)*Annualization_Factor*PercentPDO_Bridge*DamagedVeh_PDOcrash -> 4.607515239 | F33: =(F29/100000000)*Annualization_Factor*PercentPDO_Bridge*DamagedVeh_PDOcrash -> 4.698713395 | G33: =(G29/100000000)*Annualization_Factor*PercentPDO_Detour*DamagedVeh_PDOcrash -> 4.717205221 | H33: =(H29/100000000)*Annualization_Factor*PercentPDO_Detour*DamagedVeh_PDOcrash -> 4.810574509 | I33: =((((Traffic!I11)*7/12)/100000000)*Annualization_Factor*PercentPDO_Detour*DamagedVeh_PDOcrash)+(((Traffic!I16)*5/12)/100000000)*Annualization_Factor*PercentPDO_Bridge*DamagedVeh_PDOcrash -> 4.938079512 | J33: =(J29/100000000)*Annualization_Factor*PercentPDO_Bridge*DamagedVeh_PDOcrash -> 5.081918028 | K33: 5.182506203 | L33: 5.285085354 | M33: 5.389694891 | N33: 5.496375001 | O33: 5.605166667 | P33: 5.716111685 | Q33: 5.829252676 | R33: 5.944633107 | S33: 6.062297302 | T33: 6.182290466 | U33: 6.304658696 | V33: 6.429449003 | W33: 6.556709329 | X33: 6.686488562 | Y33: 6.818836561 | Z33: 6.95380417 | AA33: 7.09144324 | AB33: 7.231806648
A35: Cost of Fatalities | B35: $/year | D35: =(D31*AccidentCost_Fatality) -> 0 | E35: =(E31*AccidentCost_Fatality) -> 0 | F35: =(F31*AccidentCost_Fatality) -> 0 | G35: =(G31*AccidentCost_Fatality) -> 915414.7997 | H35: =H31*AccidentCost_Fatality -> 933533.9239 | I35: =I31*AccidentCost_Fatality -> 555340.1503 | J35: =J31*AccidentCost_Fatality -> 0 | K35: 0 | L35: 0 | M35: 0 | N35: 0 | O35: 0 | P35: 0 | Q35: 0 | R35: 0 | S35: 0 | T35: 0 | U35: 0 | V35: 0 | W35: 0 | X35: 0 | Y35: 0 | Z35: 0 | AA35: 0 | AB35: =AB31*AccidentCost_Fatality -> 0
A36: Cost Injuries | B36: $/year | D36: =D32*AccidentCost_Injury -> 100028.25 | E36: 102008.144 | F36: 104027.2268 | G36: 395121.2977 | H36: 402942.0713 | I36: 285671.7263 | J36: =J32*AccidentCost_Injury -> 112511.1908 | K36: 114738.164 | L36: 117009.2165 | M36: 119325.2207 | N36: 121687.0664 | O36: 124095.6609 | P36: 126551.9296 | Q36: 129056.816 | R36: 131611.2826 | S36: 134216.3106 | T36: 136872.9008 | U36: 139582.0738 | V36: 142344.8705 | W36: 145162.3521 | X36: 148035.6011 | Y36: 150965.7214 | Z36: 153953.8386 | AA36: 157001.1006 | AB36: =AB32*AccidentCost_Injury -> 160108.6781
A37: Cost PDO Accidents | B37: $/year | D37: =D33*AccidentCost_PDO -> 19427.77481 | E37: 19812.31553 | F37: 20204.4676 | G37: 20283.98245 | H37: 20685.47039 | I37: 21233.7419 | J37: =J33*AccidentCost_PDO -> 21852.24752 | K37: 22284.77667 | L37: 22725.86702 | M37: 23175.68803 | N37: 23634.4125 | O37: 24102.21667 | P37: 24579.28025 | Q37: 25065.78651 | R37: 25561.92236 | S37: 26067.8784 | T37: 26583.849 | U37: 27110.03239 | V37: 27646.63071 | W37: 28193.85011 | X37: 28751.90082 | Y37: 29320.99721 | Z37: 29901.35793 | AA37: 30493.20593 | AB37: =AB33*AccidentCost_PDO -> 31096.76859
A39: Total Accident Cost | B39: $/year | D39: =SUM(D35:D37) -> 119456.0248 | E39: 121820.4596 | F39: 124231.6944 | G39: =SUM(G35:G37) -> 1330820.08 | H39: =SUM(H35:H37) -> 1357161.466 | I39: =SUM(I35:I37) -> 862245.6185 | J39: 134363.4383 | K39: 137022.9407 | L39: 139735.0835 | M39: 142500.9087 | N39: 145321.4789 | O39: 148197.8776 | P39: 151131.2098 | Q39: 154122.6025 | R39: 157173.2049 | S39: 160284.189 | T39: 163456.7498 | U39: 166692.1062 | V39: 169991.5012 | W39: 173356.2022 | X39: 176787.502 | Y39: 180286.7186 | Z39: 183855.1965 | AA39: 187494.3065 | AB39: =SUM(AB35:AB37) -> 191205.4467
A41: No Build Less Build | B41: Unit | C41: Value | D41: =Base.Year -> 2018 | E41: =D41+1 -> 2019 | F41: 2020 | G41: 2021 | H41: 2022 | I41: 2023 | J41: 2024 | K41: 2025 | L41: 2026 | M41: 2027 | N41: 2028 | O41: 2029 | P41: 2030 | Q41: 2031 | R41: 2032 | S41: 2033 | T41: 2034 | U41: 2035 | V41: 2036 | W41: 2037 | X41: 2038 | Y41: 2039 | Z41: 2040 | AA41: 2041 | AB41: 2042
A42: Undiscounted Impacts | B42: $/year | D42: =D25-D39 -> 0 | E42: 0 | F42: 0 | G42: 0 | H42: 0 | I42: 521778.617 | J42: 1277055.271 | K42: 1302332.472 | L42: 1328109.992 | M42: 1354397.736 | N42: 1381205.803 | O42: 1408544.491 | P42: 1436424.303 | Q42: 1464855.95 | R42: 1493850.354 | S42: 1523418.655 | T42: 1553572.212 | U42: 1584322.608 | V42: 1615681.658 | W42: 1647661.408 | X42: 1680274.144 | Y42: 1713532.396 | Z42: 1747448.94 | AA42: 1782036.806 | AB42: 1817309.282
A43: Discounted Impacts, at 7% | B43: $/year | D43: =D42*D7 -> 0 | E43: 0 | F43: 0 | G43: 0 | H43: 0 | I43: 372020.9427 | J43: 850955.8495 | K43: 811027.2105 | L43: 772972.1073 | M43: 736702.6296 | N43: 702134.9921 | O43: 669189.3409 | P43: 637789.569 | Q43: 607863.1404 | R43: 579340.9229 | S43: 552157.0278 | T43: 526248.6582 | U43: 501555.9639 | V43: 478021.9027 | W43: 455592.1092 | X43: 434214.7689 | Y43: 413840.4983 | Z43: 394422.2313 | AA43: 375915.1103 | AB43: 358276.3824
A44: Discounted Impacts, at 3% | B44: $/year | D44: =D42*D8 -> 0 | E44: 0 | F44: 0 | G44: 0 | H44: 0 | I44: 450090.8186 | J44: 1069513.685 | K44: 1058915.478 | L44: 1048422.292 | M44: 1038033.087 | N44: 1027746.833 | O44: 1017562.509 | P44: 1007479.105 | Q44: 997495.6219 | R44: 987611.0684 | S44: 977824.4646 | T44: 968134.8399 | U44: 958541.2333 | V44: 949042.6933 | W44: 939638.2778 | X44: 930327.0541 | Y44: 921108.0989 | Z44: 911980.4976 | AA44: 902943.3452 | AB44: 893995.7452
A46: Key Quantified Impacts
A47: Reduction in Accident Costs | B47: $/year | D47: =D42 -> 0 | E47: =E42 -> 0 | F47: 0 | G47: 0 | H47: 0 | I47: 521778.617 | J47: 1277055.271 | K47: 1302332.472 | L47: 1328109.992 | M47: 1354397.736 | N47: 1381205.803 | O47: 1408544.491 | P47: 1436424.303 | Q47: 1464855.95 | R47: 1493850.354 | S47: 1523418.655 | T47: 1553572.212 | U47: 1584322.608 | V47: 1615681.658 | W47: 1647661.408 | X47: 1680274.144 | Y47: 1713532.396 | Z47: 1747448.94 | AA47: 1782036.806 | AB47: =AB42 -> 1817309.282

Sheet Cal-4
A2: Environmental Costs Due To Additional VMT After Closure
H3: 2022 - First Year of Construction under Build (Bridge Close)
G4: 2021 - First Year of Bridge Closured under No-Build
B5: Unit | C5: Value | D5: =Base.Year -> 2018 | E5: =D5+1 -> 2019 | F5: 2020 | G5: 2021 | H5: 2022 | I5: 2023 | J5: 2024 | K5: 2025 | L5: 2026 | M5: 2027 | N5: 2028 | O5: 2029 | P5: 2030 | Q5: 2031 | R5: 2032 | S5: 2033 | T5: 2034 | U5: =T5+1 -> 2035 | V5: 2036 | W5: 2037 | X5: 2038 | Y5: 2039 | Z5: 2040 | AA5: 2041 | AB5: 2042
A6: Benefits Index | B6: Number | D6: 0 | E6: 0 | F6: 0 | G6: =F6+1 -> 1 | H6: =G6+1 -> 2 | I6: =H6+1 -> 3 | J6: 4 | K6: 5 | L6: 6 | M6: 7 | N6: 8 | O6: 9 | P6: 10 | Q6: 11 | R6: 12 | S6: 13 | T6: 14 | U6: 15 | V6: 16 | W6: 17 | X6: 18 | Y6: 19 | Z6: 20 | AA6: 21 | AB6: 22
A7: Discount Factor | B7: % | C7: 0.07 | D7: =1/(1+Inputs!$D$5)^(D5-$D$5) -> 1 | E7: =1/(1+Inputs!$D$5)^(E5-$D$5) -> 0.9345794393 | F7: =1/(1+Inputs!$D$5)^(F5-$D$5) -> 0.8734387283 | G7: =1/(1+Inputs!$D$5)^(G5-$D$5) -> 0.8162978769 | H7: =1/(1+Inputs!$D$5)^(H5-$D$5) -> 0.762895212 | I7: =1/(1+Inputs!$D$5)^(I5-$D$5) -> 0.7129861795 | J7: =1/(1+Inputs!$D$5)^(J5-$D$5) -> 0.6663422238 | K7: =1/(1+Inputs!$D$5)^(K5-$D$5) -> 0.6227497419 | L7: =1/(1+Inputs!$D$5)^(L5-$D$5) -> 0.5820091046 | M7: =1/(1+Inputs!$D$5)^(M5-$D$5) -> 0.5439337426 | N7: =1/(1+Inputs!$D$5)^(N5-$D$5) -> 0.5083492921 | O7: =1/(1+Inputs!$D$5)^(O5-$D$5) -> 0.4750927964 | P7: =1/(1+Inputs!$D$5)^(P5-$D$5) -> 0.4440119592 | Q7: =1/(1+Inputs!$D$5)^(Q5-$D$5) -> 0.4149644479 | R7: =1/(1+Inputs!$D$5)^(R5-$D$5) -> 0.387817241 | S7: =1/(1+Inputs!$D$5)^(S5-$D$5) -> 0.3624460196 | T7: =1/(1+Inputs!$D$5)^(T5-$D$5) -> 0.3387345978 | U7: =1/(1+Inputs!$D$5)^(U5-$D$5) -> 0.3165743905 | V7: =1/(1+Inputs!$D$5)^(V5-$D$5) -> 0.2958639163 | W7: =1/(1+Inputs!$D$5)^(W5-$D$5) -> 0.276508333 | X7: =1/(1+Inputs!$D$5)^(X5-$D$5) -> 0.2584190028 | Y7: =1/(1+Inputs!$D$5)^(Y5-$D$5) -> 0.2415130867 | Z7: =1/(1+Inputs!$D$5)^(Z5-$D$5) -> 0.2257131652 | AA7: =1/(1+Inputs!$D$5)^(AA5-$D$5) -> 0.2109468833 | AB7: =1/(1+Inputs!$D$5)^(AB5-$D$5) -> 0.1971466199
A8: Discount Factor | B8: % | C8: 0.03 | D8: =1/(1+Inputs!$D$6)^(D5-$D$5) -> 1 | E8: =1/(1+Inputs!$D$6)^(E5-$D$5) -> 0.9708737864 | F8: =1/(1+Inputs!$D$6)^(F5-$D$5) -> 0.9425959091 | G8: =1/(1+Inputs!$D$6)^(G5-$D$5) -> 0.9151416594 | H8: =1/(1+Inputs!$D$6)^(H5-$D$5) -> 0.8884870479 | I8: =1/(1+Inputs!$D$6)^(I5-$D$5) -> 0.8626087844 | J8: =1/(1+Inputs!$D$6)^(J5-$D$5) -> 0.8374842567 | K8: =1/(1+Inputs!$D$6)^(K5-$D$5) -> 0.8130915113 | L8: =1/(1+Inputs!$D$6)^(L5-$D$5) -> 0.7894092343 | M8: =1/(1+Inputs!$D$6)^(M5-$D$5) -> 0.7664167323 | N8: =1/(1+Inputs!$D$6)^(N5-$D$5) -> 0.7440939149 | O8: =1/(1+Inputs!$D$6)^(O5-$D$5) -> 0.7224212766 | P8: =1/(1+Inputs!$D$6)^(P5-$D$5) -> 0.7013798802 | Q8: =1/(1+Inputs!$D$6)^(Q5-$D$5) -> 0.68095134 | R8: =1/(1+Inputs!$D$6)^(R5-$D$5) -> 0.6611178058 | S8: =1/(1+Inputs!$D$6)^(S5-$D$5) -> 0.6418619474 | T8: =1/(1+Inputs!$D$6)^(T5-$D$5) -> 0.6231669392 | U8: =1/(1+Inputs!$D$6)^(U5-$D$5) -> 0.6050164458 | V8: =1/(1+Inputs!$D$6)^(V5-$D$5) -> 0.5873946076 | W8: =1/(1+Inputs!$D$6)^(W5-$D$5) -> 0.5702860268 | X8: =1/(1+Inputs!$D$6)^(X5-$D$5) -> 0.5536757542 | Y8: =1/(1+Inputs!$D$6)^(Y5-$D$5) -> 0.5375492759 | Z8: =1/(1+Inputs!$D$6)^(Z5-$D$5) -> 0.5218925009 | AA8: =1/(1+Inputs!$D$6)^(AA5-$D$5) -> 0.5066917484 | AB8: =1/(1+Inputs!$D$6)^(AB5-$D$5) -> 0.4919337363
A10: Share of Traffic - Auto | B10: % | D10: =1-ShareTruck -> 0.79 | E10: 0.79 | F10: 0.79 | G10: 0.79 | H10: 0.79 | I10: 0.79 | J10: 0.79 | K10: 0.79 | L10: 0.79 | M10: 0.79 | N10: 0.79 | O10: 0.79 | P10: 0.79 | Q10: 0.79 | R10: 0.79 | S10: 0.79 | T10: 0.79 | U10: 0.79 | V10: 0.79 | W10: 0.79 | X10: 0.79 | Y10: =Inputs!#REF! ->  | Z10: =Inputs!#REF! ->  | AA10: =Inputs!#REF! ->  | AB10: =Inputs!#REF! -> 
A11: Share of Traffic - Trucks | B11: % | D11: =Inputs!$D$20 -> 0.21 | E11: =Inputs!$D$20 -> 0.21 | F11: =Inputs!$D$20 -> 0.21 | G11: =Inputs!$D$20 -> 0.21 | H11: =Inputs!$D$20 -> 0.21 | I11: =Inputs!$D$20 -> 0.21 | J11: =Inputs!$D$20 -> 0.21 | K11: =Inputs!$D$20 -> 0.21 | L11: =Inputs!$D$20 -> 0.21 | M11: =Inputs!$D$20 -> 0.21 | N11: =Inputs!$D$20 -> 0.21 | O11: =Inputs!$D$20 -> 0.21 | P11: =Inputs!$D$20 -> 0.21 | Q11: =Inputs!$D$20 -> 0.21 | R11: =Inputs!$D$20 -> 0.21 | S11: =Inputs!$D$20 -> 0.21 | T11: =Inputs!$D$20 -> 0.21 | U11: =Inputs!$D$20 -> 0.21 | V11: =Inputs!$D$20 -> 0.21 | W11: =Inputs!$D$20 -> 0.21 | X11: =Inputs!$D$20 -> 0.21 | Y11: =Inputs!$D$20 -> 0.21 | Z11: =Inputs!$D$20 -> 0.21 | AA11: =Inputs!$D$20 -> 0.21 | AB11: =Inputs!$D$20 -> 0.21
A13: No Build Case Alternative | B13: Unit | C13: Value | D13: =Base.Year -> 2018 | E13: =D13+1 -> 2019 | F13: 2020 | G13: 2021 | H13: 2022 | I13: 2023 | J13: 2024 | K13: 2025 | L13: 2026 | M13: 2027 | N13: 2028 | O13: 2029 | P13: 2030 | Q13: 2031 | R13: 2032 | S13: 2033 | T13: 2034 | U13: 2035 | V13: 2036 | W13: 2037 | X13: 2038 | Y13: 2039 | Z13: 2040 | AA13: 2041 | AB13: 2042
A15: Auto Daily VMT | B15: =Traffic!B12 -> Daily VMT | D15: =Traffic!D17 -> 7110 | E15: =Traffic!E17 -> 7250.730709 | F15: =Traffic!F17 -> 7394.246949 | G15: =Traffic!G12 -> 17343.38887 | H15: =Traffic!H12 -> 17686.67261 | I15: =Traffic!I12 -> 18036.75109 | J15: =Traffic!J12 -> 18393.75879 | K15: =Traffic!K12 -> 18757.83287 | L15: =Traffic!L12 -> 19129.11319 | M15: =Traffic!M12 -> 19507.7424 | N15: =Traffic!N12 -> 19893.86595 | O15: =Traffic!O12 -> 20287.63217 | P15: =Traffic!P12 -> 20689.19234 | Q15: =Traffic!Q12 -> 21098.70074 | R15: =Traffic!R12 -> 21516.31468 | S15: =Traffic!S12 -> 21942.1946 | T15: =Traffic!T12 -> 22376.5041 | U15: =Traffic!U12 -> 22819.41005 | V15: =Traffic!V12 -> 23271.08259 | W15: =Traffic!W12 -> 23731.69524 | X15: =Traffic!X12 -> 24201.42495 | Y15: =Traffic!Y12 -> 24680.45219 | Z15: =Traffic!Z12 -> 25168.96099 | AA15: =Traffic!AA12 -> 25667.13901 | AB15: =Traffic!AB12 -> 26175.17764
A16: Truck Daily VMT | B16: =Traffic!B13 -> Daily VMT | D16: =Traffic!D18 -> 1890 | E16: =Traffic!E18 -> 1927.409429 | F16: =Traffic!F18 -> 1965.559316 | G16: =Traffic!G13 -> 4610.267927 | H16: =Traffic!H13 -> 4701.520568 | I16: =Traffic!I13 -> 4794.579403 | J16: =Traffic!J13 -> 4889.480185 | K16: =Traffic!K13 -> 4986.25937 | L16: =Traffic!L13 -> 5084.95414 | M16: =Traffic!M13 -> 5185.60241 | N16: =Traffic!N13 -> 5288.242846 | O16: =Traffic!O13 -> 5392.91488 | P16: =Traffic!P13 -> 5499.658725 | Q16: =Traffic!Q13 -> 5608.515387 | R16: =Traffic!R13 -> 5719.526687 | S16: =Traffic!S13 -> 5832.735273 | T16: =Traffic!T13 -> 5948.184635 | U16: =Traffic!U13 -> 6065.919127 | V16: =Traffic!V13 -> 6185.983979 | W16: =Traffic!W13 -> 6308.425316 | X16: =Traffic!X13 -> 6433.290177 | Y16: =Traffic!Y13 -> 6560.626533 | Z16: =Traffic!Z13 -> 6690.483301 | AA16: =Traffic!AA13 -> 6822.910369 | AB16: =Traffic!AB13 -> 6957.958612
A18: Environmental Cost for Auto | B18: $/year | D18: =(D15*Annualization_Factor*EmissionCost_Auto1) -> 5794.866144 | E18: =(E15*Annualization_Factor*EmissionCost_Auto1) -> 5909.56595 | F18: 6026.536049 | G18: 14135.38917 | H18: 14415.17585 | I18: 14700.50045 | J18: 14991.47258 | K18: 15288.20403 | L18: 15590.80878 | M18: 15899.40309 | N18: 16214.10552 | O18: 16535.03696 | P18: 16862.32071 | Q18: 17196.0825 | R18: 17536.45056 | S18: 17883.55564 | T18: 18237.53109 | U18: 18598.5129 | V18: =(V15*Annualization_Factor*EmissionCost_Auto2) -> 6228.779853 | W18: 6352.068264 | X18: 6477.796966 | Y18: 6606.014259 | Z18: 6736.769402 | AA18: 6870.112627 | AB18: 7006.095161
A19: Environmental Cost for Trucks | B19: $/year | D19: =(D16*Annualization_Factor*EmissionCost_Truck1) -> 12758.0997 | E19: 13010.62521 | F19: 13268.14905 | G19: 31120.77135 | H19: 31736.75562 | I19: 32364.93229 | J19: 33005.54268 | K19: 33658.83289 | L19: 34325.0539 | M19: 35004.46166 | N19: 35697.31717 | O19: 36403.88661 | P19: 37124.44143 | Q19: 37859.25844 | R19: 38608.61994 | S19: 39372.81382 | T19: 40152.13365 | U19: 40946.87882 | V19: =(V16*Annualization_Factor*EmissionCost_Truck2) -> 5100.402248 | W19: 5201.356288 | X19: 5304.308546 | Y19: 5409.298574 | Z19: 5516.366706 | AA19: 5625.554076 | AB19: 5736.902628
A21: Total Emission Cost | B21: $/year | D21: =SUM(D18:D19) -> 18552.96584 | E21: 18920.19116 | F21: 19294.6851 | G21: 45256.16052 | H21: 46151.93148 | I21: 47065.43275 | J21: 47997.01526 | K21: 48947.03692 | L21: 49915.86268 | M21: 50903.86475 | N21: 51911.42269 | O21: 52938.92358 | P21: 53986.76215 | Q21: 55055.34095 | R21: 56145.0705 | S21: 57256.36946 | T21: 58389.66474 | U21: 59545.39172 | V21: 11329.1821 | W21: 11553.42455 | X21: 11782.10551 | Y21: 12015.31283 | Z21: 12253.13611 | AA21: 12495.6667 | AB21: 12742.99779
A23: Build (Alternative Case) | B23: Unit | C23: Value | D23: =Base.Year -> 2018 | E23: =D23+1 -> 2019 | F23: 2020 | G23: 2021 | H23: 2022 | I23: 2023 | J23: 2024 | K23: 2025 | L23: 2026 | M23: 2027 | N23: 2028 | O23: 2029 | P23: 2030 | Q23: 2031 | R23: 2032 | S23: 2033 | T23: 2034 | U23: 2035 | V23: 2036 | W23: 2037 | X23: 2038 | Y23: 2039 | Z23: 2040 | AA23: 2041 | AB23: 2042
A25: Auto Daily VMT | B25: =Traffic!B17 -> Daily VMT | D25: =Traffic!D17 -> 7110 | E25: =Traffic!E17 -> 7250.730709 | F25: =Traffic!F17 -> 7394.246949 | G25: =(Traffic!G12) -> 17343.38887 | H25: =(Traffic!H12) -> 17686.67261 | I25: =((Traffic!I12)*7/12) + ((Traffic!I17)*5/12) -> 13788.96551 | J25: =Traffic!J17 -> 7997.28643 | K25: =Traffic!K17 -> 8155.579508 | L25: =Traffic!L17 -> 8317.005737 | M25: =Traffic!M17 -> 8481.62713 | N25: =Traffic!N17 -> 8649.506933 | O25: =Traffic!O17 -> 8820.709639 | P25: =Traffic!P17 -> 8995.30102 | Q25: =Traffic!Q17 -> 9173.348148 | R25: =Traffic!R17 -> 9354.919426 | S25: =Traffic!S17 -> 9540.084607 | T25: =Traffic!T17 -> 9728.914827 | U25: =Traffic!U17 -> 9921.48263 | V25: =Traffic!V17 -> 10117.86199 | W25: =Traffic!W17 -> 10318.12836 | X25: =Traffic!X17 -> 10522.35868 | Y25: =Traffic!Y17 -> 10730.63139 | Z25: =Traffic!Z17 -> 10943.02652 | AA25: =Traffic!AA17 -> 11159.62565 | AB25: =Traffic!AB17 -> 11380.51202
A26: Truck Daily VMT | B26: =Traffic!B18 -> Daily VMT | D26: =Traffic!D18 -> 1890 | E26: =Traffic!E18 -> 1927.409429 | F26: =Traffic!F18 -> 1965.559316 | G26: =(Traffic!G13) -> 4610.267927 | H26: =(Traffic!H13) -> 4701.520568 | I26: =((Traffic!I13)*7/12) + ((Traffic!I18)*5/12) -> 3665.42121 | J26: =Traffic!J18 -> 2125.86095 | K26: =Traffic!K18 -> 2167.938857 | L26: =Traffic!L18 -> 2210.849626 | M26: =Traffic!M18 -> 2254.609744 | N26: =Traffic!N18 -> 2299.23602 | O26: =Traffic!O18 -> 2344.7456 | P26: =Traffic!P18 -> 2391.155967 | Q26: =Traffic!Q18 -> 2438.484951 | R26: =Traffic!R18 -> 2486.750733 | S26: =Traffic!S18 -> 2535.971858 | T26: =Traffic!T18 -> 2586.167233 | U26: =Traffic!U18 -> 2637.356142 | V26: =Traffic!V18 -> 2689.558252 | W26: =Traffic!W18 -> 2742.793616 | X26: =Traffic!X18 -> 2797.082686 | Y26: =Traffic!Y18 -> 2852.446319 | Z26: =Traffic!Z18 -> 2908.905783 | AA26: =Traffic!AA18 -> 2966.482769 | AB26: =Traffic!AB18 -> 3025.199397
A28: Environmental Cost for Auto | B28: $/year | D28: =(D25*Annualization_Factor*EmissionCost_Auto1) -> 5794.866144 | E28: =(E25*Annualization_Factor*EmissionCost_Auto1) -> 5909.56595 | F28: =(F25*Annualization_Factor*EmissionCost_Auto1) -> 6026.536049 | G28: =(G25*Annualization_Factor*EmissionCost_Auto1) -> 14135.38917 | H28: =H25*Annualization_Factor*EmissionCost_Auto1 -> 14415.17585 | I28: 11238.42607 | J28: 6518.031558 | K28: 6647.045229 | L28: 6778.612512 | M28: 6912.783953 | N28: 7049.611095 | O28: 7189.146505 | P28: 7331.443788 | Q28: 7476.557611 | R28: 7624.543722 | S28: 7775.458973 | T28: 7929.361343 | U28: 8086.309957 | V28: =V25*Annualization_Factor*EmissionCost_Auto2 -> 2708.165154 | W28: 2761.768811 | X28: 2816.433463 | Y28: 2872.180113 | Z28: 2929.030175 | AA28: 2987.00549 | AB28: 3046.128331
A29: Environmental Cost for Trucks | B29: $/year | D29: =(D26*Annualization_Factor*EmissionCost_Truck1) -> 12758.0997 | E29: =(E26*Annualization_Factor*EmissionCost_Truck1) -> 13010.62521 | F29: =(F26*Annualization_Factor*EmissionCost_Truck1) -> 13268.14905 | G29: =(G26*Annualization_Factor*EmissionCost_Truck1) -> 31120.77135 | H29: =H26*Annualization_Factor*EmissionCost_Truck1 -> 31736.75562 | I29: 24742.75621 | J29: 14350.23595 | K29: 14634.27517 | L29: 14923.93648 | M29: 15219.33116 | N29: 15520.57268 | O29: 15827.77679 | P29: 16141.06149 | Q29: 16460.54715 | R29: 16786.3565 | S29: 17118.6147 | T29: 17457.44941 | U29: 17802.99079 | V29: =V26*Annualization_Factor*EmissionCost_Truck2 -> 2217.566195 | W29: 2261.459256 | X29: 2306.221107 | Y29: 2351.868945 | Z29: 2398.420307 | AA29: 2445.893076 | AB29: 2494.305491
A31: Total Emission Cost | B31: $/year | D31: =SUM(D28:D29) -> 18552.96584 | E31: 18920.19116 | F31: 19294.6851 | G31: 45256.16052 | H31: 46151.93148 | I31: 35981.18228 | J31: 20868.26751 | K31: 21281.3204 | L31: 21702.54899 | M31: 22132.11511 | N31: 22570.18378 | O31: 23016.92329 | P31: 23472.50528 | Q31: 23937.10476 | R31: 24410.90022 | S31: 24894.07368 | T31: 25386.81075 | U31: 25889.30075 | V31: 4925.731348 | W31: 5023.228066 | X31: 5122.65457 | Y31: 5224.049058 | Z31: 5327.450482 | AA31: 5432.898566 | AB31: 5540.433822
A33: No Build Less Build | B33: Unit | C33: Value | D33: =Base.Year -> 2018 | E33: =D33+1 -> 2019 | F33: 2020 | G33: 2021 | H33: 2022 | I33: 2023 | J33: 2024 | K33: 2025 | L33: 2026 | M33: 2027 | N33: 2028 | O33: 2029 | P33: 2030 | Q33: 2031 | R33: 2032 | S33: 2033 | T33: 2034 | U33: 2035 | V33: 2036 | W33: 2037 | X33: 2038 | Y33: 2039 | Z33: 2040 | AA33: 2041 | AB33: 2042
A34: Undiscounted Impacts | B34: $/year | D34: =D21-D31 -> 0 | E34: 0 | F34: 0 | G34: 0 | H34: 0 | I34: 11084.25047 | J34: 27128.74776 | K34: 27665.71652 | L34: 28213.31369 | M34: 28771.74964 | N34: 29341.23891 | O34: 29922.00028 | P34: 30514.25686 | Q34: 31118.23619 | R34: 31734.17028 | S34: 32362.29578 | T34: 33002.85398 | U34: 33656.09097 | V34: 6403.450753 | W34: 6530.196486 | X34: 6659.450941 | Y34: 6791.263775 | Z34: 6925.685627 | AA34: 7062.768136 | AB34: 7202.563968
A35: Discounted Impacts, at 7% | B35: $/year | D35: =D34*D7 -> 0 | E35: 0 | F35: 0 | G35: 0 | H35: 0 | I35: 7902.917392 | J35: 18077.03011 | K35: 17228.81782 | L35: 16420.40544 | M35: 15649.92546 | N35: 14915.59803 | O35: 14215.72679 | P35: 13548.69498 | Q35: 12912.9617 | R35: 12307.05837 | S35: 11729.58529 | T35: 11179.20847 | U35: 10654.65649 | V35: 1894.550018 | W35: 1805.653745 | X35: 1720.928672 | Y35: 1640.179077 | Z35: 1563.218424 | AA35: 1489.868926 | AB35: 1419.961141
A36: Discounted Impacts, at 3% | B36: $/year | D36: =D34*D8 -> 0 | E36: 0 | F36: 0 | G36: 0 | H36: 0 | I36: 9561.37182 | J36: 22719.89915 | K36: 22494.75926 | L36: 22271.85036 | M36: 22051.15034 | N36: 21832.63733 | O36: 21616.28964 | P36: 21402.08582 | Q36: 21190.00463 | R36: 20980.02503 | S36: 20772.12619 | T36: 20566.2875 | U36: 20362.48854 | V36: 3761.352442 | W36: 3724.079808 | X36: 3687.176522 | Y36: 3650.638925 | Z36: 3614.463392 | AA36: 3578.646336 | AB36: 3543.184204
A38: Key Quantified Impacts
A39: Total Environmental Cost Saving | B39: $/year | D39: =D34 -> 0 | E39: =E34 -> 0 | F39: 0 | G39: 0 | H39: 0 | I39: 11084.25047 | J39: 27128.74776 | K39: 27665.71652 | L39: 28213.31369 | M39: 28771.74964 | N39: 29341.23891 | O39: 29922.00028 | P39: 30514.25686 | Q39: 31118.23619 | R39: 31734.17028 | S39: 32362.29578 | T39: 33002.85398 | U39: 33656.09097 | V39: 6403.450753 | W39: 6530.196486 | X39: 6659.450941 | Y39: 6791.263775 | Z39: 6925.685627 | AA39: 7062.768136 | AB39: =AB34 -> 7202.563968

Sheet Project Data
B2: General Data from Client
F3: Base Year | G3: =Base.Year -> 2018
B4: Case | C4: Data Input | D4: Year | F4: =Base.Year -> 2018 | G4: =F4+1 -> 2019 | H4: =G4+1 -> 2020 | I4: 2021 | J4: 2022 | K4: 2023 | L4: 2024 | M4: 2025 | N4: 2026 | O4: 2027 | P4: 2028 | Q4: 2029 | R4: 2030 | S4: 2031 | T4: 2032 | U4: 2033 | V4: 2034 | W4: 2035 | X4: 2036 | Y4: 2037 | Z4: 2038 | AA4: 2039 | AB4: 2040 | AC4: 2041 | AD4: 2042
D5: Benefits Index | F5: 0 | G5: 0 | H5: 0 | I5: 1 | J5: =I5+1 -> 2 | K5: 3 | L5: 4 | M5: 5 | N5: 6 | O5: 7 | P5: 8 | Q5: 9 | R5: 10 | S5: 11 | T5: 12 | U5: 13 | V5: 14 | W5: 15 | X5: 16 | Y5: 17 | Z5: 18 | AA5: 19 | AB5: 20 | AC5: 21 | AD5: 22
D6: Discount Factor | E6: 0.07 | F6: =1/(1+$E$6)^(F4-$G$3) -> 1 | G6: =1/(1+$E$6)^(G4-$G$3) -> 0.9345794393 | H6: 0.8734387283 | I6: 0.8162978769 | J6: 0.762895212 | K6: 0.7129861795 | L6: 0.6663422238 | M6: 0.6227497419 | N6: 0.5820091046 | O6: 0.5439337426 | P6: 0.5083492921 | Q6: 0.4750927964 | R6: 0.4440119592 | S6: 0.4149644479 | T6: 0.387817241 | U6: 0.3624460196 | V6: 0.3387345978 | W6: 0.3165743905 | X6: 0.2958639163 | Y6: 0.276508333 | Z6: 0.2584190028 | AA6: 0.2415130867 | AB6: 0.2257131652 | AC6: 0.2109468833 | AD6: =1/(1+$E$6)^(AD4-$G$3) -> 0.1971466199
D7: Discount Factor | E7: 0.03 | F7: =1/(1+$E$7)^(F4-$G$3) -> 1 | G7: =1/(1+$E$7)^(G4-$G$3) -> 0.9708737864 | H7: 0.9425959091 | I7: 0.9151416594 | J7: 0.8884870479 | K7: 0.8626087844 | L7: 0.8374842567 | M7: 0.8130915113 | N7: 0.7894092343 | O7: 0.7664167323 | P7: 0.7440939149 | Q7: 0.7224212766 | R7: 0.7013798802 | S7: 0.68095134 | T7: 0.6611178058 | U7: 0.6418619474 | V7: 0.6231669392 | W7: 0.6050164458 | X7: 0.5873946076 | Y7: 0.5702860268 | Z7: 0.5536757542 | AA7: 0.5375492759 | AB7: 0.5218925009 | AC7: 0.5066917484 | AD7: =1/(1+$E$7)^(AD4-$G$3) -> 0.4919337363
C9: Capital Expenditures (2017$/year)
B11: Build | C11: Pre-Construction Cost | F11: 0 | G11: ='Project Costs'!C44/DeflatorRate -> 174933.2449 | H11: ='Project Costs'!C45/DeflatorRate -> 299885.5627 | I11: ='Project Costs'!C46/DeflatorRate -> 299885.5627 | J11: 0 | K11: 0 | L11: 0 | M11: 0 | N11: 0 | O11: 0 | P11: 0 | Q11: 0 | R11: 0 | S11: 0 | T11: 0 | U11: 0 | V11: 0 | W11: 0 | X11: 0 | Y11: 0 | Z11: 0 | AA11: 0 | AB11: 0 | AC11: 0 | AD11: 0
B12: Build | C12: Construction Cost | F12: 0 | G12: 0 | H12: 0 | I12: 0 | J12: =('Project Costs'!H11*2.5/3)/DeflatorRate -> 17305765.85 | K12: =('Project Costs'!H11*(0.5/3))/DeflatorRate -> 3461153.171 | L12: 0 | M12: 0 | N12: 0 | O12: 0 | P12: 0 | Q12: 0 | R12: 0 | S12: 0 | T12: 0 | U12: 0 | V12: 0 | W12: 0 | X12: 0 | Y12: 0 | Z12: 0 | AA12: 0 | AB12: 0 | AC12: 0 | AD12: 0
B14: Build | C14: Total Estimated Cost | F14: =SUM(F11:F12)/DeflatorRate -> 0 | G14: =SUM(G11:G12) -> 174933.2449 | H14: =SUM(H11:H12) -> 299885.5627 | I14: 299885.5627 | J14: 17305765.85 | K14: 3461153.171 | L14: 0 | M14: 0 | N14: 0 | O14: 0 | P14: 0 | Q14: 0 | R14: 0 | S14: 0 | T14: 0 | U14: 0 | V14: 0 | W14: 0 | X14: 0 | Y14: 0 | Z14: 0 | AA14: 0 | AB14: 0 | AC14: 0 | AD14: 0
C16: Operations and Maintenance (O&M) Expenditures (2017$/year)
B18: Build | C18: Total O&M Costs | F18: =(SUMIF('Project Costs'!$B$52:$B$76,'Project Data'!F4,'Project Costs'!$C$52:$C$76))/DeflatorRate -> 0 | G18: =(SUMIF('Project Costs'!$B$52:$B$76,'Project Data'!G4,'Project Costs'!$C$52:$C$76))/DeflatorRate -> 0 | H18: =(SUMIF('Project Costs'!$B$52:$B$76,'Project Data'!H4,'Project Costs'!$C$52:$C$76))/DeflatorRate -> 0 | I18: =(SUMIF('Project Costs'!$B$52:$B$76,'Project Data'!I4,'Project Costs'!$C$52:$C$76))/DeflatorRate -> 0 | J18: =(SUMIF('Project Costs'!$B$52:$B$76,'Project Data'!J4,'Project Costs'!$C$52:$C$76))/DeflatorRate -> 0 | K18: =(SUMIF('Project Costs'!$B$52:$B$76,'Project Data'!K4,'Project Costs'!$C$52:$C$76))/DeflatorRate -> 0 | L18: =(SUMIF('Project Costs'!$B$52:$B$76,'Project Data'!L4,'Project Costs'!$C$52:$C$76))/DeflatorRate -> 4841.902314 | M18: =(SUMIF('Project Costs'!$B$52:$B$76,'Project Data'!M4,'Project Costs'!$C$52:$C$76))/DeflatorRate -> 0 | N18: =(SUMIF('Project Costs'!$B$52:$B$76,'Project Data'!N4,'Project Costs'!$C$52:$C$76))/DeflatorRate -> 4841.902314 | O18: =(SUMIF('Project Costs'!$B$52:$B$76,'Project Data'!O4,'Project Costs'!$C$52:$C$76))/DeflatorRate -> 0 | P18: =(SUMIF('Project Costs'!$B$52:$B$76,'Project Data'!P4,'Project Costs'!$C$52:$C$76))/DeflatorRate -> 4841.902314 | Q18: =(SUMIF('Project Costs'!$B$52:$B$76,'Project Data'!Q4,'Project Costs'!$C$52:$C$76))/DeflatorRate -> 0 | R18: =(SUMIF('Project Costs'!$B$52:$B$76,'Project Data'!R4,'Project Costs'!$C$52:$C$76))/DeflatorRate -> 4841.902314 | S18: =(SUMIF('Project Costs'!$B$52:$B$76,'Project Data'!S4,'Project Costs'!$C$52:$C$76))/DeflatorRate -> 0 | T18: =(SUMIF('Project Costs'!$B$52:$B$76,'Project Data'!T4,'Project Costs'!$C$52:$C$76))/DeflatorRate -> 1747926.735 | U18: =(SUMIF('Project Costs'!$B$52:$B$76,'Project Data'!U4,'Project Costs'!$C$52:$C$76))/DeflatorRate -> 0 | V18: =(SUMIF('Project Costs'!$B$52:$B$76,'Project Data'!V4,'Project Costs'!$C$52:$C$76))/DeflatorRate -> 4841.902314 | W18: =(SUMIF('Project Costs'!$B$52:$B$76,'Project Data'!W4,'Project Costs'!$C$52:$C$76))/DeflatorRate -> 0 | X18: =(SUMIF('Project Costs'!$B$52:$B$76,'Project Data'!X4,'Project Costs'!$C$52:$C$76))/DeflatorRate -> 4841.902314 | Y18: =(SUMIF('Project Costs'!$B$52:$B$76,'Project Data'!Y4,'Project Costs'!$C$52:$C$76))/DeflatorRate -> 1032293.573 | Z18: =(SUMIF('Project Costs'!$B$52:$B$76,'Project Data'!Z4,'Project Costs'!$C$52:$C$76))/DeflatorRate -> 4841.902314 | AA18: =(SUMIF('Project Costs'!$B$52:$B$76,'Project Data'!AA4,'Project Costs'!$C$52:$C$76))/DeflatorRate -> 0 | AB18: =(SUMIF('Project Costs'!$B$52:$B$76,'Project Data'!AB4,'Project Costs'!$C$52:$C$76))/DeflatorRate -> 4841.902314 | AC18: =(SUMIF('Project Costs'!$B$52:$B$76,'Project Data'!AC4,'Project Costs'!$C$52:$C$76))/DeflatorRate -> 0 | AD18: =(SUMIF('Project Costs'!$B$52:$B$76,'Project Data'!AD4,'Project Costs'!$C$52:$C$76))/DeflatorRate -> 4841.902314
C20: Operations and Maintenance (O&M) Expenditures (2017$/year)
B22: No-Build | C22: Total O&M Costs | F22: =(SUMIF('Project Costs'!$B$81:$B$104,'Project Data'!F4,'Project Costs'!$C$81:$C$104))/DeflatorRate -> 0 | G22: =(SUMIF('Project Costs'!$B$81:$B$104,'Project Data'!G4,'Project Costs'!$C$81:$C$104))/DeflatorRate -> 45174.94859 | H22: =(SUMIF('Project Costs'!$B$81:$B$104,'Project Data'!H4,'Project Costs'!$C$81:$C$104))/DeflatorRate -> 45174.94859 | I22: =(SUMIF('Project Costs'!$B$81:$B$104,'Project Data'!I4,'Project Costs'!$C$81:$C$104))/DeflatorRate -> 0 | J22: =(SUMIF('Project Costs'!$B$81:$B$104,'Project Data'!J4,'Project Costs'!$C$81:$C$104))/DeflatorRate -> 0 | K22: =(SUMIF('Project Costs'!$B$81:$B$104,'Project Data'!K4,'Project Costs'!$C$81:$C$104))/DeflatorRate -> 0 | L22: =(SUMIF('Project Costs'!$B$81:$B$104,'Project Data'!L4,'Project Costs'!$C$81:$C$104))/DeflatorRate -> 0 | M22: =(SUMIF('Project Costs'!$B$81:$B$104,'Project Data'!M4,'Project Costs'!$C$81:$C$104))/DeflatorRate -> 0 | N22: =(SUMIF('Project Costs'!$B$81:$B$104,'Project Data'!N4,'Project Costs'!$C$81:$C$104))/DeflatorRate -> 0 | O22: =(SUMIF('Project Costs'!$B$81:$B$104,'Project Data'!O4,'Project Costs'!$C$81:$C$104))/DeflatorRate -> 0 | P22: =(SUMIF('Project Costs'!$B$81:$B$104,'Project Data'!P4,'Project Costs'!$C$81:$C$104))/DeflatorRate -> 0 | Q22: =(SUMIF('Project Costs'!$B$81:$B$104,'Project Data'!Q4,'Project Costs'!$C$81:$C$104))/DeflatorRate -> 0 | R22: =(SUMIF('Project Costs'!$B$81:$B$104,'Project Data'!R4,'Project Costs'!$C$81:$C$104))/DeflatorRate -> 0 | S22: =(SUMIF('Project Costs'!$B$81:$B$104,'Project Data'!S4,'Project Costs'!$C$81:$C$104))/DeflatorRate -> 0 | T22: =(SUMIF('Project Costs'!$B$81:$B$104,'Project Data'!T4,'Project Costs'!$C$81:$C$104))/DeflatorRate -> 0 | U22: =(SUMIF('Project Costs'!$B$81:$B$104,'Project Data'!U4,'Project Costs'!$C$81:$C$104))/DeflatorRate -> 0 | V22: =(SUMIF('Project Costs'!$B$81:$B$104,'Project Data'!V4,'Project Costs'!$C$81:$C$104))/DeflatorRate -> 0 | W22: =(SUMIF('Project Costs'!$B$81:$B$104,'Project Data'!W4,'Project Costs'!$C$81:$C$104))/DeflatorRate -> 0 | X22: =(SUMIF('Project Costs'!$B$81:$B$104,'Project Data'!X4,'Project Costs'!$C$81:$C$104))/DeflatorRate -> 0 | Y22: =(SUMIF('Project Costs'!$B$81:$B$104,'Project Data'!Y4,'Project Costs'!$C$81:$C$104))/DeflatorRate -> 0 | Z22: =(SUMIF('Project Costs'!$B$81:$B$104,'Project Data'!Z4,'Project Costs'!$C$81:$C$104))/DeflatorRate -> 0 | AA22: =(SUMIF('Project Costs'!$B$81:$B$104,'Project Data'!AA4,'Project Costs'!$C$81:$C$104))/DeflatorRate -> 0 | AB22: =(SUMIF('Project Costs'!$B$81:$B$104,'Project Data'!AB4,'Project Costs'!$C$81:$C$104))/DeflatorRate -> 0 | AC22: =(SUMIF('Project Costs'!$B$81:$B$104,'Project Data'!AC4,'Project Costs'!$C$81:$C$104))/DeflatorRate -> 0 | AD22: =(SUMIF('Project Costs'!$B$81:$B$104,'Project Data'!AD4,'Project Costs'!$C$81:$C$104))/DeflatorRate -> 0

Sheet Project Costs
B2: Project Costs - Cost are in 2019 Dollars
A4: Source of Funds ($2019 Dollars)
B5: SOURCES of FUNDS | C5: USES OF FUNDS | D5: USES OF FUNDS | E5: USES OF FUNDS | F5: USES OF FUNDS | G5: USES OF FUNDS
B6: NON-FEDERAL | D6: BUILD | F6: OTHER FEDERAL | H6: TOTAL
A7: Funding Partner | B7: ODOT | D7: USDOT | F7: ?
A9: Pre-Construction | B9: 160000 | D9: 640000 | F9: 0 | H9: =SUM(B9:G10) -> 800000
A10: ROW and Utilities
A11: * Construction | B11: 4289000 | D11: 17156000 | F11: 0 | H11: =SUM(B11:G11) -> 21445000
A13: TOTAL | B13: =SUM(B9:C11) -> 4449000 | D13: =SUM(D9:E11) -> 17796000 | F13: =SUM(G9:G12) -> 0 | H13: =SUM(H9:H11) -> 22245000
A14: PERCENTAGE | B14: 0.2 | D14: 0.8 | F14: 0 | H14: =SUM(B14:G14) -> 1
A15: * Contruction Estimate includes 15% Contingency
A16: *$800,000 of utility relocation included
A17: *Note: even monthly distribution of cost
A18: Use of Funds ($2019 Dollars)
A19: DETAILED USE of FUNDS
A20: PROJECT CATEGORY | B20: PROJECT ELEMENT | C20: AMOUNT | D20: FUNDING SOURCE | E20: % OF TOTAL | F20: % IN DOLLARS
A22: Pre-Construction | B22: Environmental | C22: 200000 | D22: Non-Federal | E22: =F22/F38 -> 0.001798156889 | F22: =C22*0.2 -> 40000
D23: BUILD | E23: =F23/F38 -> 0.007192627557 | F23: =C22*0.8 -> 160000
B24: Design | C24: 400000 | D24: Non-Federal | E24: =F24/F38 -> 0.003596313778 | F24: =C24*0.2 -> 80000
D25: BUILD | E25: =F25/F38 -> 0.01438525511 | F25: =C24*0.8 -> 320000
B26: Utility Relocation | C26: 200000 | D26: Non-Federal | E26: =F26/F38 -> 0.001798156889 | F26: =C26*0.2 -> 40000
D27: BUILD | E27: =F27/F38 -> 0.007192627557 | F27: =C26*0.8 -> 160000
A29: Construction * | B29: Substructure Rehabilitation | C29: 17023000 | D29: Non-Federal | E29: =F29/F38 -> 0.1530501236 | F29: =C29*0.2 -> 3404600
D30: BUILD | E30: =F30/F38 -> 0.6122004945 | F30: =C29*0.8 -> 13618400
B31: Bridge Painting | C31: 1102000 | D31: Non-Federal | E31: =F31/F38 -> 0.009907844459 | F31: =C31*0.2 -> 220400
D32: BUILD | E32: =F32/F38 -> 0.03963137784 | F32: =C31*0.8 -> 881600
B33: Removal and Resetting Trusses | C33: 2570000 | D33: Non-Federal | E33: =F33/F38 -> 0.02310631603 | F33: =C33*0.2 -> 514000
D34: BUILD | E34: =F34/F38 -> 0.0924252641 | F34: =C33*0.8 -> 2056000
B35: Roadway & Traffic Control | C35: 750000 | D35: Non-Federal | E35: =F35/F38 -> 0.006743088334 | F35: =C35*0.2 -> 150000
D36: BUILD | E36: =F36/F38 -> 0.02697235334 | F36: =C35*0.8 -> 600000
A38: TOTAL | C38: =SUM(C22:C36) -> 22245000 | E38: =SUM(E22:E37) -> 1 | F38: =SUM(F22:F37) -> 22245000
A39: * All Construction Elements Include a 15% Contingency
A40: *Note: even monthly distribution of cost
A41: Pre-construction Capital Expedinture ($2019 Dollars)
A42: *Pre construction evenly distribute cost starting June 2019 to Dec 31,2021 (31 months)
B43: Year | C43: Total | D43: Environmental | E43: Design | F43: Utility Relocation
B44: 2019 | C44: =SUM(D44:F44) -> 180645.1613 | D44: =($C$22)*7/31 -> 45161.29032 | E44: =($C$24)*7/31 -> 90322.58065 | F44: =($C$26)*7/31 -> 45161.29032
B45: 2020 | C45: =SUM(D45:F45) -> 309677.4194 | D45: =($C$22)*12/31 -> 77419.35484 | E45: =($C$24)*12/31 -> 154838.7097 | F45: =($C$26)*12/31 -> 77419.35484
B46: 2021 | C46: 309677.4194 | D46: =($C$22)*12/31 -> 77419.35484 | E46: =($C$24)*12/31 -> 154838.7097 | F46: =($C$26)*12/31 -> 77419.35484
C47: =SUM(C44:C46) -> 800000
B48: *Note: even monthly distribution of cost
A50: Operations and Maintenance Expenditures Under Build ($2019 Dollars)
B51: Year | C51: Total | D51: Inspection | E51: Joint repair | F51: Paint (assuming no Weathering Steel) | G51: Deck Replacement with minor sub and super structure repair
B52: =Base.Year -> 2018 | C52: =SUM(D52:G52) -> 0
B53: =B52+1 -> 2019 | C53: =SUM(D53:G53) -> 0
B54: =B53+1 -> 2020 | C54: 0
B55: 2021 | C55: 0
B56: =B55+1 -> 2022 | C56: =SUM(D56:G56) -> 0
B57: =B56+1 -> 2023 | C57: 0
B58: =B57+1 -> 2024 | C58: 5000 | D58: 5000
B59: =B58+1 -> 2025 | C59: 0
B60: =B59+1 -> 2026 | C60: 5000 | D60: 5000
B61: =B60+1 -> 2027 | C61: 0
B62: 2028 | C62: 5000 | D62: 5000
B63: 2029 | C63: 0
B64: 2030 | C64: 5000 | D64: 5000
B65: 2031 | C65: 0
B66: 2032 | C66: 1805000 | D66: 5000 | F66: 1800000
B67: 2033 | C67: 0
B68: 2034 | C68: 5000 | D68: 5000
B69: 2035 | C69: 0
B70: 2036 | C70: 5000 | D70: 5000
B71: 2037 | C71: 1066000 | E71: 1066000
B72: 2038 | C72: 5000 | D72: 5000
B73: 2039 | C73: 0
B74: 2040 | C74: 5000 | D74: 5000
B75: 2041 | C75: 0
B76: 2042 | C76: 5000 | D76: 5000 | F76: 0
A79: Operations and Maintenance Expenditures Under No Build ($2019 Dollars)
B80: Year | C80: Total | D80: Inspection | E80: Repairs
B81: =Base.Year -> 2018 | C81: =SUM(D81:E81) -> 0 | D81: 0 | E81: 0
B82: =B81+1 -> 2019 | C82: =SUM(D82:E82) -> 46650 | D82: 25000 | E82: 21650
B83: =B82+1 -> 2020 | C83: =SUM(D83:E83) -> 46650 | D83: 25000 | E83: 21650
B84: 2021 | C84: =SUM(D84:E84) -> 0 | D84: =SUM(E84:F84) -> 0 | E84: =SUM(F84:G84) -> 0
B85: =B84+1 -> 2022 | C85: 0 | D85: 0 | E85: 0
B86: =B85+1 -> 2023 | C86: 0 | D86: 0 | E86: 0
B87: =B86+1 -> 2024 | C87: 0 | D87: 0 | E87: 0
B88: =B87+1 -> 2025 | C88: 0 | D88: 0 | E88: 0
B89: =B88+1 -> 2026 | C89: 0 | D89: 0 | E89: 0
B90: 2027 | C90: 0 | D90: 0 | E90: 0
B91: 2028 | C91: 0 | D91: 0 | E91: 0
B92: 2029 | C92: 0 | D92: 0 | E92: 0
B93: 2030 | C93: 0 | D93: 0 | E93: 0
B94: 2031 | C94: 0 | D94: 0 | E94: 0
B95: 2032 | C95: 0 | D95: 0 | E95: 0
B96: 2033 | C96: 0 | D96: 0 | E96: 0
B97: 2034 | C97: 0 | D97: 0 | E97: 0
B98: 2035 | C98: 0 | D98: 0 | E98: 0
B99: 2036 | C99: 0 | D99: 0 | E99: 0
B100: 2037 | C100: 0 | D100: 0 | E100: 0
B101: 2038 | C101: 0 | D101: 0 | E101: 0
B102: 2039 | C102: 0 | D102: 0 | E102: 0
B103: 2040 | C103: 0 | D103: 0 | E103: 0
B104: 2041 | C104: 0 | D104: 0 | E104: 0

Sheet Emissions Rates
A1: Form Cal-BC v6 | N1: Emissions Tables | Q1: Cost, $/tonne | S1: =Inputs!D55 -> 8300 | T1: =Inputs!D56 -> 377800 | U1: =Inputs!D57 -> 48900 | V1: =Inputs!D58 -> 2000 | AB1: Cost, $/tonne | AD1: =Inputs!D55 -> 8300 | AE1: =Inputs!D56 -> 377800 | AF1: =Inputs!D57 -> 48900 | AG1: =Inputs!D58 -> 2000
B2: Operating Cost Tables | H2: Fuel Cost Per Gallon (Exclude Taxes) | O2: Mode | P2: Speed | Q2: CO | R2: CO2 | S2: NOX | T2: PM10 | U2: SOX | V2: VOC | X2: Cost per Mile | Z2: Mode | AA2: Speed | AB2: CO | AC2: CO2 | AD2: NOX | AE2: PM10 | AF2: SOX | AG2: VOC | AI2: Cost per Mile
I3: Automobile | J3: 2.65 | K3: $/gal | O3: Auto | P3: 65 | Q3: =VLOOKUP(P3,$P$12:$V$78, 2) -> 1.2506 | R3: =VLOOKUP(P3,$P$12:$V$78, 3) -> 354.5442 | S3: =VLOOKUP(P3,$P$12:$V$78, 4) -> 0.149 | T3: =VLOOKUP(P3,$P$12:$V$78, 5) -> 0.0019 | U3: =VLOOKUP(P3,$P$12:$V$78, 6) -> 0.0036 | V3: =VLOOKUP(P3,$P$12:$V$78, 7) -> 0.0512 | X3: =(S3*S1+T3*T1+U3*U1+V3*V1)/1000000 -> 0.00223296 | Z3: Auto | AA3: 65 | AB3: =VLOOKUP(AA3,$AA$12:$AG$78, 2) -> 0.3784 | AC3: =VLOOKUP(AA3,$AA$12:$AG$78, 3) -> 196.3756 | AD3: =VLOOKUP(AA3,$AA$12:$AG$78, 4) -> 0.0356 | AE3: =VLOOKUP(AA3,$AA$12:$AG$78, 5) -> 0.0008 | AF3: =VLOOKUP(AA3,$AA$12:$AG$78, 6) -> 0.002 | AG3: =VLOOKUP(AA3,$AA$12:$AG$78, 7) -> 0.0189 | AI3: =(AD3*AD1+AE3*AE1+AF3*AF1+AG3*AG1)/1000000 -> 0.00073332
C4: FUEL CONSUMPTION RATES | I4: Truck | J4: 2.4 | K4: $/gal | O4: Truck | P4: 65 | Q4: =VLOOKUP(P4,$P$80:$V$146, 2) -> 1.5544 | R4: =VLOOKUP(P4,$P$80:$V$146, 3) -> 729.692 | S4: =VLOOKUP(P4,$P$80:$V$146, 4) -> 1.2992 | T4: =VLOOKUP(P4,$P$80:$V$146, 5) -> 0.0191 | U4: =VLOOKUP(P4,$P$80:$V$146, 6) -> 0.0072 | V4: =VLOOKUP(P4,$P$80:$V$146, 7) -> 0.0713 | X4: =(S4*S1+T4*T1+U4*U1+V4*V1)/1000000 -> 0.01849402 | Z4: Truck | AA4: 65 | AB4: =VLOOKUP(AA4,$AA$80:$AG$146, 2) -> 0.3132 | AC4: =VLOOKUP(AA4,$AA$80:$AG$146, 3) -> 605.9991 | AD4: =VLOOKUP(AA4,$AA$80:$AG$146, 4) -> 0.1388 | AE4: =VLOOKUP(AA4,$AA$80:$AG$146, 5) -> 0.0021 | AF4: =VLOOKUP(AA4,$AA$80:$AG$146, 6) -> 0.0059 | AG4: =VLOOKUP(AA4,$AA$80:$AG$146, 7) -> 0.0125 | AI4: =(AD4*AD1+AE4*AE1+AF4*AF1+AG4*AG1)/1000000 -> 0.00225893
C5: (gal/veh-mi)
C7: Speed | D7: Auto* | E7: Truck
C8: 5 | D8: 0.1024 | E8: 0.2112 | O8: HIGHWAY EMISSIONS FACTORS (g/mi) | Z8: HIGHWAY EMISSIONS FACTORS (g/mi)
C9: 6 | D9: 0.0971 | E9: 0.2056 | O9: Model Year 2016 | Z9: Model Year 2036
C10: 7 | D10: 0.0919 | E10: 0.2
C11: 8 | D11: 0.0867 | E11: 0.1944 | O11: Mode | P11: Speed | Q11: CO | R11: CO2 | S11: NOX | T11: PM10 | U11: SOX | V11: VOC | Z11: Mode | AA11: Speed | AB11: CO | AC11: CO2 | AD11: NOX | AE11: PM10 | AF11: SOX | AG11: VOC
C12: 9 | D12: 0.0815 | E12: 0.1888 | O12: Auto | P12: 0 | Q12: 0.538 | R12: 13.0731 | S12: 0.04 | T12: 0.0005 | U12: 0.0001 | V12: 0.0444 | Z12: Auto | AA12: 0 | AB12: 0.1267 | AC12: 8.2937 | AD12: 0.0054 | AE12: 0.0003 | AF12: 0.0001 | AG12: 0.0087
C13: 10 | D13: 0.0763 | E13: 0.1832 | P13: 5 | Q13: 3.4738 | R13: 1116.2988 | S13: 0.3085 | T13: 0.0137 | U13: 0.0112 | V13: 0.3257 | AA13: 5 | AB13: 0.9124 | AC13: 621.3226 | AD13: 0.0617 | AE13: 0.0059 | AF13: 0.0062 | AG13: 0.1117
C14: 11 | D14: 0.0727 | E14: 0.1707 | P14: 6 | Q14: 3.315 | R14: 1059.1874 | S14: 0.2954 | T14: 0.0127 | U14: 0.0106 | V14: 0.2994 | AA14: 6 | AB14: 0.8859 | AC14: 589.854 | AD14: 0.0602 | AE14: 0.0055 | AF14: 0.0059 | AG14: 0.1039
C15: 12 | D15: 0.0691 | E15: 0.1583 | P15: 7 | Q15: 3.1563 | R15: 1002.0759 | S15: 0.2823 | T15: 0.0118 | U15: 0.0101 | V15: 0.2732 | AA15: 7 | AB15: 0.8594 | AC15: 558.3854 | AD15: 0.0588 | AE15: 0.005 | AF15: 0.0056 | AG15: 0.096
C16: 13 | D16: 0.0656 | E16: 0.1459 | P16: 8 | Q16: 2.9975 | R16: 944.9645 | S16: 0.2692 | T16: 0.0108 | U16: 0.0095 | V16: 0.2469 | AA16: 8 | AB16: 0.8328 | AC16: 526.9168 | AD16: 0.0574 | AE16: 0.0046 | AF16: 0.0053 | AG16: 0.0882
C17: 14 | D17: 0.062 | E17: 0.1335 | P17: 9 | Q17: 2.8387 | R17: 887.8531 | S17: 0.256 | T17: 0.0098 | U17: 0.0089 | V17: 0.2207 | AA17: 9 | AB17: 0.8063 | AC17: 495.4481 | AD17: 0.056 | AE17: 0.0042 | AF17: 0.005 | AG17: 0.0804
C18: 15 | D18: 0.0584 | E18: 0.1211 | P18: 10 | Q18: 2.68 | R18: 830.7416 | S18: 0.2429 | T18: 0.0088 | U18: 0.0083 | V18: 0.1944 | AA18: 10 | AB18: 0.7798 | AC18: 463.9795 | AD18: 0.0546 | AE18: 0.0037 | AF18: 0.0046 | AG18: 0.0726
C19: 16 | D19: 0.056 | E19: 0.1181 | P19: 11 | Q19: 2.6065 | R19: 791.6908 | S19: 0.2349 | T19: 0.0082 | U19: 0.0079 | V19: 0.1825 | AA19: 11 | AB19: 0.7615 | AC19: 442.2214 | AD19: 0.0527 | AE19: 0.0035 | AF19: 0.0044 | AG19: 0.068
C20: 17 | D20: 0.0536 | E20: 0.115 | P20: 12 | Q20: 2.533 | R20: 752.6399 | S20: 0.2269 | T20: 0.0076 | U20: 0.0076 | V20: 0.1707 | AA20: 12 | AB20: 0.7432 | AC20: 420.4632 | AD20: 0.0509 | AE20: 0.0032 | AF20: 0.0042 | AG20: 0.0635
C21: 18 | D21: 0.0513 | E21: 0.112 | P21: 13 | Q21: 2.4595 | R21: 713.589 | S21: 0.219 | T21: 0.007 | U21: 0.0072 | V21: 0.1588 | AA21: 13 | AB21: 0.7249 | AC21: 398.7051 | AD21: 0.0491 | AE21: 0.003 | AF21: 0.004 | AG21: 0.0589
C22: 19 | D22: 0.0489 | E22: 0.1089 | P22: 14 | Q22: 2.386 | R22: 674.5382 | S22: 0.211 | T22: 0.0064 | U22: 0.0068 | V22: 0.1469 | AA22: 14 | AB22: 0.7066 | AC22: 376.9469 | AD22: 0.0472 | AE22: 0.0027 | AF22: 0.0038 | AG22: 0.0544
C23: 20 | D23: 0.0465 | E23: 0.1059 | P23: 15 | Q23: 2.3125 | R23: 635.4873 | S23: 0.203 | T23: 0.0058 | U23: 0.0064 | V23: 0.1351 | AA23: 15 | AB23: 0.6883 | AC23: 355.1888 | AD23: 0.0454 | AE23: 0.0025 | AF23: 0.0036 | AG23: 0.0499
C24: 21 | D24: 0.0449 | E24: 0.1011 | P24: 16 | Q24: 2.2482 | R24: 609.4158 | S24: 0.1973 | T24: 0.0055 | U24: 0.0061 | V24: 0.127 | AA24: 16 | AB24: 0.6724 | AC24: 340.7505 | AD24: 0.0442 | AE24: 0.0023 | AF24: 0.0034 | AG24: 0.0469
C25: 22 | D25: 0.0433 | E25: 0.0963 | P25: 17 | Q25: 2.1838 | R25: 583.3443 | S25: 0.1916 | T25: 0.0051 | U25: 0.0059 | V25: 0.1189 | AA25: 17 | AB25: 0.6566 | AC25: 326.3121 | AD25: 0.0431 | AE25: 0.0022 | AF25: 0.0033 | AG25: 0.0439
C26: 23 | D26: 0.0417 | E26: 0.0916 | P26: 18 | Q26: 2.1195 | R26: 557.2727 | S26: 0.1859 | T26: 0.0048 | U26: 0.0056 | V26: 0.1108 | AA26: 18 | AB26: 0.6407 | AC26: 311.8738 | AD26: 0.042 | AE26: 0.002 | AF26: 0.0031 | AG26: 0.041
C27: 24 | D27: 0.0401 | E27: 0.0868 | P27: 19 | Q27: 2.0551 | R27: 531.2012 | S27: 0.1803 | T27: 0.0044 | U27: 0.0053 | V27: 0.1027 | AA27: 19 | AB27: 0.6249 | AC27: 297.4355 | AD27: 0.0409 | AE27: 0.0019 | AF27: 0.003 | AG27: 0.038
C28: 25 | D28: 0.0384 | E28: 0.0821 | P28: 20 | Q28: 1.9907 | R28: 505.1297 | S28: 0.1746 | T28: 0.0041 | U28: 0.0051 | V28: 0.0946 | AA28: 20 | AB28: 0.609 | AC28: 282.9972 | AD28: 0.0397 | AE28: 0.0017 | AF28: 0.0028 | AG28: 0.035
C29: 26 | D29: 0.0374 | E29: 0.0804 | P29: 21 | Q29: 1.9371 | R29: 487.6709 | S29: 0.1701 | T29: 0.0039 | U29: 0.0049 | V29: 0.0895 | AA29: 21 | AB29: 0.5973 | AC29: 273.2085 | AD29: 0.039 | AE29: 0.0016 | AF29: 0.0027 | AG29: 0.0333
C30: 27 | D30: 0.0363 | E30: 0.0788 | P30: 22 | Q30: 1.8834 | R30: 470.2121 | S30: 0.1656 | T30: 0.0036 | U30: 0.0047 | V30: 0.0845 | AA30: 22 | AB30: 0.5855 | AC30: 263.4199 | AD30: 0.0383 | AE30: 0.0015 | AF30: 0.0026 | AG30: 0.0316
C31: 28 | D31: 0.0352 | E31: 0.0771 | P31: 23 | Q31: 1.8297 | R31: 452.7533 | S31: 0.1611 | T31: 0.0034 | U31: 0.0045 | V31: 0.0794 | AA31: 23 | AB31: 0.5737 | AC31: 253.6313 | AD31: 0.0376 | AE31: 0.0015 | AF31: 0.0025 | AG31: 0.0299
C32: 29 | D32: 0.0341 | E32: 0.0755 | P32: 24 | Q32: 1.776 | R32: 435.2945 | S32: 0.1566 | T32: 0.0032 | U32: 0.0044 | V32: 0.0744 | AA32: 24 | AB32: 0.5619 | AC32: 243.8426 | AD32: 0.0369 | AE32: 0.0014 | AF32: 0.0024 | AG32: 0.0282
C33: 30 | D33: 0.033 | E33: 0.0738 | P33: 25 | Q33: 1.7223 | R33: 417.8356 | S33: 0.1522 | T33: 0.003 | U33: 0.0042 | V33: 0.0693 | AA33: 25 | AB33: 0.5502 | AC33: 234.054 | AD33: 0.0362 | AE33: 0.0013 | AF33: 0.0023 | AG33: 0.0264
C34: 31 | D34: 0.0323 | E34: 0.075 | P34: 26 | Q34: 1.6875 | R34: 406.0164 | S34: 0.1499 | T34: 0.0029 | U34: 0.0041 | V34: 0.0665 | AA34: 26 | AB34: 0.5395 | AC34: 227.3537 | AD34: 0.0356 | AE34: 0.0012 | AF34: 0.0023 | AG34: 0.0253
C35: 32 | D35: 0.0316 | E35: 0.0763 | P35: 27 | Q35: 1.6528 | R35: 394.1971 | S35: 0.1476 | T35: 0.0027 | U35: 0.004 | V35: 0.0637 | AA35: 27 | AB35: 0.5289 | AC35: 220.6535 | AD35: 0.0349 | AE35: 0.0012 | AF35: 0.0022 | AG35: 0.0242
C36: 33 | D36: 0.031 | E36: 0.0774 | P36: 28 | Q36: 1.618 | R36: 382.3778 | S36: 0.1453 | T36: 0.0026 | U36: 0.0038 | V36: 0.0609 | AA36: 28 | AB36: 0.5182 | AC36: 213.9532 | AD36: 0.0343 | AE36: 0.0011 | AF36: 0.0021 | AG36: 0.0231
C37: 34 | D37: 0.0303 | E37: 0.0786 | P37: 29 | Q37: 1.5833 | R37: 370.5585 | S37: 0.143 | T37: 0.0025 | U37: 0.0037 | V37: 0.058 | AA37: 29 | AB37: 0.5076 | AC37: 207.253 | AD37: 0.0337 | AE37: 0.001 | AF37: 0.0021 | AG37: 0.0219
C38: 35 | D38: 0.0296 | E38: 0.0799 | P38: 30 | Q38: 1.5486 | R38: 358.7392 | S38: 0.1407 | T38: 0.0023 | U38: 0.0036 | V38: 0.0552 | AA38: 30 | AB38: 0.497 | AC38: 200.5527 | AD38: 0.0331 | AE38: 0.001 | AF38: 0.002 | AG38: 0.0208
C39: 36 | D39: 0.0292 | E39: 0.0796 | P39: 31 | Q39: 1.5319 | R39: 351.4164 | S39: 0.1404 | T39: 0.0023 | U39: 0.0035 | V39: 0.0538 | AA39: 31 | AB39: 0.4906 | AC39: 196.3779 | AD39: 0.033 | AE39: 0.001 | AF39: 0.002 | AG39: 0.0201
C40: 37 | D40: 0.0288 | E40: 0.0794 | P40: 32 | Q40: 1.5153 | R40: 344.0935 | S40: 0.14 | T40: 0.0022 | U40: 0.0035 | V40: 0.0525 | AA40: 32 | AB40: 0.4842 | AC40: 192.2031 | AD40: 0.0328 | AE40: 0.0009 | AF40: 0.0019 | AG40: 0.0194
C41: 38 | D41: 0.0284 | E41: 0.0792 | P41: 33 | Q41: 1.4987 | R41: 336.7706 | S41: 0.1396 | T41: 0.0021 | U41: 0.0034 | V41: 0.0511 | AA41: 33 | AB41: 0.4779 | AC41: 188.0283 | AD41: 0.0327 | AE41: 0.0009 | AF41: 0.0019 | AG41: 0.0187
C42: 39 | D42: 0.028 | E42: 0.079 | P42: 34 | Q42: 1.4821 | R42: 329.4478 | S42: 0.1392 | T42: 0.002 | U42: 0.0033 | V42: 0.0497 | AA42: 34 | AB42: 0.4715 | AC42: 183.8535 | AD42: 0.0325 | AE42: 0.0009 | AF42: 0.0018 | AG42: 0.0181
C43: 40 | D43: 0.0276 | E43: 0.0788 | P43: 35 | Q43: 1.4654 | R43: 322.1249 | S43: 0.1389 | T43: 0.002 | U43: 0.0032 | V43: 0.0483 | AA43: 35 | AB43: 0.4652 | AC43: 179.6787 | AD43: 0.0324 | AE43: 0.0008 | AF43: 0.0018 | AG43: 0.0174
C44: 41 | D44: 0.0274 | E44: 0.0796 | P44: 36 | Q44: 1.453 | R44: 317.7039 | S44: 0.1389 | T44: 0.0019 | U44: 0.0032 | V44: 0.0475 | AA44: 36 | AB44: 0.459 | AC44: 177.1527 | AD44: 0.0322 | AE44: 0.0008 | AF44: 0.0018 | AG44: 0.0169
C45: 42 | D45: 0.0272 | E45: 0.0804 | P45: 37 | Q45: 1.4406 | R45: 313.283 | S45: 0.139 | T45: 0.0019 | U45: 0.0032 | V45: 0.0467 | AA45: 37 | AB45: 0.4528 | AC45: 174.6268 | AD45: 0.032 | AE45: 0.0008 | AF45: 0.0018 | AG45: 0.0165
C46: 43 | D46: 0.027 | E46: 0.0812 | P46: 38 | Q46: 1.4282 | R46: 308.8621 | S46: 0.1391 | T46: 0.0018 | U46: 0.0031 | V46: 0.0458 | AA46: 38 | AB46: 0.4466 | AC46: 172.1008 | AD46: 0.0318 | AE46: 0.0008 | AF46: 0.0017 | AG46: 0.016
C47: 44 | D47: 0.0268 | E47: 0.082 | P47: 39 | Q47: 1.4157 | R47: 304.4411 | S47: 0.1392 | T47: 0.0018 | U47: 0.0031 | V47: 0.045 | AA47: 39 | AB47: 0.4405 | AC47: 169.5748 | AD47: 0.0316 | AE47: 0.0007 | AF47: 0.0017 | AG47: 0.0156
C48: 45 | D48: 0.0266 | E48: 0.0828 | P48: 40 | Q48: 1.4033 | R48: 300.0202 | S48: 0.1392 | T48: 0.0017 | U48: 0.003 | V48: 0.0442 | AA48: 40 | AB48: 0.4343 | AC48: 167.0488 | AD48: 0.0314 | AE48: 0.0007 | AF48: 0.0017 | AG48: 0.0152
C49: 46 | D49: 0.0266 | E49: 0.0826 | P49: 41 | Q49: 1.393 | R49: 297.8379 | S49: 0.1396 | T49: 0.0017 | U49: 0.003 | V49: 0.0439 | AA49: 41 | AB49: 0.4306 | AC49: 165.8643 | AD49: 0.0314 | AE49: 0.0007 | AF49: 0.0017 | AG49: 0.015
C50: 47 | D50: 0.0266 | E50: 0.0824 | P50: 42 | Q50: 1.3827 | R50: 295.6556 | S50: 0.1399 | T50: 0.0017 | U50: 0.003 | V50: 0.0435 | AA50: 42 | AB50: 0.4269 | AC50: 164.6798 | AD50: 0.0314 | AE50: 0.0007 | AF50: 0.0017 | AG50: 0.0149
C51: 48 | D51: 0.0266 | E51: 0.0821 | P51: 43 | Q51: 1.3724 | R51: 293.4734 | S51: 0.1402 | T51: 0.0017 | U51: 0.003 | V51: 0.0432 | AA51: 43 | AB51: 0.4232 | AC51: 163.4953 | AD51: 0.0314 | AE51: 0.0007 | AF51: 0.0016 | AG51: 0.0148
C52: 49 | D52: 0.0266 | E52: 0.0819 | P52: 44 | Q52: 1.3621 | R52: 291.2911 | S52: 0.1405 | T52: 0.0016 | U52: 0.0029 | V52: 0.0429 | AA52: 44 | AB52: 0.4195 | AC52: 162.3108 | AD52: 0.0315 | AE52: 0.0007 | AF52: 0.0016 | AG52: 0.0147
C53: 50 | D53: 0.0266 | E53: 0.0817 | P53: 45 | Q53: 1.3518 | R53: 289.1088 | S53: 0.1408 | T53: 0.0016 | U53: 0.0029 | V53: 0.0425 | AA53: 45 | AB53: 0.4158 | AC53: 161.1263 | AD53: 0.0315 | AE53: 0.0007 | AF53: 0.0016 | AG53: 0.0145
C54: 51 | D54: 0.0268 | E54: 0.0826 | P54: 46 | Q54: 1.3461 | R54: 289.1663 | S54: 0.1416 | T54: 0.0016 | U54: 0.0029 | V54: 0.0425 | AA54: 46 | AB54: 0.4121 | AC54: 161.1408 | AD54: 0.0315 | AE54: 0.0006 | AF54: 0.0016 | AG54: 0.0145
C55: 52 | D55: 0.027 | E55: 0.0834 | P55: 47 | Q55: 1.3403 | R55: 289.2238 | S55: 0.1424 | T55: 0.0016 | U55: 0.0029 | V55: 0.0426 | AA55: 47 | AB55: 0.4083 | AC55: 161.1552 | AD55: 0.0315 | AE55: 0.0006 | AF55: 0.0016 | AG55: 0.0144
C56: 53 | D56: 0.0272 | E56: 0.0842 | P56: 48 | Q56: 1.3346 | R56: 289.2813 | S56: 0.1432 | T56: 0.0016 | U56: 0.0029 | V56: 0.0426 | AA56: 48 | AB56: 0.4046 | AC56: 161.1697 | AD56: 0.0316 | AE56: 0.0006 | AF56: 0.0016 | AG56: 0.0143
C57: 54 | D57: 0.0274 | E57: 0.085 | P57: 49 | Q57: 1.3288 | R57: 289.3388 | S57: 0.144 | T57: 0.0016 | U57: 0.0029 | V57: 0.0426 | AA57: 49 | AB57: 0.4009 | AC57: 161.1841 | AD57: 0.0316 | AE57: 0.0006 | AF57: 0.0016 | AG57: 0.0143
C58: 55 | D58: 0.0275 | E58: 0.0858 | P58: 50 | Q58: 1.3231 | R58: 289.3962 | S58: 0.1448 | T58: 0.0016 | U58: 0.0029 | V58: 0.0426 | AA58: 50 | AB58: 0.3971 | AC58: 161.1986 | AD58: 0.0317 | AE58: 0.0006 | AF58: 0.0016 | AG58: 0.0142
C59: 56 | D59: 0.0279 | E59: 0.0839 | P59: 51 | Q59: 1.3174 | R59: 291.4641 | S59: 0.1457 | T59: 0.0016 | U59: 0.0029 | V59: 0.0429 | AA59: 51 | AB59: 0.3934 | AC59: 162.3502 | AD59: 0.0316 | AE59: 0.0006 | AF59: 0.0016 | AG59: 0.0142
C60: 57 | D60: 0.0283 | E60: 0.082 | P60: 52 | Q60: 1.3117 | R60: 293.5321 | S60: 0.1466 | T60: 0.0016 | U60: 0.003 | V60: 0.0431 | AA60: 52 | AB60: 0.3897 | AC60: 163.5019 | AD60: 0.0316 | AE60: 0.0006 | AF60: 0.0016 | AG60: 0.0143
C61: 58 | D61: 0.0286 | E61: 0.0802 | P61: 53 | Q61: 1.3061 | R61: 295.6 | S61: 0.1476 | T61: 0.0016 | U61: 0.003 | V61: 0.0434 | AA61: 53 | AB61: 0.3859 | AC61: 164.6536 | AD61: 0.0316 | AE61: 0.0006 | AF61: 0.0016 | AG61: 0.0144
C62: 59 | D62: 0.029 | E62: 0.0783 | P62: 54 | Q62: 1.3004 | R62: 297.6679 | S62: 0.1485 | T62: 0.0016 | U62: 0.003 | V62: 0.0437 | AA62: 54 | AB62: 0.3822 | AC62: 165.8052 | AD62: 0.0316 | AE62: 0.0006 | AF62: 0.0017 | AG62: 0.0144
C63: 60 | D63: 0.0293 | E63: 0.0764 | P63: 55 | Q63: 1.2947 | R63: 299.7358 | S63: 0.1494 | T63: 0.0017 | U63: 0.003 | V63: 0.0439 | AA63: 55 | AB63: 0.3785 | AC63: 166.9569 | AD63: 0.0316 | AE63: 0.0006 | AF63: 0.0017 | AG63: 0.0145
C64: 61 | D64: 0.03 | E64: 0.0756 | P64: 56 | Q64: 1.2785 | R64: 303.633 | S64: 0.1482 | T64: 0.0017 | U64: 0.0031 | V64: 0.0439 | AA64: 56 | AB64: 0.3749 | AC64: 169.1785 | AD64: 0.0315 | AE64: 0.0007 | AF64: 0.0017 | AG64: 0.0147
C65: 62 | D65: 0.0306 | E65: 0.0749 | P65: 57 | Q65: 1.2623 | R65: 307.5302 | S65: 0.1469 | T65: 0.0017 | U65: 0.0031 | V65: 0.0439 | AA65: 57 | AB65: 0.3712 | AC65: 171.4 | AD65: 0.0314 | AE65: 0.0007 | AF65: 0.0017 | AG65: 0.0149
C66: 63 | D66: 0.0312 | E66: 0.0741 | P66: 58 | Q66: 1.246 | R66: 311.4274 | S66: 0.1457 | T66: 0.0017 | U66: 0.0031 | V66: 0.0439 | AA66: 58 | AB66: 0.3676 | AC66: 173.6216 | AD66: 0.0313 | AE66: 0.0007 | AF66: 0.0017 | AG66: 0.0151
C67: 64 | D67: 0.0319 | E67: 0.0734 | P67: 59 | Q67: 1.2298 | R67: 315.3246 | S67: 0.1445 | T67: 0.0017 | U67: 0.0032 | V67: 0.0439 | AA67: 59 | AB67: 0.364 | AC67: 175.8432 | AD67: 0.0312 | AE67: 0.0007 | AF67: 0.0018 | AG67: 0.0152
C68: 65 | D68: 0.0325 | E68: 0.0726 | P68: 60 | Q68: 1.2136 | R68: 319.2217 | S68: 0.1432 | T68: 0.0017 | U68: 0.0032 | V68: 0.0439 | AA68: 60 | AB68: 0.3603 | AC68: 178.0647 | AD68: 0.0311 | AE68: 0.0007 | AF68: 0.0018 | AG68: 0.0154
C69: 66 | D69: 0.0331 | E69: 0.0765 | P69: 61 | Q69: 1.221 | R69: 326.2862 | S69: 0.1444 | T69: 0.0018 | U69: 0.0033 | V69: 0.0453 | AA69: 61 | AB69: 0.3639 | AC69: 181.7269 | AD69: 0.032 | AE69: 0.0007 | AF69: 0.0018 | AG69: 0.0161
C70: 67 | D70: 0.0337 | E70: 0.0804 | P70: 62 | Q70: 1.2284 | R70: 333.3507 | S70: 0.1455 | T70: 0.0018 | U70: 0.0033 | V70: 0.0468 | AA70: 62 | AB70: 0.3676 | AC70: 185.3891 | AD70: 0.0329 | AE70: 0.0007 | AF70: 0.0019 | AG70: 0.0168
C71: 68 | D71: 0.0343 | E71: 0.0842 | P71: 63 | Q71: 1.2358 | R71: 340.4152 | S71: 0.1467 | T71: 0.0018 | U71: 0.0034 | V71: 0.0483 | AA71: 63 | AB71: 0.3712 | AC71: 189.0513 | AD71: 0.0338 | AE71: 0.0007 | AF71: 0.0019 | AG71: 0.0175
C72: 69 | D72: 0.035 | E72: 0.0881 | P72: 64 | Q72: 1.2432 | R72: 347.4797 | S72: 0.1479 | T72: 0.0018 | U72: 0.0035 | V72: 0.0497 | AA72: 64 | AB72: 0.3748 | AC72: 192.7134 | AD72: 0.0347 | AE72: 0.0008 | AF72: 0.0019 | AG72: 0.0182
C73: 70 | D73: 0.0356 | E73: 0.092 | P73: 65 | Q73: 1.2506 | R73: 354.5442 | S73: 0.149 | T73: 0.0019 | U73: 0.0036 | V73: 0.0512 | AA73: 65 | AB73: 0.3784 | AC73: 196.3756 | AD73: 0.0356 | AE73: 0.0008 | AF73: 0.002 | AG73: 0.0189
P74: 66 | Q74: 1.2948 | R74: 361.2833 | S74: 0.1524 | T74: 0.0019 | U74: 0.0036 | V74: 0.0537 | AA74: 66 | AB74: 0.3804 | AC74: 200.1791 | AD74: 0.035 | AE74: 0.0008 | AF74: 0.002 | AG74: 0.0191
B75: * Includes motorcycles & motorhomes | P75: 67 | Q75: 1.3391 | R75: 368.0223 | S75: 0.1559 | T75: 0.002 | U75: 0.0037 | V75: 0.0563 | AA75: 67 | AB75: 0.3823 | AC75: 203.9827 | AD75: 0.0344 | AE75: 0.0008 | AF75: 0.002 | AG75: 0.0194
B76: Note: Five mph is best estimate for idling | P76: 68 | Q76: 1.3833 | R76: 374.7614 | S76: 0.1593 | T76: 0.002 | U76: 0.0038 | V76: 0.0588 | AA76: 68 | AB76: 0.3843 | AC76: 207.7862 | AD76: 0.0338 | AE76: 0.0008 | AF76: 0.0021 | AG76: 0.0197
P77: 69 | Q77: 1.4275 | R77: 381.5004 | S77: 0.1627 | T77: 0.002 | U77: 0.0038 | V77: 0.0613 | AA77: 69 | AB77: 0.3863 | AC77: 211.5897 | AD77: 0.0333 | AE77: 0.0008 | AF77: 0.0021 | AG77: 0.0199
B78: Source: California Air Resources Board, | P78: 70 | Q78: 1.4718 | R78: 388.2395 | S78: 0.1661 | T78: 0.0021 | U78: 0.0039 | V78: 0.0638 | AA78: 70 | AB78: 0.3882 | AC78: 215.3932 | AD78: 0.0327 | AE78: 0.0008 | AF78: 0.0022 | AG78: 0.0202
B79: EMFAC2014, 2016 & 2036 average
O80: Truck | P80: 0 | Q80: 0.884 | R80: 15.8943 | S80: 0.1698 | T80: 0.0004 | U80: 0.0002 | V80: 0.0746 | Z80: Truck | AA80: 0 | AB80: 0.2015 | AC80: 9.6105 | AD80: 0.162 | AE80: 0.0002 | AF80: 0.0001 | AG80: 0.0118
P81: 5 | Q81: 5.1981 | R81: 2078.7487 | S81: 6.0007 | T81: 0.0866 | U81: 0.0196 | V81: 0.8863 | AA81: 5 | AB81: 3.5072 | AC81: 1907.1744 | AD81: 6.8607 | AE81: 0.011 | AF81: 0.0168 | AG81: 0.3209
P82: 6 | Q82: 4.9646 | R82: 2025.227 | S82: 5.9079 | T82: 0.0866 | U82: 0.0191 | V82: 0.8538 | AA82: 6 | AB82: 3.3251 | AC82: 1859.4917 | AD82: 6.5675 | AE82: 0.0105 | AF82: 0.0165 | AG82: 0.3064
C83: NUMBER OF FATALITIES | P83: 7 | Q83: 4.7312 | R83: 1971.7054 | S83: 5.8151 | T83: 0.0867 | U83: 0.0186 | V83: 0.8213 | AA83: 7 | AB83: 3.1431 | AC83: 1811.8091 | AD83: 6.2744 | AE83: 0.0101 | AF83: 0.0161 | AG83: 0.2919
C84: (events/accident) | P84: 8 | Q84: 4.4977 | R84: 1918.1838 | S84: 5.7223 | T84: 0.0868 | U84: 0.0181 | V84: 0.7888 | AA84: 8 | AB84: 2.961 | AC84: 1764.1265 | AD84: 5.9812 | AE84: 0.0096 | AF84: 0.0157 | AG84: 0.2774
P85: 9 | Q85: 4.2642 | R85: 1864.6622 | S85: 5.6295 | T85: 0.0869 | U85: 0.0176 | V85: 0.7563 | AA85: 9 | AB85: 2.779 | AC85: 1716.4439 | AD85: 5.688 | AE85: 0.0092 | AF85: 0.0153 | AG85: 0.2629
C86: Accident Type | D86: Urban | E86: Suburban | F86: Rural | G86: Average | P86: 10 | Q86: 4.0308 | R86: 1811.1406 | S86: 5.5367 | T86: 0.0869 | U86: 0.0171 | V86: 0.7239 | AA86: 10 | AB86: 2.597 | AC86: 1668.7613 | AD86: 5.3948 | AE86: 0.0087 | AF86: 0.015 | AG86: 0.2484
C87: Fatal Accident | D87: 1.09 | E87: 1.08 | F87: 1.14 | G87: 1.11 | P87: 11 | Q87: 3.8318 | R87: 1684.0729 | S87: 5.0222 | T87: 0.0789 | U87: 0.016 | V87: 0.6511 | AA87: 11 | AB87: 2.3246 | AC87: 1549.8034 | AD87: 4.7725 | AE87: 0.0083 | AF87: 0.014 | AG87: 0.2253
P88: 12 | Q88: 3.6328 | R88: 1557.0053 | S88: 4.5078 | T88: 0.0709 | U88: 0.0149 | V88: 0.5784 | AA88: 12 | AB88: 2.0522 | AC88: 1430.8454 | AD88: 4.1501 | AE88: 0.0079 | AF88: 0.013 | AG88: 0.2023
P89: 13 | Q89: 3.4338 | R89: 1429.9376 | S89: 3.9933 | T89: 0.0628 | U89: 0.0137 | V89: 0.5056 | AA89: 13 | AB89: 1.7799 | AC89: 1311.8875 | AD89: 3.5278 | AE89: 0.0075 | AF89: 0.0121 | AG89: 0.1792
C90: NUMBER OF INJURIES | P90: 14 | Q90: 3.2348 | R90: 1302.8699 | S90: 3.4788 | T90: 0.0548 | U90: 0.0126 | V90: 0.4329 | AA90: 14 | AB90: 1.5075 | AC90: 1192.9296 | AD90: 2.9055 | AE90: 0.0071 | AF90: 0.0111 | AG90: 0.1561
C91: (events/accident) | P91: 15 | Q91: 3.0358 | R91: 1175.8022 | S91: 2.9643 | T91: 0.0468 | U91: 0.0114 | V91: 0.3601 | AA91: 15 | AB91: 1.2352 | AC91: 1073.9717 | AD91: 2.2831 | AE91: 0.0067 | AF91: 0.0102 | AG91: 0.1331
P92: 16 | Q92: 2.9594 | R92: 1149.78 | S92: 2.8981 | T92: 0.0452 | U92: 0.0112 | V92: 0.3364 | AA92: 16 | AB92: 1.1707 | AC92: 1044.4852 | AD92: 2.1133 | AE92: 0.0063 | AF92: 0.0099 | AG92: 0.1231
C93: Accident Type | D93: Urban | E93: Suburban | F93: Rural | G93: Average | P93: 17 | Q93: 2.883 | R93: 1123.7577 | S93: 2.8318 | T93: 0.0436 | U93: 0.011 | V93: 0.3126 | AA93: 17 | AB93: 1.1062 | AC93: 1014.9987 | AD93: 1.9435 | AE93: 0.0059 | AF93: 0.0097 | AG93: 0.113
C94: Fatal Accident | D94: 0.81 | E94: 0.82 | F94: 1.12 | G94: 0.95 | P94: 18 | Q94: 2.8066 | R94: 1097.7354 | S94: 2.7656 | T94: 0.042 | U94: 0.0107 | V94: 0.2888 | AA94: 18 | AB94: 1.0418 | AC94: 985.5122 | AD94: 1.7737 | AE94: 0.0055 | AF94: 0.0094 | AG94: 0.103
C95: Injury Accident | D95: 1.44 | E95: 1.43 | F95: 1.5 | G95: 1.44 | P95: 19 | Q95: 2.7302 | R95: 1071.7131 | S95: 2.6994 | T95: 0.0405 | U95: 0.0105 | V95: 0.265 | AA95: 19 | AB95: 0.9773 | AC95: 956.0257 | AD95: 1.6039 | AE95: 0.0051 | AF95: 0.0092 | AG95: 0.093
P96: 20 | Q96: 2.6538 | R96: 1045.6908 | S96: 2.6332 | T96: 0.0389 | U96: 0.0102 | V96: 0.2413 | AA96: 20 | AB96: 0.9128 | AC96: 926.5391 | AD96: 1.4341 | AE96: 0.0047 | AF96: 0.0089 | AG96: 0.083
P97: 21 | Q97: 2.6003 | R97: 1002.0956 | S97: 2.4211 | T97: 0.035 | U97: 0.0098 | V97: 0.2216 | AA97: 21 | AB97: 0.8778 | AC97: 874.5162 | AD97: 1.253 | AE97: 0.0044 | AF97: 0.0084 | AG97: 0.0748
C98: NUMBER OF VEHICLES INVOLVED | P98: 22 | Q98: 2.5468 | R98: 958.5005 | S98: 2.2091 | T98: 0.0311 | U98: 0.0094 | V98: 0.2019 | AA98: 22 | AB98: 0.8428 | AC98: 822.4933 | AD98: 1.0718 | AE98: 0.0041 | AF98: 0.0079 | AG98: 0.0666
C99: (events/accident) | P99: 23 | Q99: 2.4933 | R99: 914.9053 | S99: 1.9971 | T99: 0.0272 | U99: 0.009 | V99: 0.1822 | AA99: 23 | AB99: 0.8077 | AC99: 770.4704 | AD99: 0.8907 | AE99: 0.0038 | AF99: 0.0074 | AG99: 0.0584
P100: 24 | Q100: 2.4398 | R100: 871.3101 | S100: 1.785 | T100: 0.0233 | U100: 0.0086 | V100: 0.1626 | AA100: 24 | AB100: 0.7727 | AC100: 718.4476 | AD100: 0.7096 | AE100: 0.0035 | AF100: 0.0069 | AG100: 0.0502
C101: Accident Type | D101: Urban | E101: Suburban | F101: Rural | G101: Average | P101: 25 | Q101: 2.3864 | R101: 827.715 | S101: 1.573 | T101: 0.0194 | U101: 0.0081 | V101: 0.1429 | AA101: 25 | AB101: 0.7377 | AC101: 666.4247 | AD101: 0.5284 | AE101: 0.0031 | AF101: 0.0064 | AG101: 0.042
C102: Fatal Accident | D102: 1.51 | E102: 1.69 | F102: 1.58 | G102: 1.63 | P102: 26 | Q102: 2.344 | R102: 810.584 | S102: 1.532 | T102: 0.0187 | U102: 0.008 | V102: 0.1364 | AA102: 26 | AB102: 0.7207 | AC102: 654.1183 | AD102: 0.4949 | AE102: 0.003 | AF102: 0.0063 | AG102: 0.0399
C103: Injury Accident | D103: 1.82 | E103: 2.1 | F103: 1.59 | G103: 1.99 | P103: 27 | Q103: 2.3017 | R103: 793.453 | S103: 1.4911 | T103: 0.018 | U103: 0.0078 | V103: 0.1299 | AA103: 27 | AB103: 0.7038 | AC103: 641.812 | AD103: 0.4613 | AE103: 0.0029 | AF103: 0.0062 | AG103: 0.0378
C104: PDO Accident | D104: 1.8 | E104: 2.03 | F104: 1.59 | G104: 1.96 | P104: 28 | Q104: 2.2593 | R104: 776.322 | S104: 1.4501 | T104: 0.0173 | U104: 0.0076 | V104: 0.1234 | AA104: 28 | AB104: 0.6869 | AC104: 629.5057 | AD104: 0.4278 | AE104: 0.0028 | AF104: 0.0061 | AG104: 0.0358
P105: 29 | Q105: 2.217 | R105: 759.191 | S105: 1.4092 | T105: 0.0167 | U105: 0.0075 | V105: 0.1169 | AA105: 29 | AB105: 0.67 | AC105: 617.1994 | AD105: 0.3942 | AE105: 0.0026 | AF105: 0.006 | AG105: 0.0337
P106: 30 | Q106: 2.1747 | R106: 742.06 | S106: 1.3682 | T106: 0.016 | U106: 0.0073 | V106: 0.1104 | AA106: 30 | AB106: 0.6531 | AC106: 604.8931 | AD106: 0.3607 | AE106: 0.0025 | AF106: 0.0058 | AG106: 0.0316
C107: DISTRIBUTION OF ACCIDENT TYPES | P107: 31 | Q107: 2.1326 | R107: 752.0419 | S107: 1.444 | T107: 0.0168 | U107: 0.0074 | V107: 0.1096 | AA107: 31 | AB107: 0.6458 | AC107: 624.5823 | AD107: 0.3646 | AE107: 0.0025 | AF107: 0.006 | AG107: 0.0318
C108: (percent of accidents) | P108: 32 | Q108: 2.0905 | R108: 762.0238 | S108: 1.5198 | T108: 0.0177 | U108: 0.0075 | V108: 0.1087 | AA108: 32 | AB108: 0.6386 | AC108: 644.2715 | AD108: 0.3685 | AE108: 0.0026 | AF108: 0.0062 | AG108: 0.032
P109: 33 | Q109: 2.0484 | R109: 772.0057 | S109: 1.5955 | T109: 0.0185 | U109: 0.0075 | V109: 0.1079 | AA109: 33 | AB109: 0.6313 | AC109: 663.9607 | AD109: 0.3725 | AE109: 0.0026 | AF109: 0.0063 | AG109: 0.0322
C110: Accident Type | D110: Urban | E110: Suburban | F110: Rural | G110: Average | P110: 34 | Q110: 2.0064 | R110: 781.9877 | S110: 1.6713 | T110: 0.0194 | U110: 0.0076 | V110: 0.1071 | AA110: 34 | AB110: 0.6241 | AC110: 683.6499 | AD110: 0.3764 | AE110: 0.0026 | AF110: 0.0065 | AG110: 0.0324
C111: Fatal Accident | D111: 0.0118 | E111: 0.0045 | F111: 0.0192 | G111: 0.0071 | P111: 35 | Q111: 1.9643 | R111: 791.9696 | S111: 1.7471 | T111: 0.0202 | U111: 0.0077 | V111: 0.1062 | AA111: 35 | AB111: 0.6168 | AC111: 703.3391 | AD111: 0.3803 | AE111: 0.0026 | AF111: 0.0067 | AG111: 0.0326
C112: Injury Accident | D112: 0.3493 | E112: 0.3309 | F112: 0.3825 | G112: 0.3398 | P112: 36 | Q112: 1.9353 | R112: 788.7558 | S112: 1.7522 | T112: 0.0206 | U112: 0.0077 | V112: 0.1039 | AA112: 36 | AB112: 0.5989 | AC112: 704.5951 | AD112: 0.3666 | AE112: 0.0026 | AF112: 0.0067 | AG112: 0.0314
C113: PDO Accident | D113: 0.6389 | E113: 0.6645 | F113: 0.5983 | G113: 0.6531 | P113: 37 | Q113: 1.9064 | R113: 785.542 | S113: 1.7573 | T113: 0.021 | U113: 0.0076 | V113: 0.1015 | AA113: 37 | AB113: 0.5809 | AC113: 705.8511 | AD113: 0.3529 | AE113: 0.0026 | AF113: 0.0067 | AG113: 0.0302
P114: 38 | Q114: 1.8774 | R114: 782.3282 | S114: 1.7624 | T114: 0.0213 | U114: 0.0076 | V114: 0.0991 | AA114: 38 | AB114: 0.5629 | AC114: 707.1071 | AD114: 0.3392 | AE114: 0.0026 | AF114: 0.0067 | AG114: 0.0291
P115: 39 | Q115: 1.8485 | R115: 779.1144 | S115: 1.7676 | T115: 0.0217 | U115: 0.0076 | V115: 0.0967 | AA115: 39 | AB115: 0.545 | AC115: 708.363 | AD115: 0.3255 | AE115: 0.0025 | AF115: 0.0067 | AG115: 0.0279
B116: Source: California Department of Transportation,TASAS Unit, 2010 to 2013 average | P116: 40 | Q116: 1.8195 | R116: 775.9006 | S116: 1.7727 | T116: 0.0221 | U116: 0.0075 | V116: 0.0944 | AA116: 40 | AB116: 0.527 | AC116: 709.619 | AD116: 0.3118 | AE116: 0.0025 | AF116: 0.0067 | AG116: 0.0267
P117: 41 | Q117: 1.7831 | R117: 783.2454 | S117: 1.8215 | T117: 0.0228 | U117: 0.0076 | V117: 0.0934 | AA117: 41 | AB117: 0.5118 | AC117: 720.8037 | AD117: 0.3077 | AE117: 0.0025 | AF117: 0.0069 | AG117: 0.0262
P118: 42 | Q118: 1.7466 | R118: 790.5902 | S118: 1.8703 | T118: 0.0234 | U118: 0.0077 | V118: 0.0923 | AA118: 42 | AB118: 0.4965 | AC118: 731.9884 | AD118: 0.3036 | AE118: 0.0026 | AF118: 0.007 | AG118: 0.0257
P119: 43 | Q119: 1.7102 | R119: 797.935 | S119: 1.9191 | T119: 0.0241 | U119: 0.0077 | V119: 0.0913 | AA119: 43 | AB119: 0.4813 | AC119: 743.1731 | AD119: 0.2995 | AE119: 0.0026 | AF119: 0.0071 | AG119: 0.0252
P120: 44 | Q120: 1.6737 | R120: 805.2797 | S120: 1.9679 | T120: 0.0248 | U120: 0.0078 | V120: 0.0903 | AA120: 44 | AB120: 0.466 | AC120: 754.3578 | AD120: 0.2954 | AE120: 0.0026 | AF120: 0.0072 | AG120: 0.0247
P121: 45 | Q121: 1.6373 | R121: 812.6245 | S121: 2.0168 | T121: 0.0255 | U121: 0.0079 | V121: 0.0893 | AA121: 45 | AB121: 0.4508 | AC121: 765.5425 | AD121: 0.2913 | AE121: 0.0027 | AF121: 0.0073 | AG121: 0.0242
P122: 46 | Q122: 1.6085 | R122: 809.0851 | S122: 2.0513 | T122: 0.0259 | U122: 0.0078 | V122: 0.0885 | AA122: 46 | AB122: 0.4344 | AC122: 765.4447 | AD122: 0.2853 | AE122: 0.0027 | AF122: 0.0073 | AG122: 0.0234
P123: 47 | Q123: 1.5797 | R123: 805.5456 | S123: 2.0859 | T123: 0.0264 | U123: 0.0078 | V123: 0.0876 | AA123: 47 | AB123: 0.4181 | AC123: 765.3468 | AD123: 0.2794 | AE123: 0.0027 | AF123: 0.0073 | AG123: 0.0226
P124: 48 | Q124: 1.551 | R124: 802.0062 | S124: 2.1205 | T124: 0.0268 | U124: 0.0078 | V124: 0.0868 | AA124: 48 | AB124: 0.4017 | AC124: 765.249 | AD124: 0.2734 | AE124: 0.0028 | AF124: 0.0073 | AG124: 0.0218
P125: 49 | Q125: 1.5222 | R125: 798.4667 | S125: 2.155 | T125: 0.0273 | U125: 0.0078 | V125: 0.086 | AA125: 49 | AB125: 0.3854 | AC125: 765.1511 | AD125: 0.2675 | AE125: 0.0028 | AF125: 0.0073 | AG125: 0.021
P126: 50 | Q126: 1.4935 | R126: 794.9273 | S126: 2.1896 | T126: 0.0277 | U126: 0.0077 | V126: 0.0852 | AA126: 50 | AB126: 0.369 | AC126: 765.0533 | AD126: 0.2615 | AE126: 0.0028 | AF126: 0.0073 | AG126: 0.0202
P127: 51 | Q127: 1.4732 | R127: 804.8722 | S127: 2.2174 | T127: 0.0293 | U127: 0.0078 | V127: 0.0851 | AA127: 51 | AB127: 0.3589 | AC127: 772.938 | AD127: 0.2554 | AE127: 0.0028 | AF127: 0.0074 | AG127: 0.0196
P128: 52 | Q128: 1.4529 | R128: 814.8171 | S128: 2.2453 | T128: 0.0308 | U128: 0.0079 | V128: 0.085 | AA128: 52 | AB128: 0.3488 | AC128: 780.8227 | AD128: 0.2493 | AE128: 0.0028 | AF128: 0.0075 | AG128: 0.019
P129: 53 | Q129: 1.4326 | R129: 824.762 | S129: 2.2731 | T129: 0.0323 | U129: 0.008 | V129: 0.0849 | AA129: 53 | AB129: 0.3388 | AC129: 788.7075 | AD129: 0.2433 | AE129: 0.0028 | AF129: 0.0076 | AG129: 0.0184
P130: 54 | Q130: 1.4124 | R130: 834.7069 | S130: 2.301 | T130: 0.0338 | U130: 0.0081 | V130: 0.0849 | AA130: 54 | AB130: 0.3287 | AC130: 796.5922 | AD130: 0.2372 | AE130: 0.0028 | AF130: 0.0077 | AG130: 0.0178
P131: 55 | Q131: 1.3921 | R131: 844.6518 | S131: 2.3288 | T131: 0.0353 | U131: 0.0082 | V131: 0.0848 | AA131: 55 | AB131: 0.3186 | AC131: 804.4769 | AD131: 0.2311 | AE131: 0.0028 | AF131: 0.0077 | AG131: 0.0171
P132: 56 | Q132: 1.4034 | R132: 827.1954 | S132: 2.2073 | T132: 0.0345 | U132: 0.008 | V132: 0.0832 | AA132: 56 | AB132: 0.3134 | AC132: 779.8106 | AD132: 0.2173 | AE132: 0.0027 | AF132: 0.0075 | AG132: 0.0163
P133: 57 | Q133: 1.4147 | R133: 809.7391 | S133: 2.0858 | T133: 0.0338 | U133: 0.0079 | V133: 0.0815 | AA133: 57 | AB133: 0.3082 | AC133: 755.1442 | AD133: 0.2034 | AE133: 0.0026 | AF133: 0.0073 | AG133: 0.0154
P134: 58 | Q134: 1.426 | R134: 792.2827 | S134: 1.9643 | T134: 0.033 | U134: 0.0077 | V134: 0.0799 | AA134: 58 | AB134: 0.303 | AC134: 730.4779 | AD134: 0.1896 | AE134: 0.0025 | AF134: 0.007 | AG134: 0.0146
P135: 59 | Q135: 1.4373 | R135: 774.8264 | S135: 1.8428 | T135: 0.0322 | U135: 0.0076 | V135: 0.0783 | AA135: 59 | AB135: 0.2978 | AC135: 705.8115 | AD135: 0.1758 | AE135: 0.0024 | AF135: 0.0068 | AG135: 0.0137
P136: 60 | Q136: 1.4486 | R136: 757.37 | S136: 1.7213 | T136: 0.0314 | U136: 0.0074 | V136: 0.0766 | AA136: 60 | AB136: 0.2926 | AC136: 681.1452 | AD136: 0.1619 | AE136: 0.0023 | AF136: 0.0066 | AG136: 0.0129
P137: 61 | Q137: 1.4697 | R137: 751.8344 | S137: 1.6368 | T137: 0.029 | U137: 0.0074 | V137: 0.0756 | AA137: 61 | AB137: 0.2967 | AC137: 666.116 | AD137: 0.1573 | AE137: 0.0023 | AF137: 0.0064 | AG137: 0.0128
P138: 62 | Q138: 1.4909 | R138: 746.2988 | S138: 1.5524 | T138: 0.0265 | U138: 0.0073 | V138: 0.0745 | AA138: 62 | AB138: 0.3008 | AC138: 651.0868 | AD138: 0.1527 | AE138: 0.0022 | AF138: 0.0063 | AG138: 0.0127
P139: 63 | Q139: 1.512 | R139: 740.7632 | S139: 1.468 | T139: 0.0241 | U139: 0.0073 | V139: 0.0734 | AA139: 63 | AB139: 0.305 | AC139: 636.0575 | AD139: 0.1481 | AE139: 0.0022 | AF139: 0.0062 | AG139: 0.0126
P140: 64 | Q140: 1.5332 | R140: 735.2276 | S140: 1.3836 | T140: 0.0216 | U140: 0.0072 | V140: 0.0724 | AA140: 64 | AB140: 0.3091 | AC140: 621.0283 | AD140: 0.1434 | AE140: 0.0021 | AF140: 0.006 | AG140: 0.0125
P141: 65 | Q141: 1.5544 | R141: 729.692 | S141: 1.2992 | T141: 0.0191 | U141: 0.0072 | V141: 0.0713 | AA141: 65 | AB141: 0.3132 | AC141: 605.9991 | AD141: 0.1388 | AE141: 0.0021 | AF141: 0.0059 | AG141: 0.0125
P142: 66 | Q142: 1.5252 | R142: 769.9276 | S142: 1.462 | T142: 0.0203 | U142: 0.0076 | V142: 0.0735 | AA142: 66 | AB142: 0.3047 | AC142: 649.3239 | AD142: 0.1524 | AE142: 0.0022 | AF142: 0.0063 | AG142: 0.0133
P143: 67 | Q143: 1.4961 | R143: 810.1633 | S143: 1.6247 | T143: 0.0214 | U143: 0.0079 | V143: 0.0757 | AA143: 67 | AB143: 0.2962 | AC143: 692.6487 | AD143: 0.166 | AE143: 0.0024 | AF143: 0.0067 | AG143: 0.0142
P144: 68 | Q144: 1.467 | R144: 850.3989 | S144: 1.7874 | T144: 0.0226 | U144: 0.0083 | V144: 0.0778 | AA144: 68 | AB144: 0.2877 | AC144: 735.9736 | AD144: 0.1796 | AE144: 0.0026 | AF144: 0.0071 | AG144: 0.015
P145: 69 | Q145: 1.4378 | R145: 890.6346 | S145: 1.9502 | T145: 0.0237 | U145: 0.0087 | V145: 0.08 | AA145: 69 | AB145: 0.2791 | AC145: 779.2984 | AD145: 0.1933 | AE145: 0.0027 | AF145: 0.0075 | AG145: 0.0159
P146: 70 | Q146: 1.4087 | R146: 930.8702 | S146: 2.1129 | T146: 0.0248 | U146: 0.0091 | V146: 0.0822 | AA146: 70 | AB146: 0.2706 | AC146: 822.6232 | AD146: 0.2069 | AE146: 0.0029 | AF146: 0.0079 | AG146: 0.0167
O148: Bus | P148: 0 | Q148: 0.9177 | R148: 7.0526 | S148: 0.1729 | T148: 0.0001 | U148: 0.0001 | V148: 0.0589 | Z148: Bus | AA148: 0 | AB148: 0.5851 | AC148: 9.1495 | AD148: 0.2924 | AE148: 0.0001 | AF148: 0.0001 | AG148: 0.0398
P149: 5 | Q149: 19.5716 | R149: 3427.7169 | S149: 22.0898 | T149: 0.4156 | U149: 0.0272 | V149: 3.1109 | AA149: 5 | AB149: 9.8074 | AC149: 2999.6012 | AD149: 5.2921 | AE149: 0.0368 | AF149: 0.0239 | AG149: 0.387
P150: 6 | Q150: 18.614 | R150: 3345.9708 | S150: 21.1562 | T150: 0.397 | U150: 0.0267 | V150: 2.9233 | AA150: 6 | AB150: 9.1892 | AC150: 2922.623 | AD150: 5.0912 | AE150: 0.0348 | AF150: 0.0234 | AG150: 0.3644
P151: 7 | Q151: 17.6564 | R151: 3264.2247 | S151: 20.2227 | T151: 0.3785 | U151: 0.0261 | V151: 2.7357 | AA151: 7 | AB151: 8.571 | AC151: 2845.6447 | AD151: 4.8903 | AE151: 0.0329 | AF151: 0.0228 | AG151: 0.3417
P152: 8 | Q152: 16.6988 | R152: 3182.4787 | S152: 19.2892 | T152: 0.36 | U152: 0.0255 | V152: 2.548 | AA152: 8 | AB152: 7.9529 | AC152: 2768.6665 | AD152: 4.6894 | AE152: 0.0309 | AF152: 0.0223 | AG152: 0.3191
P153: 9 | Q153: 15.7411 | R153: 3100.7326 | S153: 18.3556 | T153: 0.3415 | U153: 0.025 | V153: 2.3604 | AA153: 9 | AB153: 7.3347 | AC153: 2691.6883 | AD153: 4.4886 | AE153: 0.0289 | AF153: 0.0218 | AG153: 0.2964
P154: 10 | Q154: 14.7835 | R154: 3018.9865 | S154: 17.4221 | T154: 0.323 | U154: 0.0244 | V154: 2.1728 | AA154: 10 | AB154: 6.7166 | AC154: 2614.71 | AD154: 4.2877 | AE154: 0.027 | AF154: 0.0212 | AG154: 0.2738
P155: 11 | Q155: 13.9616 | R155: 2881.3138 | S155: 16.5063 | T155: 0.3034 | U155: 0.0232 | V155: 1.9877 | AA155: 11 | AB155: 6.1349 | AC155: 2484.7098 | AD155: 3.9697 | AE155: 0.0252 | AF155: 0.0201 | AG155: 0.2512
P156: 12 | Q156: 13.1396 | R156: 2743.6411 | S156: 15.5905 | T156: 0.2838 | U156: 0.022 | V156: 1.8026 | AA156: 12 | AB156: 5.5533 | AC156: 2354.7095 | AD156: 3.6517 | AE156: 0.0234 | AF156: 0.0189 | AG156: 0.2286
P157: 13 | Q157: 12.3177 | R157: 2605.9684 | S157: 14.6748 | T157: 0.2642 | U157: 0.0208 | V157: 1.6175 | AA157: 13 | AB157: 4.9716 | AC157: 2224.7093 | AD157: 3.3337 | AE157: 0.0217 | AF157: 0.0178 | AG157: 0.206
P158: 14 | Q158: 11.4957 | R158: 2468.2957 | S158: 13.759 | T158: 0.2446 | U158: 0.0196 | V158: 1.4324 | AA158: 14 | AB158: 4.39 | AC158: 2094.709 | AD158: 3.0157 | AE158: 0.0199 | AF158: 0.0166 | AG158: 0.1833
P159: 15 | Q159: 10.6738 | R159: 2330.623 | S159: 12.8432 | T159: 0.225 | U159: 0.0184 | V159: 1.2474 | AA159: 15 | AB159: 3.8083 | AC159: 1964.7088 | AD159: 2.6977 | AE159: 0.0182 | AF159: 0.0154 | AG159: 0.1607
P160: 16 | Q160: 10.6231 | R160: 2266.5116 | S160: 12.7714 | T160: 0.2193 | U160: 0.0175 | V160: 1.168 | AA160: 16 | AB160: 3.6564 | AC160: 1904.7758 | AD160: 2.5065 | AE160: 0.018 | AF160: 0.0145 | AG160: 0.1489
P161: 17 | Q161: 10.5725 | R161: 2202.4002 | S161: 12.6995 | T161: 0.2136 | U161: 0.0167 | V161: 1.0887 | AA161: 17 | AB161: 3.5045 | AC161: 1844.8428 | AD161: 2.3153 | AE161: 0.0179 | AF161: 0.0135 | AG161: 0.137
P162: 18 | Q162: 10.5218 | R162: 2138.2887 | S162: 12.6277 | T162: 0.2079 | U162: 0.0158 | V162: 1.0093 | AA162: 18 | AB162: 3.3526 | AC162: 1784.9098 | AD162: 2.1241 | AE162: 0.0178 | AF162: 0.0126 | AG162: 0.1251
P163: 19 | Q163: 10.4712 | R163: 2074.1773 | S163: 12.5558 | T163: 0.2022 | U163: 0.015 | V163: 0.93 | AA163: 19 | AB163: 3.2006 | AC163: 1724.9767 | AD163: 1.9328 | AE163: 0.0176 | AF163: 0.0116 | AG163: 0.1133
P164: 20 | Q164: 10.4205 | R164: 2010.0658 | S164: 12.484 | T164: 0.1965 | U164: 0.0141 | V164: 0.8506 | AA164: 20 | AB164: 3.0487 | AC164: 1665.0437 | AD164: 1.7416 | AE164: 0.0175 | AF164: 0.0107 | AG164: 0.1014
P165: 21 | Q165: 8.8915 | R165: 1886.2217 | S165: 11.1331 | T165: 0.169 | U165: 0.0139 | V165: 0.7311 | AA165: 21 | AB165: 2.5386 | AC165: 1582.512 | AD165: 1.601 | AE165: 0.0148 | AF165: 0.0109 | AG165: 0.0929
P166: 22 | Q166: 7.3625 | R166: 1762.3776 | S166: 9.7823 | T166: 0.1416 | U166: 0.0137 | V166: 0.6115 | AA166: 22 | AB166: 2.0285 | AC166: 1499.9803 | AD166: 1.4604 | AE166: 0.0122 | AF166: 0.0111 | AG166: 0.0843
P167: 23 | Q167: 5.8334 | R167: 1638.5335 | S167: 8.4314 | T167: 0.1142 | U167: 0.0134 | V167: 0.492 | AA167: 23 | AB167: 1.5183 | AC167: 1417.4486 | AD167: 1.3197 | AE167: 0.0095 | AF167: 0.0114 | AG167: 0.0758
P168: 24 | Q168: 4.3044 | R168: 1514.6894 | S168: 7.0806 | T168: 0.0868 | U168: 0.0132 | V168: 0.3724 | AA168: 24 | AB168: 1.0082 | AC168: 1334.9169 | AD168: 1.1791 | AE168: 0.0068 | AF168: 0.0116 | AG168: 0.0673
P169: 25 | Q169: 2.7754 | R169: 1390.8452 | S169: 5.7297 | T169: 0.0594 | U169: 0.013 | V169: 0.2529 | AA169: 25 | AB169: 0.4981 | AC169: 1252.3852 | AD169: 1.0385 | AE169: 0.0041 | AF169: 0.0118 | AG169: 0.0587
P170: 26 | Q170: 2.7002 | R170: 1372.4617 | S170: 5.6623 | T170: 0.0576 | U170: 0.0128 | V170: 0.2422 | AA170: 26 | AB170: 0.4776 | AC170: 1237.6052 | AD170: 0.9754 | AE170: 0.004 | AF170: 0.0117 | AG170: 0.0559
P171: 27 | Q171: 2.625 | R171: 1354.0782 | S171: 5.5949 | T171: 0.0558 | U171: 0.0126 | V171: 0.2315 | AA171: 27 | AB171: 0.4571 | AC171: 1222.8253 | AD171: 0.9124 | AE171: 0.0039 | AF171: 0.0115 | AG171: 0.0531
P172: 28 | Q172: 2.5498 | R172: 1335.6947 | S172: 5.5274 | T172: 0.0539 | U172: 0.0124 | V172: 0.2208 | AA172: 28 | AB172: 0.4366 | AC172: 1208.0454 | AD172: 0.8493 | AE172: 0.0038 | AF172: 0.0114 | AG172: 0.0503
P173: 29 | Q173: 2.4747 | R173: 1317.3112 | S173: 5.46 | T173: 0.0521 | U173: 0.0123 | V173: 0.2102 | AA173: 29 | AB173: 0.4162 | AC173: 1193.2654 | AD173: 0.7863 | AE173: 0.0037 | AF173: 0.0113 | AG173: 0.0474
P174: 30 | Q174: 2.3995 | R174: 1298.9277 | S174: 5.3926 | T174: 0.0503 | U174: 0.0121 | V174: 0.1995 | AA174: 30 | AB174: 0.3957 | AC174: 1178.4855 | AD174: 0.7233 | AE174: 0.0036 | AF174: 0.0111 | AG174: 0.0446
P175: 31 | Q175: 2.342 | R175: 1282.7142 | S175: 5.3486 | T175: 0.0492 | U175: 0.012 | V175: 0.1916 | AA175: 31 | AB175: 0.3799 | AC175: 1165.3188 | AD175: 0.6873 | AE175: 0.0035 | AF175: 0.011 | AG175: 0.0424
P176: 32 | Q176: 2.2845 | R176: 1266.5008 | S176: 5.3047 | T176: 0.048 | U176: 0.0118 | V176: 0.1836 | AA176: 32 | AB176: 0.3642 | AC176: 1152.1522 | AD176: 0.6513 | AE176: 0.0035 | AF176: 0.0109 | AG176: 0.0401
P177: 33 | Q177: 2.227 | R177: 1250.2874 | S177: 5.2608 | T177: 0.0469 | U177: 0.0117 | V177: 0.1757 | AA177: 33 | AB177: 0.3485 | AC177: 1138.9856 | AD177: 0.6154 | AE177: 0.0034 | AF177: 0.0108 | AG177: 0.0379
P178: 34 | Q178: 2.1695 | R178: 1234.0739 | S178: 5.2169 | T178: 0.0457 | U178: 0.0116 | V178: 0.1678 | AA178: 34 | AB178: 0.3327 | AC178: 1125.819 | AD178: 0.5794 | AE178: 0.0033 | AF178: 0.0106 | AG178: 0.0356
P179: 35 | Q179: 2.112 | R179: 1217.8605 | S179: 5.1729 | T179: 0.0445 | U179: 0.0114 | V179: 0.1598 | AA179: 35 | AB179: 0.317 | AC179: 1112.6523 | AD179: 0.5435 | AE179: 0.0033 | AF179: 0.0105 | AG179: 0.0334
P180: 36 | Q180: 2.0857 | R180: 1213.3793 | S180: 5.0994 | T180: 0.0437 | U180: 0.0114 | V180: 0.1557 | AA180: 36 | AB180: 0.3098 | AC180: 1109.2246 | AD180: 0.5225 | AE180: 0.0032 | AF180: 0.0105 | AG180: 0.0319
P181: 37 | Q181: 2.0595 | R181: 1208.898 | S181: 5.0259 | T181: 0.0429 | U181: 0.0113 | V181: 0.1516 | AA181: 37 | AB181: 0.3026 | AC181: 1105.7968 | AD181: 0.5015 | AE181: 0.0032 | AF181: 0.0104 | AG181: 0.0305
P182: 38 | Q182: 2.0332 | R182: 1204.4168 | S182: 4.9524 | T182: 0.0421 | U182: 0.0113 | V182: 0.1475 | AA182: 38 | AB182: 0.2955 | AC182: 1102.369 | AD182: 0.4805 | AE182: 0.0031 | AF182: 0.0104 | AG182: 0.029
P183: 39 | Q183: 2.0069 | R183: 1199.9356 | S183: 4.8788 | T183: 0.0413 | U183: 0.0112 | V183: 0.1434 | AA183: 39 | AB183: 0.2883 | AC183: 1098.9412 | AD183: 0.4595 | AE183: 0.0031 | AF183: 0.0104 | AG183: 0.0276
P184: 40 | Q184: 1.9806 | R184: 1195.4543 | S184: 4.8053 | T184: 0.0405 | U184: 0.0112 | V184: 0.1393 | AA184: 40 | AB184: 0.2811 | AC184: 1095.5135 | AD184: 0.4385 | AE184: 0.003 | AF184: 0.0103 | AG184: 0.0262
P185: 41 | Q185: 1.9689 | R185: 1187.5854 | S185: 4.7071 | T185: 0.0397 | U185: 0.0111 | V185: 0.1362 | AA185: 41 | AB185: 0.2757 | AC185: 1088.6622 | AD185: 0.4217 | AE185: 0.003 | AF185: 0.0103 | AG185: 0.0249
P186: 42 | Q186: 1.9571 | R186: 1179.7165 | S186: 4.6089 | T186: 0.0389 | U186: 0.011 | V186: 0.133 | AA186: 42 | AB186: 0.2702 | AC186: 1081.8109 | AD186: 0.405 | AE186: 0.0029 | AF186: 0.0102 | AG186: 0.0237
P187: 43 | Q187: 1.9453 | R187: 1171.8476 | S187: 4.5106 | T187: 0.0382 | U187: 0.0109 | V187: 0.1298 | AA187: 43 | AB187: 0.2648 | AC187: 1074.9596 | AD187: 0.3883 | AE187: 0.0029 | AF187: 0.0101 | AG187: 0.0224
P188: 44 | Q188: 1.9336 | R188: 1163.9787 | S188: 4.4124 | T188: 0.0374 | U188: 0.0108 | V188: 0.1267 | AA188: 44 | AB188: 0.2593 | AC188: 1068.1083 | AD188: 0.3715 | AE188: 0.0028 | AF188: 0.01 | AG188: 0.0212
P189: 45 | Q189: 1.9218 | R189: 1156.1098 | S189: 4.3142 | T189: 0.0367 | U189: 0.0108 | V189: 0.1235 | AA189: 45 | AB189: 0.2539 | AC189: 1061.257 | AD189: 0.3548 | AE189: 0.0027 | AF189: 0.01 | AG189: 0.0199
P190: 46 | Q190: 1.8909 | R190: 1152.6296 | S190: 4.2858 | T190: 0.0369 | U190: 0.0107 | V190: 0.1221 | AA190: 46 | AB190: 0.2475 | AC190: 1059.087 | AD190: 0.3451 | AE190: 0.0027 | AF190: 0.01 | AG190: 0.0193
P191: 47 | Q191: 1.86 | R191: 1149.1493 | S191: 4.2573 | T191: 0.0371 | U191: 0.0107 | V191: 0.1208 | AA191: 47 | AB191: 0.241 | AC191: 1056.9171 | AD191: 0.3354 | AE191: 0.0027 | AF191: 0.0099 | AG191: 0.0187
P192: 48 | Q192: 1.8291 | R192: 1145.6691 | S192: 4.2289 | T192: 0.0373 | U192: 0.0107 | V192: 0.1194 | AA192: 48 | AB192: 0.2346 | AC192: 1054.7471 | AD192: 0.3257 | AE192: 0.0027 | AF192: 0.0099 | AG192: 0.0181
P193: 49 | Q193: 1.7982 | R193: 1142.1889 | S193: 4.2004 | T193: 0.0375 | U193: 0.0106 | V193: 0.118 | AA193: 49 | AB193: 0.2281 | AC193: 1052.5771 | AD193: 0.316 | AE193: 0.0027 | AF193: 0.0099 | AG193: 0.0175
P194: 50 | Q194: 1.7673 | R194: 1138.7086 | S194: 4.172 | T194: 0.0377 | U194: 0.0106 | V194: 0.1166 | AA194: 50 | AB194: 0.2217 | AC194: 1050.4072 | AD194: 0.3063 | AE194: 0.0027 | AF194: 0.0099 | AG194: 0.0169
P195: 51 | Q195: 1.7408 | R195: 1137.0732 | S195: 4.2359 | T195: 0.0389 | U195: 0.0106 | V195: 0.1169 | AA195: 51 | AB195: 0.2164 | AC195: 1048.78 | AD195: 0.3035 | AE195: 0.0027 | AF195: 0.0098 | AG195: 0.0165
P196: 52 | Q196: 1.7143 | R196: 1135.4378 | S196: 4.2999 | T196: 0.0402 | U196: 0.0106 | V196: 0.1172 | AA196: 52 | AB196: 0.2111 | AC196: 1047.1529 | AD196: 0.3006 | AE196: 0.0027 | AF196: 0.0098 | AG196: 0.0161
P197: 53 | Q197: 1.6878 | R197: 1133.8024 | S197: 4.3638 | T197: 0.0414 | U197: 0.0105 | V197: 0.1175 | AA197: 53 | AB197: 0.2059 | AC197: 1045.5257 | AD197: 0.2977 | AE197: 0.0028 | AF197: 0.0098 | AG197: 0.0157
P198: 54 | Q198: 1.6613 | R198: 1132.167 | S198: 4.4278 | T198: 0.0427 | U198: 0.0105 | V198: 0.1178 | AA198: 54 | AB198: 0.2006 | AC198: 1043.8985 | AD198: 0.2948 | AE198: 0.0028 | AF198: 0.0098 | AG198: 0.0152
P199: 55 | Q199: 1.6348 | R199: 1130.5315 | S199: 4.4917 | T199: 0.044 | U199: 0.0105 | V199: 0.1181 | AA199: 55 | AB199: 0.1954 | AC199: 1042.2714 | AD199: 0.2919 | AE199: 0.0028 | AF199: 0.0098 | AG199: 0.0148
P200: 56 | Q200: 1.6585 | R200: 1135.2651 | S200: 4.5276 | T200: 0.0451 | U200: 0.0105 | V200: 0.1215 | AA200: 56 | AB200: 0.1959 | AC200: 1045.108 | AD200: 0.2934 | AE200: 0.0029 | AF200: 0.0098 | AG200: 0.0148
P201: 57 | Q201: 1.6822 | R201: 1139.9987 | S201: 4.5636 | T201: 0.0463 | U201: 0.0105 | V201: 0.1249 | AA201: 57 | AB201: 0.1963 | AC201: 1047.9446 | AD201: 0.2949 | AE201: 0.0029 | AF201: 0.0098 | AG201: 0.0149
P202: 58 | Q202: 1.7059 | R202: 1144.7323 | S202: 4.5995 | T202: 0.0474 | U202: 0.0106 | V202: 0.1283 | AA202: 58 | AB202: 0.1968 | AC202: 1050.7812 | AD202: 0.2965 | AE202: 0.003 | AF202: 0.0098 | AG202: 0.0149
... 14 more rows

Sheet Traffic Projection
A1: Current Traffic - 2018
A29: Traffic Projection 2060
A45: Traffic Projection 2060
